Workbook

Sheet Stavba
C2: Položkový rozpočet stavby | H2: Datum: | I2: =TODAY() -> 2022-12-16
C5: Stavba : | D5: 3332 | E5: Loučky - Obnova vodovodu v centrální části obce
C7: Objednatel : | D7: Vodohospodářské sdružení Turnov | H7: IČO : | I7: 49295934
D8: Antonína Dvořáka 287 | H8: DIČ : | I8: CZ49295934
C9: 51101 | D9: Turnov
C11: Zhotovitel : | D11: . | H11: IČO :
H12: DIČ :
C14: Za zhotovitele : | H14: Za objednatele :
C16: _______________ | H16: _______________
J18: Rozpočtové náklady
B19: Základ pro DPH | D19: 15 | E19: % | I19: =ROUND(G35,0) -> 0
B20: DPH | D20: =SazbaDPH1 -> 15 | E20: % | I20: =ROUND(I19*D20/100,0) -> 0
B21: Základ pro DPH | D21: 21 | E21: % | I21: =ROUND(H35,0) -> 500000
B22: DPH | D22: =SazbaDPH2 -> 21 | E22: % | I22: =ROUND(I21*D21/100,0) -> 105000
B23: Cena celkem za stavbu | I23: =SUM(I19:I22) -> 605000
B26: Rekapitulace stavebních objektů a provozních souborů
B28: Číslo a název objektu / provozního souboru | F28: Cena celkem | G28: =CONCATENATE("Základ DPH ",SazbaDPH1," %") -> Základ DPH 15 % | H28: =CONCATENATE("Základ DPH ",SazbaDPH2," %") -> Základ DPH 21 % | I28: DPH celkem | J28: %
B29: 101.1 | C29: Komunikace - 1.část | F29: =G29+H29+I29 -> 0 | G29: 0 | H29: =SUM(H40:H41) -> 0 | I29: =(G29*SazbaDPH1)/100+(H29*SazbaDPH2)/100 -> 0 | J29: =IF(CelkemObjekty=0,"",F29/CelkemObjekty*100) -> 0
B30: 301.1 | C30: Vodovod - 1.část | F30: =G30+H30+I30 -> 0 | G30: 0 | H30: =SUM(H42) -> 0 | I30: 0 | J30: 0
B31: 301.2 | C31: Vodovod - 2.část | F31: 0 | G31: 0 | H31: =SUM(H43) -> 0 | I31: 0 | J31: 0
B32: 302.1 | C32: Dešťová kanalizace - 1.část | F32: 0 | G32: 0 | H32: =SUM(H44) -> 0 | I32: 0 | J32: 0
B33: OaVNS | C33: Ostatní a vedlejší náklady stavby | F33: 0 | G33: 0 | H33: =SUM(OaVNS!G31) -> 0 | I33: 0 | J33: 0
B34: PR | C34: Povinná rezerva | F34: 605000 | G34: 0 | H34: 500000 | I34: 105000 | J34: 100
B35: Celkem za stavbu | F35: =SUM(F29:F34) -> 605000 | G35: =SUM(G29:G34) -> 0 | H35: =SUM(H29:H34) -> 500000 | I35: =SUM(I29:I34) -> 105000 | J35: =IF(CelkemObjekty=0,"",F35/CelkemObjekty*100) -> 100
B37: Rekapitulace stavebních rozpočtů
B39: Číslo objektu | C39: Číslo a název rozpočtu | F39: Cena celkem | G39: =CONCATENATE("Základ DPH ",SazbaDPH1," %") -> Základ DPH 15 % | H39: =CONCATENATE("Základ DPH ",SazbaDPH2," %") -> Základ DPH 21 % | I39: DPH celkem | J39: %
B40: 101.1 | C40: 3331/101.1 Komunikace - 1.část - KSSLK 28211 | F40: =G40+H40+I40 -> 0 | G40: 0 | H40: =SUM('101.1 3331101.1 KL'!C23) -> 0 | I40: =(G40*SazbaDPH1)/100+(H40*SazbaDPH2)/100 -> 0 | J40: =IF(CelkemObjekty=0,"",F40/CelkemObjekty*100) -> 0
B41: 101.1 | C41: 3331/101.2 Komunikace - 1.část - Místní komunikace | F41: =G41+H41+I41 -> 0 | G41: 0 | H41: =SUM('101.1 3331101.2 KL'!C23) -> 0 | I41: 0 | J41: 0
B42: 301.1 | C42: 3332/301.1 Vodovod - 1.část | F42: 0 | G42: 0 | H42: =SUM('301.1 3332301.1 KL'!C23) -> 0 | I42: 0 | J42: 0
B43: 301.2 | C43: 3332/301.2 Vodovod - 2.část | F43: 0 | G43: 0 | H43: =SUM('301.2 3332301.2 KL'!C23) -> 0 | I43: 0 | J43: 0
B44: 302.1 | C44: 3332/302.1 Dešťová kanalizace - 1.část | F44: 0 | G44: 0 | H44: =SUM('302.1 3332302.1 KL'!C23) -> 0 | I44: 0 | J44: 0
B45: Celkem za stavbu | F45: =SUM(F40:F44) -> 0 | G45: =SUM(G40:G44) -> 0 | H45: =SUM(H40:H44) -> 0 | I45: =SUM(I40:I44) -> 0 | J45: =IF(CelkemObjekty=0,"",F45/CelkemObjekty*100) -> 0

Sheet 101.1 3331101.1 KL
A1: POLOŽKOVÝ ROZPOČET
A2: Rozpočet | C2: 3331/101.1 | D2: Komunikace - 1.část - KSSLK 28211 | F2: JKSO | G2: 822.24
A4: Objekt | F4: SKP
A5: 101.1 | C5: Komunikace - 1.část | F5: Měrná jednotka | G5: m2
A6: Stavba | F6: Počet jednotek | G6: 0
A7: 3332 | C7: Obnova vodovodu a kanalizace v Obci Loučky | F7: Náklady na m.j. | G7: =IF(G6=0,,ROUND((F30+F32)/G6,1)) -> 0
A8: Projektant | C8: LK PROJEKT s.r.o. | F8: Typ rozpočtu
A9: Zpracovatel projektu
A10: Objednatel | C10: Vodohospodářské sdružení Turnov
A11: Dodavatel | C11: . | F11: Zakázkové číslo
A12: Rozpočtoval | F12: Počet listů
A13: ROZPOČTOVÉ NÁKLADY
A14: Základní rozpočtové náklady
B15: HSV celkem | C15: ='101.1 3331101.1 Rek'!E14 -> 0
A16: Z | B16: PSV celkem | C16: ='101.1 3331101.1 Rek'!F14 -> 0
A17: R | B17: M práce celkem | C17: ='101.1 3331101.1 Rek'!H14 -> 0
A18: N | B18: M dodávky celkem | C18: ='101.1 3331101.1 Rek'!G14 -> 0
A19: ZRN celkem | C19: =SUM(C15:C18) -> 0
A21: HZS | C21: ='101.1 3331101.1 Rek'!I14 -> 0
A22: ZRN+HZS | C22: =C19+C21 -> 0
A23: ZRN+ost.náklady+HZS | C23: =C22+G23 -> 0
A24: Vypracoval | D24: Za zhotovitele | F24: Za objednatele
A25: Jméno : | D25: Jméno : | F25: Jméno :
A26: Datum : | D26: Datum : | F26: Datum :
A28: Podpis : | D28: Podpis: | F28: Podpis:
A30: Základ pro DPH | C30: 21 | D30: % | F30: =C23-F32 -> 0
A31: DPH | C31: =C30 -> 21 | D31: % | F31: =ROUND(PRODUCT(F30,C31/100),0) -> 0
A32: Základ pro DPH | C32: 0 | D32: % | F32: 0
A33: DPH | C33: =C32 -> 0 | D33: % | F33: =ROUND(PRODUCT(F32,C33/100),0) -> 0
A34: CENA ZA OBJEKT CELKEM | F34: =ROUND(SUM(F30:F33),0) -> 0
A36: Poznámka :

Sheet 101.1 3331101.1 Rek
A1: Stavba : | C1: 3332 Obnova vodovodu a kanalizace v Obci Loučky | G1: Rozpočet : | H1: 3331/101.1
A2: Objekt : | C2: 101.1 Komunikace - 1.část | G2: Komunikace - 1.část - KSSLK 28211
A4: REKAPITULACE STAVEBNÍCH DÍLŮ
B6: Stavební díl | E6: HSV | F6: PSV | G6: Dodávka | H6: Montáž | I6: HZS
A7: ='101.1 3331101.1 Pol'!B7 -> 1 | B7: ='101.1 3331101.1 Pol'!C7 -> Zemní práce | E7: ='101.1 3331101.1 Pol'!BA66 -> 0 | F7: ='101.1 3331101.1 Pol'!BB66 -> 0 | G7: ='101.1 3331101.1 Pol'!BC66 -> 0 | H7: ='101.1 3331101.1 Pol'!BD66 -> 0 | I7: ='101.1 3331101.1 Pol'!BE66 -> 0
A8: ='101.1 3331101.1 Pol'!B67 -> 2 | B8: ='101.1 3331101.1 Pol'!C67 -> Základy a zvláštní zakládání | E8: ='101.1 3331101.1 Pol'!BA74 -> 0 | F8: ='101.1 3331101.1 Pol'!BB74 -> 0 | G8: ='101.1 3331101.1 Pol'!BC74 -> 0 | H8: ='101.1 3331101.1 Pol'!BD74 -> 0 | I8: ='101.1 3331101.1 Pol'!BE74 -> 0
A9: ='101.1 3331101.1 Pol'!B75 -> 5 | B9: ='101.1 3331101.1 Pol'!C75 -> Komunikace | E9: ='101.1 3331101.1 Pol'!BA114 -> 0 | F9: ='101.1 3331101.1 Pol'!BB114 -> 0 | G9: ='101.1 3331101.1 Pol'!BC114 -> 0 | H9: ='101.1 3331101.1 Pol'!BD114 -> 0 | I9: ='101.1 3331101.1 Pol'!BE114 -> 0
A10: ='101.1 3331101.1 Pol'!B115 -> 91 | B10: ='101.1 3331101.1 Pol'!C115 -> Doplňující práce na komunikaci | E10: ='101.1 3331101.1 Pol'!BA131 -> 0 | F10: ='101.1 3331101.1 Pol'!BB131 -> 0 | G10: ='101.1 3331101.1 Pol'!BC131 -> 0 | H10: ='101.1 3331101.1 Pol'!BD131 -> 0 | I10: ='101.1 3331101.1 Pol'!BE131 -> 0
A11: ='101.1 3331101.1 Pol'!B132 -> 93 | B11: ='101.1 3331101.1 Pol'!C132 -> Dokončovací práce inženýrských staveb | E11: ='101.1 3331101.1 Pol'!BA140 -> 0 | F11: ='101.1 3331101.1 Pol'!BB140 -> 0 | G11: ='101.1 3331101.1 Pol'!BC140 -> 0 | H11: ='101.1 3331101.1 Pol'!BD140 -> 0 | I11: ='101.1 3331101.1 Pol'!BE140 -> 0
A12: ='101.1 3331101.1 Pol'!B141 -> 97 | B12: ='101.1 3331101.1 Pol'!C141 -> Prorážení otvorů | E12: ='101.1 3331101.1 Pol'!BA145 -> 0 | F12: ='101.1 3331101.1 Pol'!BB145 -> 0 | G12: ='101.1 3331101.1 Pol'!BC145 -> 0 | H12: ='101.1 3331101.1 Pol'!BD145 -> 0 | I12: ='101.1 3331101.1 Pol'!BE145 -> 0
A13: ='101.1 3331101.1 Pol'!B146 -> 99 | B13: ='101.1 3331101.1 Pol'!C146 -> Staveništní přesun hmot | E13: ='101.1 3331101.1 Pol'!BA148 -> 0 | F13: ='101.1 3331101.1 Pol'!BB148 -> 0 | G13: ='101.1 3331101.1 Pol'!BC148 -> 0 | H13: ='101.1 3331101.1 Pol'!BD148 -> 0 | I13: ='101.1 3331101.1 Pol'!BE148 -> 0
B14: CELKEM OBJEKT | E14: =SUM(E7:E13) -> 0 | F14: =SUM(F7:F13) -> 0 | G14: =SUM(G7:G13) -> 0 | H14: =SUM(H7:H13) -> 0 | I14: =SUM(I7:I13) -> 0

Sheet 101.1 3331101.1 Pol
A1: Položkový rozpočet
A3: Stavba : | C3: 3332 Obnova vodovodu a kanalizace v Obci Loučky | E3: Rozpočet: | F3: ='101.1 3331101.1 Rek'!H1 -> 3331/101.1
A4: Objekt : | C4: 101.1 Komunikace - 1.část | E4: ='101.1 3331101.1 Rek'!G2 -> Komunikace - 1.část - KSSLK 28211
A6: P.č. | B6: Číslo položky | C6: Název položky | D6: MJ | E6: množství | F6: cena / MJ | G6: celkem (Kč) | H6: Jednotková hmotnost | I6: Celková hmotnost | J6: Jednotková dem.hmot. | K6: Celková dem.hmot.
A7: Díl: | B7: 1 | C7: Zemní práce | O7: 1
A8: 1 | B8: 113106121R00 | C8: Rozebrání dlažeb z betonových dlaždic na sucho | D8: m2 | E8: 68.5 | G8: =E8*F8 -> 0 | H8: 0 | I8: =E8*H8 -> 0 | J8: -0.138 | K8: =E8*J8 -> -9.453 | O8: 2 | AA8: 1 | AB8: 1 | AC8: 1 | AZ8: 1 | BA8: =IF(AZ8=1,G8,0) -> 0 | BB8: =IF(AZ8=2,G8,0) -> 0 | BC8: =IF(AZ8=3,G8,0) -> 0 | BD8: =IF(AZ8=4,G8,0) -> 0 | BE8: =IF(AZ8=5,G8,0) -> 0 | CA8: 1 | CB8: 1
C9: Stávající dlážděné chodníky - betonová dlažba:68,50 | E9: 68.5 | M9: Stávající dlážděné chodníky - betonová dlažba:68,50
A10: 2 | B10: 113106231R00 | C10: Rozebrání dlažeb ze zámkové dlažby v kamenivu | D10: m2 | E10: 125 | G10: =E10*F10 -> 0 | H10: 0 | I10: =E10*H10 -> 0 | J10: -0.225 | K10: =E10*J10 -> -28.125 | O10: 2 | AA10: 1 | AB10: 1 | AC10: 1 | AZ10: 1 | BA10: =IF(AZ10=1,G10,0) -> 0 | BB10: =IF(AZ10=2,G10,0) -> 0 | BC10: =IF(AZ10=3,G10,0) -> 0 | BD10: =IF(AZ10=4,G10,0) -> 0 | BE10: =IF(AZ10=5,G10,0) -> 0 | CA10: 1 | CB10: 1
C11: Stávající dlážděné chodníky - zámková dlažba:125,00 | E11: 125 | M11: Stávající dlážděné chodníky - zámková dlažba:125,00
A12: 3 | B12: 113107625R00 | C12: Odstranění podkladu nad 50 m2,kam.drcené tl.25 cm | D12: m2 | E12: 3566 | G12: =E12*F12 -> 0 | H12: 0 | I12: =E12*H12 -> 0 | J12: -0.55 | K12: =E12*J12 -> -1961.3 | O12: 2 | AA12: 1 | AB12: 1 | AC12: 1 | AZ12: 1 | BA12: =IF(AZ12=1,G12,0) -> 0 | BB12: =IF(AZ12=2,G12,0) -> 0 | BC12: =IF(AZ12=3,G12,0) -> 0 | BD12: =IF(AZ12=4,G12,0) -> 0 | BE12: =IF(AZ12=5,G12,0) -> 0 | CA12: 1 | CB12: 1
C13: Plocha komunikace KSS LK 28211:3566,00 | E13: 3566 | M13: Plocha komunikace KSS LK 28211:3566,00
A14: 4 | B14: 113107640R00 | C14: Odstranění podkladu nad 50 m2,kam.drcené tl.40 cm | D14: m2 | E14: 857.24 | G14: =E14*F14 -> 0 | H14: 0 | I14: =E14*H14 -> 0 | J14: -0.88 | K14: =E14*J14 -> -754.3712 | O14: 2 | AA14: 1 | AB14: 1 | AC14: 1 | AZ14: 1 | BA14: =IF(AZ14=1,G14,0) -> 0 | BB14: =IF(AZ14=2,G14,0) -> 0 | BC14: =IF(AZ14=3,G14,0) -> 0 | BD14: =IF(AZ14=4,G14,0) -> 0 | BE14: =IF(AZ14=5,G14,0) -> 0 | CA14: 1 | CB14: 1
C15: Materiál pro použití do štěrkové vrstvy komunikace o objemu cca 80%. 20% odvoz na skládku. | L15: Materiál pro použití do štěrkové vrstvy komunikace o objemu cca 80%. 20% odvoz na skládku. | O15: 3
C16: Odstranění provizorního zásypu rýh VH sítí v komunikaci:857,24 | E16: 857.24 | M16: Odstranění provizorního zásypu rýh VH sítí v komunikaci:857,24
A17: 5 | B17: 113151350R00 | C17: Fréz.živič.krytu nad 500 m2, s překážkami, tl.15cm | D17: m2 | E17: 3566 | G17: =E17*F17 -> 0 | H17: 0 | I17: =E17*H17 -> 0 | J17: -0.264 | K17: =E17*J17 -> -941.424 | O17: 2 | AA17: 1 | AB17: 1 | AC17: 1 | AZ17: 1 | BA17: =IF(AZ17=1,G17,0) -> 0 | BB17: =IF(AZ17=2,G17,0) -> 0 | BC17: =IF(AZ17=3,G17,0) -> 0 | BD17: =IF(AZ17=4,G17,0) -> 0 | BE17: =IF(AZ17=5,G17,0) -> 0 | CA17: 1 | CB17: 1
C18: Průměrná tl. asfaltové vrstvy 12 cm | L18: Průměrná tl. asfaltové vrstvy 12 cm | O18: 3
C19: Je počítáno nejdříve frézování pro rýhy VS sítí a následné dofrézování do celkové plochy. Záleží ale na zvolené technologii postupu výstavby zhotovitelem. | L19: Je počítáno nejdříve frézování pro rýhy VS sítí a následné dofrézování do celkové plochy. Záleží ale na zvolené technologii postupu výstavby zhotovitelem. | O19: 3
C20: Plocha komunikace KSS LK 28211:3566,00 | E20: 3566 | M20: Plocha komunikace KSS LK 28211:3566,00
A21: 6 | B21: 113202111R00 | C21: Vytrhání obrub obrubníků silničních | D21: m | E21: 435 | G21: =E21*F21 -> 0 | H21: 0 | I21: =E21*H21 -> 0 | J21: -0.27 | K21: =E21*J21 -> -117.45 | O21: 2 | AA21: 1 | AB21: 1 | AC21: 1 | AZ21: 1 | BA21: =IF(AZ21=1,G21,0) -> 0 | BB21: =IF(AZ21=2,G21,0) -> 0 | BC21: =IF(AZ21=3,G21,0) -> 0 | BD21: =IF(AZ21=4,G21,0) -> 0 | BE21: =IF(AZ21=5,G21,0) -> 0 | CA21: 1 | CB21: 1
C22: Je uvažováno s ponecháním původních znovu osazovaných obrubníků podél komunikace a s odvozem nepoužitelných na skládku. | L22: Je uvažováno s ponecháním původních znovu osazovaných obrubníků podél komunikace a s odvozem nepoužitelných na skládku. | O22: 3
C23: Komunikace KSS LK 28211: | E23: 0 | M23: Komunikace KSS LK 28211:
C24: Původní obrubníky pro opětovné použití - 30% :870,00*0,3 | E24: 261 | M24: Původní obrubníky pro opětovné použití - 30% :870,00*0,3
C25: Původní obrubníky - likvidace - 20%:870,00*0,20 | E25: 174 | M25: Původní obrubníky - likvidace - 20%:870,00*0,20
A26: 7 | B26: 113203111R00 | C26: Vytrhání obrub z dlažebních kostek | D26: m | E26: 280 | G26: =E26*F26 -> 0 | H26: 0 | I26: =E26*H26 -> 0 | J26: -0.115 | K26: =E26*J26 -> -32.2 | O26: 2 | AA26: 1 | AB26: 1 | AC26: 1 | AZ26: 1 | BA26: =IF(AZ26=1,G26,0) -> 0 | BB26: =IF(AZ26=2,G26,0) -> 0 | BC26: =IF(AZ26=3,G26,0) -> 0 | BD26: =IF(AZ26=4,G26,0) -> 0 | BE26: =IF(AZ26=5,G26,0) -> 0 | CA26: 1 | CB26: 1
C27: Komunikace KSS LK 28211: | E27: 0 | M27: Komunikace KSS LK 28211:
C28: Původní obrubníky z velkých žulových kostet:280,00 | E28: 280 | M28: Původní obrubníky z velkých žulových kostet:280,00
A29: 8 | B29: 121100002RAA | C29: Sejmutí ornice a uložení na deponii zpětný přesun, rozprostření v tl. 20 cm, osetí | D29: m3 | E29: 56.55 | G29: =E29*F29 -> 0 | H29: 0 | I29: =E29*H29 -> 0 | J29: 0 | K29: =E29*J29 -> 0 | O29: 2 | AA29: 1 | AB29: 1 | AC29: 1 | AZ29: 1 | BA29: =IF(AZ29=1,G29,0) -> 0 | BB29: =IF(AZ29=2,G29,0) -> 0 | BC29: =IF(AZ29=3,G29,0) -> 0 | BD29: =IF(AZ29=4,G29,0) -> 0 | BE29: =IF(AZ29=5,G29,0) -> 0 | CA29: 1 | CB29: 1
C30: Podél komunikace u obrubníků:870,00*0,65*0,50*0,20 | E30: 56.55 | M30: Podél komunikace u obrubníků:870,00*0,65*0,50*0,20
A31: 9 | B31: 122202202R00 | C31: Odkopávky pro silnice v hor. 3 do 1000 m3 | D31: m3 | E31: 205.2 | G31: =E31*F31 -> 0 | H31: 0 | I31: =E31*H31 -> 0 | J31: 0 | K31: =E31*J31 -> 0 | O31: 2 | AA31: 1 | AB31: 1 | AC31: 1 | AZ31: 1 | BA31: =IF(AZ31=1,G31,0) -> 0 | BB31: =IF(AZ31=2,G31,0) -> 0 | BC31: =IF(AZ31=3,G31,0) -> 0 | BD31: =IF(AZ31=4,G31,0) -> 0 | BE31: =IF(AZ31=5,G31,0) -> 0 | CA31: 1 | CB31: 1
C32: Částečná sanace pláně komunikace:765,00*0,20 | E32: 153 | M32: Částečná sanace pláně komunikace:765,00*0,20
C33: Pro osazení kamenných obrubníků: | E33: 0 | M33: Pro osazení kamenných obrubníků:
C34: Nové obrubníky - 50% doplnění:870,00*0,5*0,12 | E34: 52.2 | M34: Nové obrubníky - 50% doplnění:870,00*0,5*0,12
A35: 10 | B35: 122202209R00 | C35: Příplatek za lepivost - odkop. pro silnice v hor.3 | D35: m3 | E35: 102.6 | G35: =E35*F35 -> 0 | H35: 0 | I35: =E35*H35 -> 0 | J35: 0 | K35: =E35*J35 -> 0 | O35: 2 | AA35: 1 | AB35: 1 | AC35: 1 | AZ35: 1 | BA35: =IF(AZ35=1,G35,0) -> 0 | BB35: =IF(AZ35=2,G35,0) -> 0 | BC35: =IF(AZ35=3,G35,0) -> 0 | BD35: =IF(AZ35=4,G35,0) -> 0 | BE35: =IF(AZ35=5,G35,0) -> 0 | CA35: 1 | CB35: 1
C36: Částečná sanace pláně komunikace:765,00*0,20*0,5 | E36: 76.5 | M36: Částečná sanace pláně komunikace:765,00*0,20*0,5
C37: Pro osazení kamenných obrubníků: | E37: 0 | M37: Pro osazení kamenných obrubníků:
C38: Nové obrubníky - 50% doplnění:870,00*0,5*0,12*0,5 | E38: 26.1 | M38: Nové obrubníky - 50% doplnění:870,00*0,5*0,12*0,5
A39: 11 | B39: 132201110R00 | C39: Hloubení rýh š.do 60 cm v hor.3 do 50 m3, STROJNĚ | D39: m3 | E39: 65.25 | G39: =E39*F39 -> 0 | H39: 0 | I39: =E39*H39 -> 0 | J39: 0 | K39: =E39*J39 -> 0 | O39: 2 | AA39: 1 | AB39: 1 | AC39: 1 | AZ39: 1 | BA39: =IF(AZ39=1,G39,0) -> 0 | BB39: =IF(AZ39=2,G39,0) -> 0 | BC39: =IF(AZ39=3,G39,0) -> 0 | BD39: =IF(AZ39=4,G39,0) -> 0 | BE39: =IF(AZ39=5,G39,0) -> 0 | CA39: 1 | CB39: 1
C40: Položka obsahuje hloubení rýh traktorbagrem, naložení výkopku na dopravní prostředek pro svislé, nebo vodorovné přemístění, popř. přemístění výkopku do 3 m (po povrchu území), případné zajištění rypadel polštáři, udržování pracoviště a ochranu výkopiště proti stékání srážkové vody z okolního terénu i s jejím odvodněním, nebo odvedením, přesekání a odstranění kořenů ve výkopišti, odstranění napadávek, urovnání dna výkopu. | L40: Položka obsahuje hloubení rýh traktorbagrem, naložení výkopku na dopravní prostředek pro svislé, nebo vodorovné přemístění, popř. přemístění výkopku do 3 m (po povrchu území), případné zajištění rypadel polštáři, udržování pracoviště a ochranu výkopiště proti stékání srážkové vody z okolního terénu i s jejím odvodněním, nebo odvedením, přesekání a odstranění kořenů ve výkopišti, odstranění napadávek, urovnání dna výkopu. | O40: 3
C41: Pro drenáže:870,00*0,25*0,30 | E41: 65.25 | M41: Pro drenáže:870,00*0,25*0,30
A42: 12 | B42: 132201119R00 | C42: Přípl.za lepivost,hloubení rýh 60 cm,hor.3,STROJNĚ | D42: m3 | E42: 32.625 | G42: =E42*F42 -> 0 | H42: 0 | I42: =E42*H42 -> 0 | J42: 0 | K42: =E42*J42 -> 0 | O42: 2 | AA42: 1 | AB42: 1 | AC42: 1 | AZ42: 1 | BA42: =IF(AZ42=1,G42,0) -> 0 | BB42: =IF(AZ42=2,G42,0) -> 0 | BC42: =IF(AZ42=3,G42,0) -> 0 | BD42: =IF(AZ42=4,G42,0) -> 0 | BE42: =IF(AZ42=5,G42,0) -> 0 | CA42: 1 | CB42: 1
C43: Pro drenáže:870,00*0,25*0,30*0,5 | E43: 32.625 | M43: Pro drenáže:870,00*0,25*0,30*0,5
A44: 13 | B44: 162701105RSZ | C44: Vodorovné přemístění výkopku z hor.1-4 na skládku zhotovitele | D44: m3 | E44: 270.45 | G44: =E44*F44 -> 0 | H44: 0 | I44: =E44*H44 -> 0 | J44: 0 | K44: =E44*J44 -> 0 | O44: 2 | AA44: 1 | AB44: 1 | AC44: 1 | AZ44: 1 | BA44: =IF(AZ44=1,G44,0) -> 0 | BB44: =IF(AZ44=2,G44,0) -> 0 | BC44: =IF(AZ44=3,G44,0) -> 0 | BD44: =IF(AZ44=4,G44,0) -> 0 | BE44: =IF(AZ44=5,G44,0) -> 0 | CA44: 1 | CB44: 1
C45: Z odkopávek: | E45: 0 | M45: Z odkopávek:
C46: Částečná sanace pláně komunikace:765,00*0,20 | E46: 153 | M46: Částečná sanace pláně komunikace:765,00*0,20
C47: Pro osazení kamenných obrubníků: | E47: 0 | M47: Pro osazení kamenných obrubníků:
C48: Nové obrubníky - 50% doplnění:870,00*0,5*0,12 | E48: 52.2 | M48: Nové obrubníky - 50% doplnění:870,00*0,5*0,12
C49: Z rýh: | E49: 0 | M49: Z rýh:
C50: Pro drenáže:870,00*0,25*0,30 | E50: 65.25 | M50: Pro drenáže:870,00*0,25*0,30
A51: 14 | B51: 181101102R00 | C51: Úprava pláně v zářezech v hor. 1-4, se zhutněním | D51: m2 | E51: 3827 | G51: =E51*F51 -> 0 | H51: 0 | I51: =E51*H51 -> 0 | J51: 0 | K51: =E51*J51 -> 0 | O51: 2 | AA51: 1 | AB51: 1 | AC51: 1 | AZ51: 1 | BA51: =IF(AZ51=1,G51,0) -> 0 | BB51: =IF(AZ51=2,G51,0) -> 0 | BC51: =IF(AZ51=3,G51,0) -> 0 | BD51: =IF(AZ51=4,G51,0) -> 0 | BE51: =IF(AZ51=5,G51,0) -> 0 | CA51: 1 | CB51: 1
C52: PLocha komunikace KSS LK 28211:3566,00 | E52: 3566 | M52: PLocha komunikace KSS LK 28211:3566,00
C53: Rozšíření pod kamenné obrubníky a vjezdy:870,00*0,30 | E53: 261 | M53: Rozšíření pod kamenné obrubníky a vjezdy:870,00*0,30
A54: 15 | B54: 199000002R00 | C54: Poplatek za skládku horniny 1- 4 č. dle katal. odpadů 17 05 04 | D54: m3 | E54: 270.45 | G54: =E54*F54 -> 0 | H54: 0 | I54: =E54*H54 -> 0 | J54: 0 | K54: =E54*J54 -> 0 | O54: 2 | AA54: 1 | AB54: 1 | AC54: 1 | AZ54: 1 | BA54: =IF(AZ54=1,G54,0) -> 0 | BB54: =IF(AZ54=2,G54,0) -> 0 | BC54: =IF(AZ54=3,G54,0) -> 0 | BD54: =IF(AZ54=4,G54,0) -> 0 | BE54: =IF(AZ54=5,G54,0) -> 0 | CA54: 1 | CB54: 1
C55: Z odkopávek: | E55: 0 | M55: Z odkopávek:
C56: Částečná sanace pláně komunikace:765,00*0,20 | E56: 153 | M56: Částečná sanace pláně komunikace:765,00*0,20
C57: Pro osazení kamenných obrubníků: | E57: 0 | M57: Pro osazení kamenných obrubníků:
C58: Nové obrubníky - 50% doplnění:870,00*0,5*0,12 | E58: 52.2 | M58: Nové obrubníky - 50% doplnění:870,00*0,5*0,12
C59: Z rýh: | E59: 0 | M59: Z rýh:
C60: Pro drenáže:870,00*0,25*0,30 | E60: 65.25 | M60: Pro drenáže:870,00*0,25*0,30
A61: 16 | B61: 979082113RSZ | C61: Vodorovná doprava suti po suchu na skládku zhotovitele | D61: t | E61: 3137.9562 | G61: =E61*F61 -> 0 | H61: 0 | I61: =E61*H61 -> 0 | J61: 0 | K61: =E61*J61 -> 0 | O61: 2 | AA61: 1 | AB61: 1 | AC61: 1 | AZ61: 1 | BA61: =IF(AZ61=1,G61,0) -> 0 | BB61: =IF(AZ61=2,G61,0) -> 0 | BC61: =IF(AZ61=3,G61,0) -> 0 | BD61: =IF(AZ61=4,G61,0) -> 0 | BE61: =IF(AZ61=5,G61,0) -> 0 | CA61: 1 | CB61: 1
A62: 17 | B62: 979089001R00 | C62: Poplatek za skládku stavební suti štěrky z komunikací, skupina odpadu 010408 | D62: t | E62: 2112.1742 | G62: =E62*F62 -> 0 | H62: 0 | I62: =E62*H62 -> 0 | J62: 0 | K62: =E62*J62 -> 0 | O62: 2 | AA62: 1 | AB62: 1 | AC62: 1 | AZ62: 1 | BA62: =IF(AZ62=1,G62,0) -> 0 | BB62: =IF(AZ62=2,G62,0) -> 0 | BC62: =IF(AZ62=3,G62,0) -> 0 | BD62: =IF(AZ62=4,G62,0) -> 0 | BE62: =IF(AZ62=5,G62,0) -> 0 | CA62: 1 | CB62: 1
A63: 18 | B63: 979990103R00 | C63: Poplatek za skládku stavební suti beton, kamenné obruby,... skupina odpadu 170101 | D63: t | E63: 84.558 | G63: =E63*F63 -> 0 | H63: 0 | I63: =E63*H63 -> 0 | J63: 0 | K63: =E63*J63 -> 0 | O63: 2 | AA63: 1 | AB63: 1 | AC63: 1 | AZ63: 1 | BA63: =IF(AZ63=1,G63,0) -> 0 | BB63: =IF(AZ63=2,G63,0) -> 0 | BC63: =IF(AZ63=3,G63,0) -> 0 | BD63: =IF(AZ63=4,G63,0) -> 0 | BE63: =IF(AZ63=5,G63,0) -> 0 | CA63: 1 | CB63: 1
A64: 19 | B64: 979999995R00 | C64: Poplatek za reciklaci asfaltu, kusovost do 1600cm2 skupina 170302 | D64: t | E64: 941.424 | G64: =E64*F64 -> 0 | H64: 0 | I64: =E64*H64 -> 0 | J64: 0 | K64: =E64*J64 -> 0 | O64: 2 | AA64: 1 | AB64: 1 | AC64: 1 | AZ64: 1 | BA64: =IF(AZ64=1,G64,0) -> 0 | BB64: =IF(AZ64=2,G64,0) -> 0 | BC64: =IF(AZ64=3,G64,0) -> 0 | BD64: =IF(AZ64=4,G64,0) -> 0 | BE64: =IF(AZ64=5,G64,0) -> 0 | CA64: 1 | CB64: 1
C65: Položka je určena pro suť o velikosti kusu do 30x30 cm nebo frézovaný asfalt(technologický materiál určený k recyklaci). | L65: Položka je určena pro suť o velikosti kusu do 30x30 cm nebo frézovaný asfalt(technologický materiál určený k recyklaci). | O65: 3
B66: Celkem za | C66: 1 Zemní práce | G66: =SUM(G7:G65) -> 0 | I66: =SUM(I7:I65) -> 0 | K66: =SUM(K7:K65) -> -3844.3232 | O66: 4 | BA66: =SUM(BA7:BA65) -> 0 | BB66: =SUM(BB7:BB65) -> 0 | BC66: =SUM(BC7:BC65) -> 0 | BD66: =SUM(BD7:BD65) -> 0 | BE66: =SUM(BE7:BE65) -> 0
A67: Díl: | B67: 2 | C67: Základy a zvláštní zakládání | O67: 1
A68: 20 | B68: 212810010RAC | C68: Trativody z PVC drenážních flexibilních trubek lože štěrkopísek a obsyp kamenivo, trubky d 100 mm | D68: m | E68: 1220 | G68: =E68*F68 -> 0 | H68: 0.43651 | I68: =E68*H68 -> 532.5422 | J68: 0 | K68: =E68*J68 -> 0 | O68: 2 | AA68: 1 | AB68: 1 | AC68: 1 | AZ68: 1 | BA68: =IF(AZ68=1,G68,0) -> 0 | BB68: =IF(AZ68=2,G68,0) -> 0 | BC68: =IF(AZ68=3,G68,0) -> 0 | BD68: =IF(AZ68=4,G68,0) -> 0 | BE68: =IF(AZ68=5,G68,0) -> 0 | CA68: 1 | CB68: 1
C69: V komunikaci se zaústěním do UV - DN100:610,00*2 | E69: 1220 | M69: V komunikaci se zaústěním do UV - DN100:610,00*2
A70: 21 | B70: 289970112R00 | C70: Vrstva geotextilie Geofiltex 500g/m2 | D70: m2 | E70: 1503.6 | G70: =E70*F70 -> 0 | H70: 0.0005 | I70: =E70*H70 -> 0.7518 | J70: 0 | K70: =E70*J70 -> 0 | O70: 2 | AA70: 1 | AB70: 1 | AC70: 1 | AZ70: 1 | BA70: =IF(AZ70=1,G70,0) -> 0 | BB70: =IF(AZ70=2,G70,0) -> 0 | BC70: =IF(AZ70=3,G70,0) -> 0 | BD70: =IF(AZ70=4,G70,0) -> 0 | BE70: =IF(AZ70=5,G70,0) -> 0 | CA70: 1 | CB70: 1
C71: Geotextílie tkaná z polyprop. s funkcí výztužnou, separační a filtrační s min. plošnou hmotností 500 g/m2. Pevnost v obou směrech min. 60kN/m2 | L71: Geotextílie tkaná z polyprop. s funkcí výztužnou, separační a filtrační s min. plošnou hmotností 500 g/m2. Pevnost v obou směrech min. 60kN/m2 | O71: 3
C72: Celá plocha sanace pláně :765,00*1,2 | E72: 918 | M72: Celá plocha sanace pláně :765,00*1,2
C73: Plochy pro překrytí denáží:610,00*0,80*1,2 | E73: 585.6 | M73: Plochy pro překrytí denáží:610,00*0,80*1,2
B74: Celkem za | C74: 2 Základy a zvláštní zakládání | G74: =SUM(G67:G73) -> 0 | I74: =SUM(I67:I73) -> 533.294 | K74: =SUM(K67:K73) -> 0 | O74: 4 | BA74: =SUM(BA67:BA73) -> 0 | BB74: =SUM(BB67:BB73) -> 0 | BC74: =SUM(BC67:BC73) -> 0 | BD74: =SUM(BD67:BD73) -> 0 | BE74: =SUM(BE67:BE73) -> 0
A75: Díl: | B75: 5 | C75: Komunikace | O75: 1
A76: 22 | B76: 564761111R00 | C76: Podklad z kameniva drceného vel.32-63 mm,tl. 20 cm | D76: m2 | E76: 765 | G76: =E76*F76 -> 0 | H76: 0.43 | I76: =E76*H76 -> 328.95 | J76: 0 | K76: =E76*J76 -> 0 | O76: 2 | AA76: 1 | AB76: 1 | AC76: 1 | AZ76: 1 | BA76: =IF(AZ76=1,G76,0) -> 0 | BB76: =IF(AZ76=2,G76,0) -> 0 | BC76: =IF(AZ76=3,G76,0) -> 0 | BD76: =IF(AZ76=4,G76,0) -> 0 | BE76: =IF(AZ76=5,G76,0) -> 0 | CA76: 1 | CB76: 1
C77: Částečná sanace pláně komunikace:765,00 | E77: 765 | M77: Částečná sanace pláně komunikace:765,00
A78: 23 | B78: 564851111RT2 | C78: Podklad ze štěrkodrti po zhutnění tloušťky 15 cm štěrkodrť frakce 0-32 mm | D78: m2 | E78: 3759.5 | G78: =E78*F78 -> 0 | H78: 0.378 | I78: =E78*H78 -> 1421.091 | J78: 0 | K78: =E78*J78 -> 0 | O78: 2 | AA78: 1 | AB78: 1 | AC78: 1 | AZ78: 1 | BA78: =IF(AZ78=1,G78,0) -> 0 | BB78: =IF(AZ78=2,G78,0) -> 0 | BC78: =IF(AZ78=3,G78,0) -> 0 | BD78: =IF(AZ78=4,G78,0) -> 0 | BE78: =IF(AZ78=5,G78,0) -> 0 | CA78: 1 | CB78: 1
C79: PLocha komunikace KSS LK 28211:3566,00 | E79: 3566 | M79: PLocha komunikace KSS LK 28211:3566,00
C80: Pod ZD:193,50 | E80: 193.5 | M80: Pod ZD:193,50
A81: 24 | B81: 564851111RT4 | C81: Podklad ze štěrkodrti po zhutnění tloušťky 15 cm štěrkodrť frakce 0-63 mm | D81: m2 | E81: 3827 | G81: =E81*F81 -> 0 | H81: 0.378 | I81: =E81*H81 -> 1446.606 | J81: 0 | K81: =E81*J81 -> 0 | O81: 2 | AA81: 1 | AB81: 1 | AC81: 1 | AZ81: 1 | BA81: =IF(AZ81=1,G81,0) -> 0 | BB81: =IF(AZ81=2,G81,0) -> 0 | BC81: =IF(AZ81=3,G81,0) -> 0 | BD81: =IF(AZ81=4,G81,0) -> 0 | BE81: =IF(AZ81=5,G81,0) -> 0 | CA81: 1 | CB81: 1
C82: PLocha komunikace KSS LK 28211:3566,00 | E82: 3566 | M82: PLocha komunikace KSS LK 28211:3566,00
C83: Rozšíření pod kamenné obrubníky a vjezdy:870,00*0,30 | E83: 261 | M83: Rozšíření pod kamenné obrubníky a vjezdy:870,00*0,30
A84: 25 | B84: 569741111R00 | C84: Zpevnění krajnic kamenivem drceným tl. 12 cm | D84: m2 | E84: 87.5 | G84: =E84*F84 -> 0 | H84: 0.23481 | I84: =E84*H84 -> 20.545875 | J84: 0 | K84: =E84*J84 -> 0 | O84: 2 | AA84: 1 | AB84: 1 | AC84: 1 | AZ84: 1 | BA84: =IF(AZ84=1,G84,0) -> 0 | BB84: =IF(AZ84=2,G84,0) -> 0 | BC84: =IF(AZ84=3,G84,0) -> 0 | BD84: =IF(AZ84=4,G84,0) -> 0 | BE84: =IF(AZ84=5,G84,0) -> 0 | CA84: 1 | CB84: 1
C85: Komunikace KSS LK 28211: | E85: 0 | M85: Komunikace KSS LK 28211:
C86: Dosypání krajnic mimo vjezdy a kamenné obrubníky:350,00*0,25 | E86: 87.5 | M86: Dosypání krajnic mimo vjezdy a kamenné obrubníky:350,00*0,25
A87: 26 | B87: 573111124R00 | C87: Postřik infiltrační, množství zbytkového asfaltového pojiva 1,00 kg/m2 | D87: m2 | E87: 3131 | G87: =E87*F87 -> 0 | H87: 0.00601 | I87: =E87*H87 -> 18.81731 | J87: 0 | K87: =E87*J87 -> 0 | O87: 2 | AA87: 1 | AB87: 0 | AC87: 0 | AZ87: 1 | BA87: =IF(AZ87=1,G87,0) -> 0 | BB87: =IF(AZ87=2,G87,0) -> 0 | BC87: =IF(AZ87=3,G87,0) -> 0 | BD87: =IF(AZ87=4,G87,0) -> 0 | BE87: =IF(AZ87=5,G87,0) -> 0 | CA87: 1 | CB87: 0
C88: Komunikace KSS LK 28211:3566,00 | E88: 3566 | M88: Komunikace KSS LK 28211:3566,00
C89: Odpočet čtyř linky podél obrubníků:-870,00*0,50 | E89: -435 | M89: Odpočet čtyř linky podél obrubníků:-870,00*0,50
A90: 27 | B90: 573231110R00 | C90: Postřik spojovací z KAE množství zbytkového asfaltu 0,3 kg/m2 | D90: m2 | E90: 3131 | G90: =E90*F90 -> 0 | H90: 0.0005 | I90: =E90*H90 -> 1.5655 | J90: 0 | K90: =E90*J90 -> 0 | O90: 2 | AA90: 1 | AB90: 1 | AC90: 1 | AZ90: 1 | BA90: =IF(AZ90=1,G90,0) -> 0 | BB90: =IF(AZ90=2,G90,0) -> 0 | BC90: =IF(AZ90=3,G90,0) -> 0 | BD90: =IF(AZ90=4,G90,0) -> 0 | BE90: =IF(AZ90=5,G90,0) -> 0 | CA90: 1 | CB90: 1
C91: Komunikace KSS LK 28211:3566,00 | E91: 3566 | M91: Komunikace KSS LK 28211:3566,00
C92: Odpočet čtyř linky podél obrubníků:-870,00*0,50 | E92: -435 | M92: Odpočet čtyř linky podél obrubníků:-870,00*0,50
A93: 28 | B93: 577142112R00 | C93: Beton asfaltový ACO 11+ obrusný nad 3 m, tl.5 cm | D93: m2 | E93: 3131 | G93: =E93*F93 -> 0 | H93: 0.12966 | I93: =E93*H93 -> 405.96546 | J93: 0 | K93: =E93*J93 -> 0 | O93: 2 | AA93: 1 | AB93: 0 | AC93: 0 | AZ93: 1 | BA93: =IF(AZ93=1,G93,0) -> 0 | BB93: =IF(AZ93=2,G93,0) -> 0 | BC93: =IF(AZ93=3,G93,0) -> 0 | BD93: =IF(AZ93=4,G93,0) -> 0 | BE93: =IF(AZ93=5,G93,0) -> 0 | CA93: 1 | CB93: 0
C94: Komunikace KSS LK 28211:3566,00 | E94: 3566 | M94: Komunikace KSS LK 28211:3566,00
C95: Odpočet čtyř linky podél obrubníků:-870,00*0,50 | E95: -435 | M95: Odpočet čtyř linky podél obrubníků:-870,00*0,50
A96: 29 | B96: 577162124R00 | C96: Beton asfalt. ACL 16+ ložný, š. nad 3 m, tl. 7 cm | D96: m2 | E96: 3131 | G96: =E96*F96 -> 0 | H96: 0.18152 | I96: =E96*H96 -> 568.33912 | J96: 0 | K96: =E96*J96 -> 0 | O96: 2 | AA96: 1 | AB96: 0 | AC96: 0 | AZ96: 1 | BA96: =IF(AZ96=1,G96,0) -> 0 | BB96: =IF(AZ96=2,G96,0) -> 0 | BC96: =IF(AZ96=3,G96,0) -> 0 | BD96: =IF(AZ96=4,G96,0) -> 0 | BE96: =IF(AZ96=5,G96,0) -> 0 | CA96: 1 | CB96: 0
C97: Komunikace KSS LK 28211:3566,00 | E97: 3566 | M97: Komunikace KSS LK 28211:3566,00
C98: Odpočet čtyř linky podél obrubníků:-870,00*0,50 | E98: -435 | M98: Odpočet čtyř linky podél obrubníků:-870,00*0,50
A99: 30 | B99: 591241111R00 | C99: Kladení dlažby drobné kostky, lože z MC tl. 5 cm | D99: m2 | E99: 435 | G99: =E99*F99 -> 0 | H99: 0.31388 | I99: =E99*H99 -> 136.5378 | J99: 0 | K99: =E99*J99 -> 0 | O99: 2 | AA99: 1 | AB99: 1 | AC99: 1 | AZ99: 1 | BA99: =IF(AZ99=1,G99,0) -> 0 | BB99: =IF(AZ99=2,G99,0) -> 0 | BC99: =IF(AZ99=3,G99,0) -> 0 | BD99: =IF(AZ99=4,G99,0) -> 0 | BE99: =IF(AZ99=5,G99,0) -> 0 | CA99: 1 | CB99: 1
C100: V položce jsou zakalkulovány i náklady na dodání hmot pro lože a na dodání téhož materiálu na výplň spár. | L100: V položce jsou zakalkulovány i náklady na dodání hmot pro lože a na dodání téhož materiálu na výplň spár. | O100: 3
C101: Komunikace KSS LK 28211: | E101: 0 | M101: Komunikace KSS LK 28211:
C102: Čtyřlinka podél kamenných obrubníků z drobných žulových kostek:870,00*0,50 | E102: 435 | M102: Čtyřlinka podél kamenných obrubníků z drobných žulových kostek:870,00*0,50
A103: 31 | B103: 596215021R00 | C103: Kladení zámkové dlažby tl. 6 cm do drtě tl. 4 cm | D103: m2 | E103: 193.5 | G103: =E103*F103 -> 0 | H103: 0.0739 | I103: =E103*H103 -> 14.29965 | J103: 0 | K103: =E103*J103 -> 0 | O103: 2 | AA103: 1 | AB103: 1 | AC103: 1 | AZ103: 1 | BA103: =IF(AZ103=1,G103,0) -> 0 | BB103: =IF(AZ103=2,G103,0) -> 0 | BC103: =IF(AZ103=3,G103,0) -> 0 | BD103: =IF(AZ103=4,G103,0) -> 0 | BE103: =IF(AZ103=5,G103,0) -> 0 | CA103: 1 | CB103: 1
C104: Zámková dlažba podél komunikace:193,50 | E104: 193.5 | M104: Zámková dlažba podél komunikace:193,50
A105: 32 | B105: 596291111R00 | C105: Řezání zámkové dlažby tl. 60 mm | D105: m | E105: 96.75 | G105: =E105*F105 -> 0 | H105: 0.00033 | I105: =E105*H105 -> 0.0319275 | J105: 0 | K105: =E105*J105 -> 0 | O105: 2 | AA105: 1 | AB105: 1 | AC105: 1 | AZ105: 1 | BA105: =IF(AZ105=1,G105,0) -> 0 | BB105: =IF(AZ105=2,G105,0) -> 0 | BC105: =IF(AZ105=3,G105,0) -> 0 | BD105: =IF(AZ105=4,G105,0) -> 0 | BE105: =IF(AZ105=5,G105,0) -> 0 | CA105: 1 | CB105: 1
C106: Zámková dlažba podél komunikace:193,50/2 | E106: 96.75 | M106: Zámková dlažba podél komunikace:193,50/2
A107: 33 | B107: 58344197.R | C107: Štěrkodrtě frakce 0-63 A | D107: t | E107: -513.7954 | G107: =E107*F107 -> 0 | H107: 0 | I107: =E107*H107 -> 0 | K107: =E107*J107 -> 0 | O107: 2 | AA107: 3 | AB107: 1 | AC107: 58344197.R | AZ107: 1 | BA107: =IF(AZ107=1,G107,0) -> 0 | BB107: =IF(AZ107=2,G107,0) -> 0 | BC107: =IF(AZ107=3,G107,0) -> 0 | BD107: =IF(AZ107=4,G107,0) -> 0 | BE107: =IF(AZ107=5,G107,0) -> 0 | CA107: 3 | CB107: 1
C108: Odpočet využití ŠD z rýh VH sítí do podkladních štěrkových vrstev z 80% původníhího množství:-857,240*0,40*0,8*1,873 | E108: -513.7954 | M108: Odpočet využití ŠD z rýh VH sítí do podkladních štěrkových vrstev z 80% původníhího množství:-857,240*0,40*0,8*1,873
A109: 34 | B109: 58380129.R | C109: Kostka dlažební drobná 10/12 štípaná Itř. 1t=4,0m2 | D109: t | E109: 110.925 | G109: =E109*F109 -> 0 | H109: 1 | I109: =E109*H109 -> 110.925 | K109: =E109*J109 -> 0 | O109: 2 | AA109: 3 | AB109: 1 | AC109: 58380129.R | AZ109: 1 | BA109: =IF(AZ109=1,G109,0) -> 0 | BB109: =IF(AZ109=2,G109,0) -> 0 | BC109: =IF(AZ109=3,G109,0) -> 0 | BD109: =IF(AZ109=4,G109,0) -> 0 | BE109: =IF(AZ109=5,G109,0) -> 0 | CA109: 3 | CB109: 1
C110: Komunikace KSS LK 28211: | E110: 0 | M110: Komunikace KSS LK 28211:
C111: Čtyřlinka podél kamenných obrubníků z drobných žulových kostek:870,00*0,50/4,00*1,02 | E111: 110.925 | M111: Čtyřlinka podél kamenných obrubníků z drobných žulových kostek:870,00*0,50/4,00*1,02
A112: 35 | B112: 59245267.R | C112: Dlažba zámková - dlažba 20/10/8 cm přírodní | D112: m2 | E112: 197.37 | G112: =E112*F112 -> 0 | H112: 0.175 | I112: =E112*H112 -> 34.53975 | K112: =E112*J112 -> 0 | O112: 2 | AA112: 3 | AB112: 1 | AC112: 59245267.R | AZ112: 1 | BA112: =IF(AZ112=1,G112,0) -> 0 | BB112: =IF(AZ112=2,G112,0) -> 0 | BC112: =IF(AZ112=3,G112,0) -> 0 | BD112: =IF(AZ112=4,G112,0) -> 0 | BE112: =IF(AZ112=5,G112,0) -> 0 | CA112: 3 | CB112: 1
C113: Zámková dlažba podél komunikace:193,50*1,02 | E113: 197.37 | M113: Zámková dlažba podél komunikace:193,50*1,02
B114: Celkem za | C114: 5 Komunikace | G114: =SUM(G75:G113) -> 0 | I114: =SUM(I75:I113) -> 4508.214393 | K114: =SUM(K75:K113) -> 0 | O114: 4 | BA114: =SUM(BA75:BA113) -> 0 | BB114: =SUM(BB75:BB113) -> 0 | BC114: =SUM(BC75:BC113) -> 0 | BD114: =SUM(BD75:BD113) -> 0 | BE114: =SUM(BE75:BE113) -> 0
A115: Díl: | B115: 91 | C115: Doplňující práce na komunikaci | O115: 1
A116: 36 | B116: 917161111R00 | C116: Osazení lež. obrub.kamen. s opěrou, lože z C 12/15 | D116: m | E116: 870 | G116: =E116*F116 -> 0 | H116: 0.18806 | I116: =E116*H116 -> 163.6122 | J116: 0 | K116: =E116*J116 -> 0 | O116: 2 | AA116: 1 | AB116: 1 | AC116: 1 | AZ116: 1 | BA116: =IF(AZ116=1,G116,0) -> 0 | BB116: =IF(AZ116=2,G116,0) -> 0 | BC116: =IF(AZ116=3,G116,0) -> 0 | BD116: =IF(AZ116=4,G116,0) -> 0 | BE116: =IF(AZ116=5,G116,0) -> 0 | CA116: 1 | CB116: 1
C117: Komunikace KSS LK 28211: | E117: 0 | M117: Komunikace KSS LK 28211:
C118: Původní obrubníky - 30% :870,00*0,3 | E118: 261 | M118: Původní obrubníky - 30% :870,00*0,3
C119: Nové obrubníky - 20% výměna původních:870,00*0,2 | E119: 174 | M119: Nové obrubníky - 20% výměna původních:870,00*0,2
C120: Nové obrubníky - 50% doplnění:870,00*0,5 | E120: 435 | M120: Nové obrubníky - 50% doplnění:870,00*0,5
A121: 37 | B121: 918101111R00 | C121: Lože pod obrubníky nebo obruby dlažeb z C 12/15 | D121: m3 | E121: 26.1 | G121: =E121*F121 -> 0 | H121: 2.525 | I121: =E121*H121 -> 65.9025 | J121: 0 | K121: =E121*J121 -> 0 | O121: 2 | AA121: 1 | AB121: 1 | AC121: 1 | AZ121: 1 | BA121: =IF(AZ121=1,G121,0) -> 0 | BB121: =IF(AZ121=2,G121,0) -> 0 | BC121: =IF(AZ121=3,G121,0) -> 0 | BD121: =IF(AZ121=4,G121,0) -> 0 | BE121: =IF(AZ121=5,G121,0) -> 0 | CA121: 1 | CB121: 1
C122: Komunikace KSS LK 28211: | E122: 0 | M122: Komunikace KSS LK 28211:
C123: Původní obrubníky - 30% :870,00*0,3*0,30*0,10 | E123: 7.83 | M123: Původní obrubníky - 30% :870,00*0,3*0,30*0,10
C124: Nové obrubníky - 20% výměna původních:870,00*0,2*0,30*0,10 | E124: 5.22 | M124: Nové obrubníky - 20% výměna původních:870,00*0,2*0,30*0,10
C125: Nové obrubníky - 50% doplnění:870,00*0,5*0,30*0,10 | E125: 13.05 | M125: Nové obrubníky - 50% doplnění:870,00*0,5*0,30*0,10
A126: 38 | B126: 919731123R00 | C126: Zarovnání styčné plochy živičné tl. do 20 cm | D126: m | E126: 18 | G126: =E126*F126 -> 0 | H126: 0 | I126: =E126*H126 -> 0 | J126: 0 | K126: =E126*J126 -> 0 | O126: 2 | AA126: 1 | AB126: 1 | AC126: 1 | AZ126: 1 | BA126: =IF(AZ126=1,G126,0) -> 0 | BB126: =IF(AZ126=2,G126,0) -> 0 | BC126: =IF(AZ126=3,G126,0) -> 0 | BD126: =IF(AZ126=4,G126,0) -> 0 | BE126: =IF(AZ126=5,G126,0) -> 0 | CA126: 1 | CB126: 1
A127: 39 | B127: 58380333 | C127: Obrubník kamenný přímý OP3 25x20 cm | D127: m | E127: 615.09 | G127: =E127*F127 -> 0 | H127: 0.125 | I127: =E127*H127 -> 76.88625 | K127: =E127*J127 -> 0 | O127: 2 | AA127: 3 | AB127: 1 | AC127: 58380333 | AZ127: 1 | BA127: =IF(AZ127=1,G127,0) -> 0 | BB127: =IF(AZ127=2,G127,0) -> 0 | BC127: =IF(AZ127=3,G127,0) -> 0 | BD127: =IF(AZ127=4,G127,0) -> 0 | BE127: =IF(AZ127=5,G127,0) -> 0 | CA127: 3 | CB127: 1
C128: Komunikace KSS LK 28211: | E128: 0 | M128: Komunikace KSS LK 28211:
C129: Nové obrubníky - 20% výměna původních:870,00*0,2*1,01 | E129: 175.74 | M129: Nové obrubníky - 20% výměna původních:870,00*0,2*1,01
C130: Nové obrubníky - 50% doplnění:870,00*0,5*1,01 | E130: 439.35 | M130: Nové obrubníky - 50% doplnění:870,00*0,5*1,01
B131: Celkem za | C131: 91 Doplňující práce na komunikaci | G131: =SUM(G115:G130) -> 0 | I131: =SUM(I115:I130) -> 306.40095 | K131: =SUM(K115:K130) -> 0 | O131: 4 | BA131: =SUM(BA115:BA130) -> 0 | BB131: =SUM(BB115:BB130) -> 0 | BC131: =SUM(BC115:BC130) -> 0 | BD131: =SUM(BD115:BD130) -> 0 | BE131: =SUM(BE115:BE130) -> 0
A132: Díl: | B132: 93 | C132: Dokončovací práce inženýrských staveb | O132: 1
A133: 40 | B133: 938908411RRX | C133: Očištění povrchu krytu vodou | D133: m2 | E133: 3566 | G133: =E133*F133 -> 0 | H133: 1e-05 | I133: =E133*H133 -> 0.03566 | J133: 0 | K133: =E133*J133 -> 0 | O133: 2 | AA133: 1 | AB133: 1 | AC133: 1 | AZ133: 1 | BA133: =IF(AZ133=1,G133,0) -> 0 | BB133: =IF(AZ133=2,G133,0) -> 0 | BC133: =IF(AZ133=3,G133,0) -> 0 | BD133: =IF(AZ133=4,G133,0) -> 0 | BE133: =IF(AZ133=5,G133,0) -> 0 | CA133: 1 | CB133: 1
C134: PLocha komunikace KSS LK 28211:3566,00 | E134: 3566 | M134: PLocha komunikace KSS LK 28211:3566,00
A135: 41 | B135: 938909111R00 | C135: Odstranění nánosu s povrchu podkladu štěrkového | D135: m2 | E135: 3566 | G135: =E135*F135 -> 0 | H135: 0 | I135: =E135*H135 -> 0 | J135: 0 | K135: =E135*J135 -> 0 | O135: 2 | AA135: 1 | AB135: 1 | AC135: 1 | AZ135: 1 | BA135: =IF(AZ135=1,G135,0) -> 0 | BB135: =IF(AZ135=2,G135,0) -> 0 | BC135: =IF(AZ135=3,G135,0) -> 0 | BD135: =IF(AZ135=4,G135,0) -> 0 | BE135: =IF(AZ135=5,G135,0) -> 0 | CA135: 1 | CB135: 1
C136: PLocha komunikace KSS LK 28211:3566,00 | E136: 3566 | M136: PLocha komunikace KSS LK 28211:3566,00
A137: 42 | B137: 938909311R00 | C137: Odstranění nánosu z povrchu živičného nebo beton. | D137: m2 | E137: 6697 | G137: =E137*F137 -> 0 | H137: 0 | I137: =E137*H137 -> 0 | J137: 0 | K137: =E137*J137 -> 0 | O137: 2 | AA137: 1 | AB137: 1 | AC137: 1 | AZ137: 1 | BA137: =IF(AZ137=1,G137,0) -> 0 | BB137: =IF(AZ137=2,G137,0) -> 0 | BC137: =IF(AZ137=3,G137,0) -> 0 | BD137: =IF(AZ137=4,G137,0) -> 0 | BE137: =IF(AZ137=5,G137,0) -> 0 | CA137: 1 | CB137: 1
C138: Komunikace KSS LK 28211:3566,00*2 | E138: 7132 | M138: Komunikace KSS LK 28211:3566,00*2
C139: Odpočet čtyř linky podél obrubníků:-870,00*0,50 | E139: -435 | M139: Odpočet čtyř linky podél obrubníků:-870,00*0,50
B140: Celkem za | C140: 93 Dokončovací práce inženýrských staveb | G140: =SUM(G132:G139) -> 0 | I140: =SUM(I132:I139) -> 0.03566 | K140: =SUM(K132:K139) -> 0 | O140: 4 | BA140: =SUM(BA132:BA139) -> 0 | BB140: =SUM(BB132:BB139) -> 0 | BC140: =SUM(BC132:BC139) -> 0 | BD140: =SUM(BD132:BD139) -> 0 | BE140: =SUM(BE132:BE139) -> 0
A141: Díl: | B141: 97 | C141: Prorážení otvorů | O141: 1
A142: 43 | B142: 979024441R00 | C142: Očištění vybour. obrubníků všech loží a výplní | D142: m | E142: 261 | G142: =E142*F142 -> 0 | H142: 0 | I142: =E142*H142 -> 0 | J142: 0 | K142: =E142*J142 -> 0 | O142: 2 | AA142: 1 | AB142: 1 | AC142: 1 | AZ142: 1 | BA142: =IF(AZ142=1,G142,0) -> 0 | BB142: =IF(AZ142=2,G142,0) -> 0 | BC142: =IF(AZ142=3,G142,0) -> 0 | BD142: =IF(AZ142=4,G142,0) -> 0 | BE142: =IF(AZ142=5,G142,0) -> 0 | CA142: 1 | CB142: 1
C143: Komunikace KSS LK 28211: | E143: 0 | M143: Komunikace KSS LK 28211:
C144: Původní obrubníky pro opětovné použití - 30% :870,00*0,3 | E144: 261 | M144: Původní obrubníky pro opětovné použití - 30% :870,00*0,3
B145: Celkem za | C145: 97 Prorážení otvorů | G145: =SUM(G141:G144) -> 0 | I145: =SUM(I141:I144) -> 0 | K145: =SUM(K141:K144) -> 0 | O145: 4 | BA145: =SUM(BA141:BA144) -> 0 | BB145: =SUM(BB141:BB144) -> 0 | BC145: =SUM(BC141:BC144) -> 0 | BD145: =SUM(BD141:BD144) -> 0 | BE145: =SUM(BE141:BE144) -> 0
A146: Díl: | B146: 99 | C146: Staveništní přesun hmot | O146: 1
A147: 44 | B147: 998225111R00 | C147: Přesun hmot, pozemní komunikace, kryt živičný | D147: t | E147: 5347.945002 | G147: =E147*F147 -> 0 | H147: 0 | I147: =E147*H147 -> 0 | K147: =E147*J147 -> 0 | O147: 2 | AA147: 7 | AB147: 1 | AC147: 2 | AZ147: 1 | BA147: =IF(AZ147=1,G147,0) -> 0 | BB147: =IF(AZ147=2,G147,0) -> 0 | BC147: =IF(AZ147=3,G147,0) -> 0 | BD147: =IF(AZ147=4,G147,0) -> 0 | BE147: =IF(AZ147=5,G147,0) -> 0 | CA147: 7 | CB147: 1
B148: Celkem za | C148: 99 Staveništní přesun hmot | G148: =SUM(G146:G147) -> 0 | I148: =SUM(I146:I147) -> 0 | K148: =SUM(K146:K147) -> 0 | O148: 4 | BA148: =SUM(BA146:BA147) -> 0 | BB148: =SUM(BB146:BB147) -> 0 | BC148: =SUM(BC146:BC147) -> 0 | BD148: =SUM(BD146:BD147) -> 0 | BE148: =SUM(BE146:BE147) -> 0

Sheet 101.1 3331101.2 KL
A1: POLOŽKOVÝ ROZPOČET
A2: Rozpočet | C2: 3331/101.2 | D2: Komunikace - 1.část - Místní komunikace | F2: JKSO | G2: 822.24
A4: Objekt | F4: SKP
A5: 101.1 | C5: Komunikace - 1.část | F5: Měrná jednotka | G5: m2
A6: Stavba | F6: Počet jednotek | G6: 0
A7: 3332 | C7: Obnova vodovodu a kanalizace v Obci Loučky | F7: Náklady na m.j. | G7: =IF(G6=0,,ROUND((F30+F32)/G6,1)) -> 0
A8: Projektant | C8: LK PROJEKT s.r.o. | F8: Typ rozpočtu
A9: Zpracovatel projektu
A10: Objednatel | C10: Vodohospodářské sdružení Turnov
A11: Dodavatel | C11: . | F11: Zakázkové číslo
A12: Rozpočtoval | F12: Počet listů
A13: ROZPOČTOVÉ NÁKLADY
A14: Základní rozpočtové náklady
B15: HSV celkem | C15: ='101.1 3331101.2 Rek'!E12 -> 0
A16: Z | B16: PSV celkem | C16: ='101.1 3331101.2 Rek'!F12 -> 0
A17: R | B17: M práce celkem | C17: ='101.1 3331101.2 Rek'!H12 -> 0
A18: N | B18: M dodávky celkem | C18: ='101.1 3331101.2 Rek'!G12 -> 0
A19: ZRN celkem | C19: =SUM(C15:C18) -> 0
A21: HZS | C21: ='101.1 3331101.2 Rek'!I12 -> 0
A22: ZRN+HZS | C22: =C19+C21 -> 0
A23: ZRN+ost.náklady+HZS | C23: =C22+G23 -> 0
A24: Vypracoval | D24: Za zhotovitele | F24: Za objednatele
A25: Jméno : | D25: Jméno : | F25: Jméno :
A26: Datum : | D26: Datum : | F26: Datum :
A28: Podpis : | D28: Podpis: | F28: Podpis:
A30: Základ pro DPH | C30: 21 | D30: % | F30: =C23-F32 -> 0
A31: DPH | C31: =C30 -> 21 | D31: % | F31: =ROUND(PRODUCT(F30,C31/100),0) -> 0
A32: Základ pro DPH | C32: 0 | D32: % | F32: 0
A33: DPH | C33: =C32 -> 0 | D33: % | F33: =ROUND(PRODUCT(F32,C33/100),0) -> 0
A34: CENA ZA OBJEKT CELKEM | F34: =ROUND(SUM(F30:F33),0) -> 0
A36: Poznámka :

Sheet 101.1 3331101.2 Rek
A1: Stavba : | C1: 3332 Obnova vodovodu a kanalizace v Obci Loučky | G1: Rozpočet : | H1: 3331/101.2
A2: Objekt : | C2: 101.1 Komunikace - 1.část | G2: Komunikace - 1.část - Místní komunikace
A4: REKAPITULACE STAVEBNÍCH DÍLŮ
B6: Stavební díl | E6: HSV | F6: PSV | G6: Dodávka | H6: Montáž | I6: HZS
A7: ='101.1 3331101.2 Pol'!B7 -> 1 | B7: ='101.1 3331101.2 Pol'!C7 -> Zemní práce | E7: ='101.1 3331101.2 Pol'!BA33 -> 0 | F7: ='101.1 3331101.2 Pol'!BB33 -> 0 | G7: ='101.1 3331101.2 Pol'!BC33 -> 0 | H7: ='101.1 3331101.2 Pol'!BD33 -> 0 | I7: ='101.1 3331101.2 Pol'!BE33 -> 0
A8: ='101.1 3331101.2 Pol'!B34 -> 2 | B8: ='101.1 3331101.2 Pol'!C34 -> Základy a zvláštní zakládání | E8: ='101.1 3331101.2 Pol'!BA38 -> 0 | F8: ='101.1 3331101.2 Pol'!BB38 -> 0 | G8: ='101.1 3331101.2 Pol'!BC38 -> 0 | H8: ='101.1 3331101.2 Pol'!BD38 -> 0 | I8: ='101.1 3331101.2 Pol'!BE38 -> 0
A9: ='101.1 3331101.2 Pol'!B39 -> 5 | B9: ='101.1 3331101.2 Pol'!C39 -> Komunikace | E9: ='101.1 3331101.2 Pol'!BA59 -> 0 | F9: ='101.1 3331101.2 Pol'!BB59 -> 0 | G9: ='101.1 3331101.2 Pol'!BC59 -> 0 | H9: ='101.1 3331101.2 Pol'!BD59 -> 0 | I9: ='101.1 3331101.2 Pol'!BE59 -> 0
A10: ='101.1 3331101.2 Pol'!B60 -> 93 | B10: ='101.1 3331101.2 Pol'!C60 -> Dokončovací práce inženýrských staveb | E10: ='101.1 3331101.2 Pol'!BA67 -> 0 | F10: ='101.1 3331101.2 Pol'!BB67 -> 0 | G10: ='101.1 3331101.2 Pol'!BC67 -> 0 | H10: ='101.1 3331101.2 Pol'!BD67 -> 0 | I10: ='101.1 3331101.2 Pol'!BE67 -> 0
A11: ='101.1 3331101.2 Pol'!B68 -> 99 | B11: ='101.1 3331101.2 Pol'!C68 -> Staveništní přesun hmot | E11: ='101.1 3331101.2 Pol'!BA70 -> 0 | F11: ='101.1 3331101.2 Pol'!BB70 -> 0 | G11: ='101.1 3331101.2 Pol'!BC70 -> 0 | H11: ='101.1 3331101.2 Pol'!BD70 -> 0 | I11: ='101.1 3331101.2 Pol'!BE70 -> 0
B12: CELKEM OBJEKT | E12: =SUM(E7:E11) -> 0 | F12: =SUM(F7:F11) -> 0 | G12: =SUM(G7:G11) -> 0 | H12: =SUM(H7:H11) -> 0 | I12: =SUM(I7:I11) -> 0

Sheet 101.1 3331101.2 Pol
A1: Položkový rozpočet
A3: Stavba : | C3: 3332 Obnova vodovodu a kanalizace v Obci Loučky | E3: Rozpočet: | F3: ='101.1 3331101.2 Rek'!H1 -> 3331/101.2
A4: Objekt : | C4: 101.1 Komunikace - 1.část | E4: ='101.1 3331101.2 Rek'!G2 -> Komunikace - 1.část - Místní komunikace
A6: P.č. | B6: Číslo položky | C6: Název položky | D6: MJ | E6: množství | F6: cena / MJ | G6: celkem (Kč) | H6: Jednotková hmotnost | I6: Celková hmotnost | J6: Jednotková dem.hmot. | K6: Celková dem.hmot.
A7: Díl: | B7: 1 | C7: Zemní práce | O7: 1
A8: 1 | B8: 113107625R00 | C8: Odstranění podkladu nad 50 m2,kam.drcené tl.25 cm | D8: m2 | E8: 690 | G8: =E8*F8 -> 0 | H8: 0 | I8: =E8*H8 -> 0 | J8: -0.55 | K8: =E8*J8 -> -379.5 | O8: 2 | AA8: 1 | AB8: 1 | AC8: 1 | AZ8: 1 | BA8: =IF(AZ8=1,G8,0) -> 0 | BB8: =IF(AZ8=2,G8,0) -> 0 | BC8: =IF(AZ8=3,G8,0) -> 0 | BD8: =IF(AZ8=4,G8,0) -> 0 | BE8: =IF(AZ8=5,G8,0) -> 0 | CA8: 1 | CB8: 1
C9: Plocha komunikace MK:690,00 | E9: 690 | M9: Plocha komunikace MK:690,00
A10: 2 | B10: 113107640R00 | C10: Odstranění podkladu nad 50 m2,kam.drcené tl.40 cm | D10: m2 | E10: 146 | G10: =E10*F10 -> 0 | H10: 0 | I10: =E10*H10 -> 0 | J10: -0.88 | K10: =E10*J10 -> -128.48 | O10: 2 | AA10: 1 | AB10: 1 | AC10: 1 | AZ10: 1 | BA10: =IF(AZ10=1,G10,0) -> 0 | BB10: =IF(AZ10=2,G10,0) -> 0 | BC10: =IF(AZ10=3,G10,0) -> 0 | BD10: =IF(AZ10=4,G10,0) -> 0 | BE10: =IF(AZ10=5,G10,0) -> 0 | CA10: 1 | CB10: 1
C11: Materiál pro použití do štěrkové vrstvy komunikace o objemu cca 80%. 20% odvoz na skládku. | L11: Materiál pro použití do štěrkové vrstvy komunikace o objemu cca 80%. 20% odvoz na skládku. | O11: 3
C12: Odstranění provizorního zásypu rýh VH sítí v komunikaci:146,00 | E12: 146 | M12: Odstranění provizorního zásypu rýh VH sítí v komunikaci:146,00
A13: 3 | B13: 113151350R00 | C13: Fréz.živič.krytu nad 500 m2, s překážkami, tl.15cm | D13: m2 | E13: 690 | G13: =E13*F13 -> 0 | H13: 0 | I13: =E13*H13 -> 0 | J13: -0.264 | K13: =E13*J13 -> -182.16 | O13: 2 | AA13: 1 | AB13: 1 | AC13: 1 | AZ13: 1 | BA13: =IF(AZ13=1,G13,0) -> 0 | BB13: =IF(AZ13=2,G13,0) -> 0 | BC13: =IF(AZ13=3,G13,0) -> 0 | BD13: =IF(AZ13=4,G13,0) -> 0 | BE13: =IF(AZ13=5,G13,0) -> 0 | CA13: 1 | CB13: 1
C14: Průměrná tl. asfaltové vrstvy 12 cm | L14: Průměrná tl. asfaltové vrstvy 12 cm | O14: 3
C15: Je počítáno nejdříve frézování pro rýhy VS sítí a následné dofrézování do celkové plochy. Záleží ale na zvolené technologii postupu výstavby zhotovitelem. | L15: Je počítáno nejdříve frézování pro rýhy VS sítí a následné dofrézování do celkové plochy. Záleží ale na zvolené technologii postupu výstavby zhotovitelem. | O15: 3
C16: Plocha komunikace MK:690,00 | E16: 690 | M16: Plocha komunikace MK:690,00
A17: 4 | B17: 122202202R00 | C17: Odkopávky pro silnice v hor. 3 do 1000 m3 | D17: m3 | E17: 20 | G17: =E17*F17 -> 0 | H17: 0 | I17: =E17*H17 -> 0 | J17: 0 | K17: =E17*J17 -> 0 | O17: 2 | AA17: 1 | AB17: 1 | AC17: 1 | AZ17: 1 | BA17: =IF(AZ17=1,G17,0) -> 0 | BB17: =IF(AZ17=2,G17,0) -> 0 | BC17: =IF(AZ17=3,G17,0) -> 0 | BD17: =IF(AZ17=4,G17,0) -> 0 | BE17: =IF(AZ17=5,G17,0) -> 0 | CA17: 1 | CB17: 1
C18: Částečná sanace pláně komunikace:100,00*0,20 | E18: 20 | M18: Částečná sanace pláně komunikace:100,00*0,20
A19: 5 | B19: 122202209R00 | C19: Příplatek za lepivost - odkop. pro silnice v hor.3 | D19: m3 | E19: 10 | G19: =E19*F19 -> 0 | H19: 0 | I19: =E19*H19 -> 0 | J19: 0 | K19: =E19*J19 -> 0 | O19: 2 | AA19: 1 | AB19: 1 | AC19: 1 | AZ19: 1 | BA19: =IF(AZ19=1,G19,0) -> 0 | BB19: =IF(AZ19=2,G19,0) -> 0 | BC19: =IF(AZ19=3,G19,0) -> 0 | BD19: =IF(AZ19=4,G19,0) -> 0 | BE19: =IF(AZ19=5,G19,0) -> 0 | CA19: 1 | CB19: 1
C20: Částečná sanace pláně komunikace:100,00*0,20*0,5 | E20: 10 | M20: Částečná sanace pláně komunikace:100,00*0,20*0,5
A21: 6 | B21: 162701105RSZ | C21: Vodorovné přemístění výkopku z hor.1-4 na skládku zhotovitele | D21: m3 | E21: 20 | G21: =E21*F21 -> 0 | H21: 0 | I21: =E21*H21 -> 0 | J21: 0 | K21: =E21*J21 -> 0 | O21: 2 | AA21: 1 | AB21: 1 | AC21: 1 | AZ21: 1 | BA21: =IF(AZ21=1,G21,0) -> 0 | BB21: =IF(AZ21=2,G21,0) -> 0 | BC21: =IF(AZ21=3,G21,0) -> 0 | BD21: =IF(AZ21=4,G21,0) -> 0 | BE21: =IF(AZ21=5,G21,0) -> 0 | CA21: 1 | CB21: 1
C22: Z odkopávek: | E22: 0 | M22: Z odkopávek:
C23: Částečná sanace pláně komunikace:100,00*0,20 | E23: 20 | M23: Částečná sanace pláně komunikace:100,00*0,20
A24: 7 | B24: 181101102R00 | C24: Úprava pláně v zářezech v hor. 1-4, se zhutněním | D24: m2 | E24: 690 | G24: =E24*F24 -> 0 | H24: 0 | I24: =E24*H24 -> 0 | J24: 0 | K24: =E24*J24 -> 0 | O24: 2 | AA24: 1 | AB24: 1 | AC24: 1 | AZ24: 1 | BA24: =IF(AZ24=1,G24,0) -> 0 | BB24: =IF(AZ24=2,G24,0) -> 0 | BC24: =IF(AZ24=3,G24,0) -> 0 | BD24: =IF(AZ24=4,G24,0) -> 0 | BE24: =IF(AZ24=5,G24,0) -> 0 | CA24: 1 | CB24: 1
C25: PLocha komunikace MK:690,00 | E25: 690 | M25: PLocha komunikace MK:690,00
A26: 8 | B26: 199000002R00 | C26: Poplatek za skládku horniny 1- 4 č. dle katal. odpadů 17 05 04 | D26: m3 | E26: 20 | G26: =E26*F26 -> 0 | H26: 0 | I26: =E26*H26 -> 0 | J26: 0 | K26: =E26*J26 -> 0 | O26: 2 | AA26: 1 | AB26: 1 | AC26: 1 | AZ26: 1 | BA26: =IF(AZ26=1,G26,0) -> 0 | BB26: =IF(AZ26=2,G26,0) -> 0 | BC26: =IF(AZ26=3,G26,0) -> 0 | BD26: =IF(AZ26=4,G26,0) -> 0 | BE26: =IF(AZ26=5,G26,0) -> 0 | CA26: 1 | CB26: 1
C27: Z odkopávek: | E27: 0 | M27: Z odkopávek:
C28: Částečná sanace pláně komunikace:100,00*0,20 | E28: 20 | M28: Částečná sanace pláně komunikace:100,00*0,20
A29: 9 | B29: 979082113RSZ | C29: Vodorovná doprava suti po suchu na skládku zhotovitele | D29: t | E29: 587.356 | G29: =E29*F29 -> 0 | H29: 0 | I29: =E29*H29 -> 0 | J29: 0 | K29: =E29*J29 -> 0 | O29: 2 | AA29: 1 | AB29: 1 | AC29: 1 | AZ29: 1 | BA29: =IF(AZ29=1,G29,0) -> 0 | BB29: =IF(AZ29=2,G29,0) -> 0 | BC29: =IF(AZ29=3,G29,0) -> 0 | BD29: =IF(AZ29=4,G29,0) -> 0 | BE29: =IF(AZ29=5,G29,0) -> 0 | CA29: 1 | CB29: 1
A30: 10 | B30: 979089001R00 | C30: Poplatek za skládku stavební suti štěrky z komunikací, skupina odpadu 010408 | D30: t | E30: 405.196 | G30: =E30*F30 -> 0 | H30: 0 | I30: =E30*H30 -> 0 | J30: 0 | K30: =E30*J30 -> 0 | O30: 2 | AA30: 1 | AB30: 1 | AC30: 1 | AZ30: 1 | BA30: =IF(AZ30=1,G30,0) -> 0 | BB30: =IF(AZ30=2,G30,0) -> 0 | BC30: =IF(AZ30=3,G30,0) -> 0 | BD30: =IF(AZ30=4,G30,0) -> 0 | BE30: =IF(AZ30=5,G30,0) -> 0 | CA30: 1 | CB30: 1
A31: 11 | B31: 979999995R00 | C31: Poplatek za reciklaci asfaltu, kusovost do 1600cm2 skupina 170302 | D31: t | E31: 182.16 | G31: =E31*F31 -> 0 | H31: 0 | I31: =E31*H31 -> 0 | J31: 0 | K31: =E31*J31 -> 0 | O31: 2 | AA31: 1 | AB31: 1 | AC31: 1 | AZ31: 1 | BA31: =IF(AZ31=1,G31,0) -> 0 | BB31: =IF(AZ31=2,G31,0) -> 0 | BC31: =IF(AZ31=3,G31,0) -> 0 | BD31: =IF(AZ31=4,G31,0) -> 0 | BE31: =IF(AZ31=5,G31,0) -> 0 | CA31: 1 | CB31: 1
C32: Položka je určena pro suť o velikosti kusu do 30x30 cm nebo frézovaný asfalt(technologický materiál určený k recyklaci). | L32: Položka je určena pro suť o velikosti kusu do 30x30 cm nebo frézovaný asfalt(technologický materiál určený k recyklaci). | O32: 3
B33: Celkem za | C33: 1 Zemní práce | G33: =SUM(G7:G32) -> 0 | I33: =SUM(I7:I32) -> 0 | K33: =SUM(K7:K32) -> -690.14 | O33: 4 | BA33: =SUM(BA7:BA32) -> 0 | BB33: =SUM(BB7:BB32) -> 0 | BC33: =SUM(BC7:BC32) -> 0 | BD33: =SUM(BD7:BD32) -> 0 | BE33: =SUM(BE7:BE32) -> 0
A34: Díl: | B34: 2 | C34: Základy a zvláštní zakládání | O34: 1
A35: 12 | B35: 289970112R00 | C35: Vrstva geotextilie Geofiltex 500g/m2 | D35: m2 | E35: 120 | G35: =E35*F35 -> 0 | H35: 0.0005 | I35: =E35*H35 -> 0.06 | J35: 0 | K35: =E35*J35 -> 0 | O35: 2 | AA35: 1 | AB35: 1 | AC35: 1 | AZ35: 1 | BA35: =IF(AZ35=1,G35,0) -> 0 | BB35: =IF(AZ35=2,G35,0) -> 0 | BC35: =IF(AZ35=3,G35,0) -> 0 | BD35: =IF(AZ35=4,G35,0) -> 0 | BE35: =IF(AZ35=5,G35,0) -> 0 | CA35: 1 | CB35: 1
C36: Geotextílie tkaná z polyprop. s funkcí výztužnou, separační a filtrační s min. plošnou hmotností 500 g/m2. Pevnost v obou směrech min. 60kN/m2 | L36: Geotextílie tkaná z polyprop. s funkcí výztužnou, separační a filtrační s min. plošnou hmotností 500 g/m2. Pevnost v obou směrech min. 60kN/m2 | O36: 3
C37: Celá plocha sanace pláně :100,00*1,2 | E37: 120 | M37: Celá plocha sanace pláně :100,00*1,2
B38: Celkem za | C38: 2 Základy a zvláštní zakládání | G38: =SUM(G34:G37) -> 0 | I38: =SUM(I34:I37) -> 0.06 | K38: =SUM(K34:K37) -> 0 | O38: 4 | BA38: =SUM(BA34:BA37) -> 0 | BB38: =SUM(BB34:BB37) -> 0 | BC38: =SUM(BC34:BC37) -> 0 | BD38: =SUM(BD34:BD37) -> 0 | BE38: =SUM(BE34:BE37) -> 0
A39: Díl: | B39: 5 | C39: Komunikace | O39: 1
A40: 13 | B40: 564761111R00 | C40: Podklad z kameniva drceného vel.32-63 mm,tl. 20 cm | D40: m2 | E40: 100 | G40: =E40*F40 -> 0 | H40: 0.43 | I40: =E40*H40 -> 43 | J40: 0 | K40: =E40*J40 -> 0 | O40: 2 | AA40: 1 | AB40: 1 | AC40: 1 | AZ40: 1 | BA40: =IF(AZ40=1,G40,0) -> 0 | BB40: =IF(AZ40=2,G40,0) -> 0 | BC40: =IF(AZ40=3,G40,0) -> 0 | BD40: =IF(AZ40=4,G40,0) -> 0 | BE40: =IF(AZ40=5,G40,0) -> 0 | CA40: 1 | CB40: 1
C41: Částečná sanace pláně komunikace:100,00 | E41: 100 | M41: Částečná sanace pláně komunikace:100,00
A42: 14 | B42: 564851111RT2 | C42: Podklad ze štěrkodrti po zhutnění tloušťky 15 cm štěrkodrť frakce 0-32 mm | D42: m2 | E42: 690 | G42: =E42*F42 -> 0 | H42: 0.378 | I42: =E42*H42 -> 260.82 | J42: 0 | K42: =E42*J42 -> 0 | O42: 2 | AA42: 1 | AB42: 1 | AC42: 1 | AZ42: 1 | BA42: =IF(AZ42=1,G42,0) -> 0 | BB42: =IF(AZ42=2,G42,0) -> 0 | BC42: =IF(AZ42=3,G42,0) -> 0 | BD42: =IF(AZ42=4,G42,0) -> 0 | BE42: =IF(AZ42=5,G42,0) -> 0 | CA42: 1 | CB42: 1
C43: PLocha komunikace KSS LK 28211:690,00 | E43: 690 | M43: PLocha komunikace KSS LK 28211:690,00
A44: 15 | B44: 564851111RT4 | C44: Podklad ze štěrkodrti po zhutnění tloušťky 15 cm štěrkodrť frakce 0-63 mm | D44: m2 | E44: 690 | G44: =E44*F44 -> 0 | H44: 0.378 | I44: =E44*H44 -> 260.82 | J44: 0 | K44: =E44*J44 -> 0 | O44: 2 | AA44: 1 | AB44: 1 | AC44: 1 | AZ44: 1 | BA44: =IF(AZ44=1,G44,0) -> 0 | BB44: =IF(AZ44=2,G44,0) -> 0 | BC44: =IF(AZ44=3,G44,0) -> 0 | BD44: =IF(AZ44=4,G44,0) -> 0 | BE44: =IF(AZ44=5,G44,0) -> 0 | CA44: 1 | CB44: 1
C45: PLocha komunikace MK:690,00 | E45: 690 | M45: PLocha komunikace MK:690,00
A46: 16 | B46: 569741111R00 | C46: Zpevnění krajnic kamenivem drceným tl. 12 cm | D46: m2 | E46: 57.5 | G46: =E46*F46 -> 0 | H46: 0.23481 | I46: =E46*H46 -> 13.501575 | J46: 0 | K46: =E46*J46 -> 0 | O46: 2 | AA46: 1 | AB46: 1 | AC46: 1 | AZ46: 1 | BA46: =IF(AZ46=1,G46,0) -> 0 | BB46: =IF(AZ46=2,G46,0) -> 0 | BC46: =IF(AZ46=3,G46,0) -> 0 | BD46: =IF(AZ46=4,G46,0) -> 0 | BE46: =IF(AZ46=5,G46,0) -> 0 | CA46: 1 | CB46: 1
C47: Komunikace MK: | E47: 0 | M47: Komunikace MK:
C48: Dosypání krajnic:230,00*0,25 | E48: 57.5 | M48: Dosypání krajnic:230,00*0,25
A49: 17 | B49: 573111124R00 | C49: Postřik infiltrační, množství zbytkového asfaltového pojiva 1,00 kg/m2 | D49: m2 | E49: 690 | G49: =E49*F49 -> 0 | H49: 0.00601 | I49: =E49*H49 -> 4.1469 | J49: 0 | K49: =E49*J49 -> 0 | O49: 2 | AA49: 1 | AB49: 0 | AC49: 0 | AZ49: 1 | BA49: =IF(AZ49=1,G49,0) -> 0 | BB49: =IF(AZ49=2,G49,0) -> 0 | BC49: =IF(AZ49=3,G49,0) -> 0 | BD49: =IF(AZ49=4,G49,0) -> 0 | BE49: =IF(AZ49=5,G49,0) -> 0 | CA49: 1 | CB49: 0
C50: Komunikace MK:690,00 | E50: 690 | M50: Komunikace MK:690,00
A51: 18 | B51: 573231110R00 | C51: Postřik spojovací z KAE množství zbytkového asfaltu 0,3 kg/m2 | D51: m2 | E51: 690 | G51: =E51*F51 -> 0 | H51: 0.0005 | I51: =E51*H51 -> 0.345 | J51: 0 | K51: =E51*J51 -> 0 | O51: 2 | AA51: 1 | AB51: 1 | AC51: 1 | AZ51: 1 | BA51: =IF(AZ51=1,G51,0) -> 0 | BB51: =IF(AZ51=2,G51,0) -> 0 | BC51: =IF(AZ51=3,G51,0) -> 0 | BD51: =IF(AZ51=4,G51,0) -> 0 | BE51: =IF(AZ51=5,G51,0) -> 0 | CA51: 1 | CB51: 1
C52: Komunikace MK:690,00 | E52: 690 | M52: Komunikace MK:690,00
A53: 19 | B53: 577142112R00 | C53: Beton asfaltový ACO 11+ obrusný nad 3 m, tl.5 cm | D53: m2 | E53: 690 | G53: =E53*F53 -> 0 | H53: 0.12966 | I53: =E53*H53 -> 89.4654 | J53: 0 | K53: =E53*J53 -> 0 | O53: 2 | AA53: 1 | AB53: 0 | AC53: 0 | AZ53: 1 | BA53: =IF(AZ53=1,G53,0) -> 0 | BB53: =IF(AZ53=2,G53,0) -> 0 | BC53: =IF(AZ53=3,G53,0) -> 0 | BD53: =IF(AZ53=4,G53,0) -> 0 | BE53: =IF(AZ53=5,G53,0) -> 0 | CA53: 1 | CB53: 0
C54: Komunikace MK:690,00 | E54: 690 | M54: Komunikace MK:690,00
A55: 20 | B55: 577162124R00 | C55: Beton asfalt. ACL 16+ ložný, š. nad 3 m, tl. 7 cm | D55: m2 | E55: 690 | G55: =E55*F55 -> 0 | H55: 0.18152 | I55: =E55*H55 -> 125.2488 | J55: 0 | K55: =E55*J55 -> 0 | O55: 2 | AA55: 1 | AB55: 0 | AC55: 0 | AZ55: 1 | BA55: =IF(AZ55=1,G55,0) -> 0 | BB55: =IF(AZ55=2,G55,0) -> 0 | BC55: =IF(AZ55=3,G55,0) -> 0 | BD55: =IF(AZ55=4,G55,0) -> 0 | BE55: =IF(AZ55=5,G55,0) -> 0 | CA55: 1 | CB55: 0
C56: Komunikace MK:690,00 | E56: 690 | M56: Komunikace MK:690,00
A57: 21 | B57: 58344197.R | C57: Štěrkodrtě frakce 0-63 A | D57: t | E57: -87.5066 | G57: =E57*F57 -> 0 | H57: 0 | I57: =E57*H57 -> 0 | K57: =E57*J57 -> 0 | O57: 2 | AA57: 3 | AB57: 1 | AC57: 58344197.R | AZ57: 1 | BA57: =IF(AZ57=1,G57,0) -> 0 | BB57: =IF(AZ57=2,G57,0) -> 0 | BC57: =IF(AZ57=3,G57,0) -> 0 | BD57: =IF(AZ57=4,G57,0) -> 0 | BE57: =IF(AZ57=5,G57,0) -> 0 | CA57: 3 | CB57: 1
C58: Odpočet využití ŠD z rýh VH sítí do podkladních štěrkových vrstev z 80% původníhího množství:-146,00*0,40*0,8*1,873 | E58: -87.5066 | M58: Odpočet využití ŠD z rýh VH sítí do podkladních štěrkových vrstev z 80% původníhího množství:-146,00*0,40*0,8*1,873
B59: Celkem za | C59: 5 Komunikace | G59: =SUM(G39:G58) -> 0 | I59: =SUM(I39:I58) -> 797.347675 | K59: =SUM(K39:K58) -> 0 | O59: 4 | BA59: =SUM(BA39:BA58) -> 0 | BB59: =SUM(BB39:BB58) -> 0 | BC59: =SUM(BC39:BC58) -> 0 | BD59: =SUM(BD39:BD58) -> 0 | BE59: =SUM(BE39:BE58) -> 0
A60: Díl: | B60: 93 | C60: Dokončovací práce inženýrských staveb | O60: 1
A61: 22 | B61: 938908411RRX | C61: Očištění povrchu krytu vodou | D61: m2 | E61: 690 | G61: =E61*F61 -> 0 | H61: 1e-05 | I61: =E61*H61 -> 0.0069 | J61: 0 | K61: =E61*J61 -> 0 | O61: 2 | AA61: 1 | AB61: 1 | AC61: 1 | AZ61: 1 | BA61: =IF(AZ61=1,G61,0) -> 0 | BB61: =IF(AZ61=2,G61,0) -> 0 | BC61: =IF(AZ61=3,G61,0) -> 0 | BD61: =IF(AZ61=4,G61,0) -> 0 | BE61: =IF(AZ61=5,G61,0) -> 0 | CA61: 1 | CB61: 1
C62: PLocha komunikace MK:690,00 | E62: 690 | M62: PLocha komunikace MK:690,00
A63: 23 | B63: 938909111R00 | C63: Odstranění nánosu s povrchu podkladu štěrkového | D63: m2 | E63: 690 | G63: =E63*F63 -> 0 | H63: 0 | I63: =E63*H63 -> 0 | J63: 0 | K63: =E63*J63 -> 0 | O63: 2 | AA63: 1 | AB63: 1 | AC63: 1 | AZ63: 1 | BA63: =IF(AZ63=1,G63,0) -> 0 | BB63: =IF(AZ63=2,G63,0) -> 0 | BC63: =IF(AZ63=3,G63,0) -> 0 | BD63: =IF(AZ63=4,G63,0) -> 0 | BE63: =IF(AZ63=5,G63,0) -> 0 | CA63: 1 | CB63: 1
C64: PLocha komunikace MK:690,00 | E64: 690 | M64: PLocha komunikace MK:690,00
A65: 24 | B65: 938909311R00 | C65: Odstranění nánosu z povrchu živičného nebo beton. | D65: m2 | E65: 1380 | G65: =E65*F65 -> 0 | H65: 0 | I65: =E65*H65 -> 0 | J65: 0 | K65: =E65*J65 -> 0 | O65: 2 | AA65: 1 | AB65: 1 | AC65: 1 | AZ65: 1 | BA65: =IF(AZ65=1,G65,0) -> 0 | BB65: =IF(AZ65=2,G65,0) -> 0 | BC65: =IF(AZ65=3,G65,0) -> 0 | BD65: =IF(AZ65=4,G65,0) -> 0 | BE65: =IF(AZ65=5,G65,0) -> 0 | CA65: 1 | CB65: 1
C66: Komunikace MK:690,00*2 | E66: 1380 | M66: Komunikace MK:690,00*2
B67: Celkem za | C67: 93 Dokončovací práce inženýrských staveb | G67: =SUM(G60:G66) -> 0 | I67: =SUM(I60:I66) -> 0.0069 | K67: =SUM(K60:K66) -> 0 | O67: 4 | BA67: =SUM(BA60:BA66) -> 0 | BB67: =SUM(BB60:BB66) -> 0 | BC67: =SUM(BC60:BC66) -> 0 | BD67: =SUM(BD60:BD66) -> 0 | BE67: =SUM(BE60:BE66) -> 0
A68: Díl: | B68: 99 | C68: Staveništní přesun hmot | O68: 1
A69: 25 | B69: 998225111R00 | C69: Přesun hmot, pozemní komunikace, kryt živičný | D69: t | E69: 797.414575 | G69: =E69*F69 -> 0 | H69: 0 | I69: =E69*H69 -> 0 | K69: =E69*J69 -> 0 | O69: 2 | AA69: 7 | AB69: 1 | AC69: 2 | AZ69: 1 | BA69: =IF(AZ69=1,G69,0) -> 0 | BB69: =IF(AZ69=2,G69,0) -> 0 | BC69: =IF(AZ69=3,G69,0) -> 0 | BD69: =IF(AZ69=4,G69,0) -> 0 | BE69: =IF(AZ69=5,G69,0) -> 0 | CA69: 7 | CB69: 1
B70: Celkem za | C70: 99 Staveništní přesun hmot | G70: =SUM(G68:G69) -> 0 | I70: =SUM(I68:I69) -> 0 | K70: =SUM(K68:K69) -> 0 | O70: 4 | BA70: =SUM(BA68:BA69) -> 0 | BB70: =SUM(BB68:BB69) -> 0 | BC70: =SUM(BC68:BC69) -> 0 | BD70: =SUM(BD68:BD69) -> 0 | BE70: =SUM(BE68:BE69) -> 0

Sheet 301.1 3332301.1 KL
A1: POLOŽKOVÝ ROZPOČET
A2: Rozpočet | C2: 3332/301.1 | D2: Vodovod - 1.část | F2: JKSO | G2: 827.11.A1
A4: Objekt | F4: SKP
A5: 301.1 | C5: Vodovod - 1.část | F5: Měrná jednotka | G5: m
A6: Stavba | F6: Počet jednotek | G6: 0
A7: 3332 | C7: Obnova vodovodu a kanalizace v Obci Loučky | F7: Náklady na m.j. | G7: =IF(G6=0,,ROUND((F30+F32)/G6,1)) -> 0
A8: Projektant | C8: LK PROJEKT s.r.o. | F8: Typ rozpočtu
A9: Zpracovatel projektu
A10: Objednatel | C10: Vodohospodářské sdružení Turnov
A11: Dodavatel | C11: . | F11: Zakázkové číslo
A12: Rozpočtoval | F12: Počet listů
A13: ROZPOČTOVÉ NÁKLADY
A14: Základní rozpočtové náklady
B15: HSV celkem | C15: ='301.1 3332301.1 Rek'!E14 -> 0
A16: Z | B16: PSV celkem | C16: ='301.1 3332301.1 Rek'!F14 -> 0
A17: R | B17: M práce celkem | C17: ='301.1 3332301.1 Rek'!H14 -> 0
A18: N | B18: M dodávky celkem | C18: ='301.1 3332301.1 Rek'!G14 -> 0
A19: ZRN celkem | C19: =SUM(C15:C18) -> 0
A21: HZS | C21: ='301.1 3332301.1 Rek'!I14 -> 0
A22: ZRN+HZS | C22: =C19+C21 -> 0
A23: ZRN+ost.náklady+HZS | C23: =C22+G23 -> 0
A24: Vypracoval | D24: Za zhotovitele | F24: Za objednatele
A25: Jméno : | D25: Jméno : | F25: Jméno :
A26: Datum : | D26: Datum : | F26: Datum :
A28: Podpis : | D28: Podpis: | F28: Podpis:
A30: Základ pro DPH | C30: 21 | D30: % | F30: =C23-F32 -> 0
A31: DPH | C31: =C30 -> 21 | D31: % | F31: =ROUND(PRODUCT(F30,C31/100),0) -> 0
A32: Základ pro DPH | C32: 0 | D32: % | F32: 0
A33: DPH | C33: =C32 -> 0 | D33: % | F33: =ROUND(PRODUCT(F32,C33/100),0) -> 0
A34: CENA ZA OBJEKT CELKEM | F34: =ROUND(SUM(F30:F33),0) -> 0
A36: Poznámka :

Sheet 301.1 3332301.1 Rek
A1: Stavba : | C1: 3332 Obnova vodovodu a kanalizace v Obci Loučky | G1: Rozpočet : | H1: 3332/301.1
A2: Objekt : | C2: 301.1 Vodovod - 1.část | G2: Vodovod - 1.část
A4: REKAPITULACE STAVEBNÍCH DÍLŮ
B6: Stavební díl | E6: HSV | F6: PSV | G6: Dodávka | H6: Montáž | I6: HZS
A7: ='301.1 3332301.1 Pol'!B7 -> 1 | B7: ='301.1 3332301.1 Pol'!C7 -> Zemní práce | E7: ='301.1 3332301.1 Pol'!BA232 -> 0 | F7: ='301.1 3332301.1 Pol'!BB232 -> 0 | G7: ='301.1 3332301.1 Pol'!BC232 -> 0 | H7: ='301.1 3332301.1 Pol'!BD232 -> 0 | I7: ='301.1 3332301.1 Pol'!BE232 -> 0
A8: ='301.1 3332301.1 Pol'!B233 -> 45 | B8: ='301.1 3332301.1 Pol'!C233 -> Podkladní a vedlejší konstrukce | E8: ='301.1 3332301.1 Pol'!BA252 -> 0 | F8: ='301.1 3332301.1 Pol'!BB252 -> 0 | G8: ='301.1 3332301.1 Pol'!BC252 -> 0 | H8: ='301.1 3332301.1 Pol'!BD252 -> 0 | I8: ='301.1 3332301.1 Pol'!BE252 -> 0
A9: ='301.1 3332301.1 Pol'!B253 -> 5 | B9: ='301.1 3332301.1 Pol'!C253 -> Komunikace | E9: ='301.1 3332301.1 Pol'!BA258 -> 0 | F9: ='301.1 3332301.1 Pol'!BB258 -> 0 | G9: ='301.1 3332301.1 Pol'!BC258 -> 0 | H9: ='301.1 3332301.1 Pol'!BD258 -> 0 | I9: ='301.1 3332301.1 Pol'!BE258 -> 0
A10: ='301.1 3332301.1 Pol'!B259 -> 8 | B10: ='301.1 3332301.1 Pol'!C259 -> Trubní vedení | E10: ='301.1 3332301.1 Pol'!BA584 -> 0 | F10: ='301.1 3332301.1 Pol'!BB584 -> 0 | G10: ='301.1 3332301.1 Pol'!BC584 -> 0 | H10: ='301.1 3332301.1 Pol'!BD584 -> 0 | I10: ='301.1 3332301.1 Pol'!BE584 -> 0
A11: ='301.1 3332301.1 Pol'!B585 -> 89 | B11: ='301.1 3332301.1 Pol'!C585 -> Ostatní konstrukce na trubním vedení | E11: ='301.1 3332301.1 Pol'!BA606 -> 0 | F11: ='301.1 3332301.1 Pol'!BB606 -> 0 | G11: ='301.1 3332301.1 Pol'!BC606 -> 0 | H11: ='301.1 3332301.1 Pol'!BD606 -> 0 | I11: ='301.1 3332301.1 Pol'!BE606 -> 0
A12: ='301.1 3332301.1 Pol'!B607 -> 93 | B12: ='301.1 3332301.1 Pol'!C607 -> Dokončovací práce inženýrských staveb | E12: ='301.1 3332301.1 Pol'!BA665 -> 0 | F12: ='301.1 3332301.1 Pol'!BB665 -> 0 | G12: ='301.1 3332301.1 Pol'!BC665 -> 0 | H12: ='301.1 3332301.1 Pol'!BD665 -> 0 | I12: ='301.1 3332301.1 Pol'!BE665 -> 0
A13: ='301.1 3332301.1 Pol'!B666 -> 99 | B13: ='301.1 3332301.1 Pol'!C666 -> Staveništní přesun hmot | E13: ='301.1 3332301.1 Pol'!BA668 -> 0 | F13: ='301.1 3332301.1 Pol'!BB668 -> 0 | G13: ='301.1 3332301.1 Pol'!BC668 -> 0 | H13: ='301.1 3332301.1 Pol'!BD668 -> 0 | I13: ='301.1 3332301.1 Pol'!BE668 -> 0
B14: CELKEM OBJEKT | E14: =SUM(E7:E13) -> 0 | F14: =SUM(F7:F13) -> 0 | G14: =SUM(G7:G13) -> 0 | H14: =SUM(H7:H13) -> 0 | I14: =SUM(I7:I13) -> 0

Sheet 301.1 3332301.1 Pol
A1: Položkový rozpočet
A3: Stavba : | C3: 3332 Obnova vodovodu a kanalizace v Obci Loučky | E3: Rozpočet: | F3: ='301.1 3332301.1 Rek'!H1 -> 3332/301.1
A4: Objekt : | C4: 301.1 Vodovod - 1.část | E4: ='301.1 3332301.1 Rek'!G2 -> Vodovod - 1.část
A6: P.č. | B6: Číslo položky | C6: Název položky | D6: MJ | E6: množství | F6: cena / MJ | G6: celkem (Kč) | H6: Jednotková hmotnost | I6: Celková hmotnost | J6: Jednotková dem.hmot. | K6: Celková dem.hmot.
A7: Díl: | B7: 1 | C7: Zemní práce | O7: 1
A8: 1 | B8: 119001401R00 | C8: Dočasné zajištění ocelového potrubí do DN 200 mm | D8: m | E8: 65 | G8: =E8*F8 -> 0 | H8: 0.00869 | I8: =E8*H8 -> 0.56485 | J8: 0 | K8: =E8*J8 -> 0 | O8: 2 | AA8: 1 | AB8: 1 | AC8: 1 | AZ8: 1 | BA8: =IF(AZ8=1,G8,0) -> 0 | BB8: =IF(AZ8=2,G8,0) -> 0 | BC8: =IF(AZ8=3,G8,0) -> 0 | BD8: =IF(AZ8=4,G8,0) -> 0 | BE8: =IF(AZ8=5,G8,0) -> 0 | CA8: 1 | CB8: 1
A9: 2 | B9: 119001422R00 | C9: Dočasné zajištění kabelů - v počtu 3 - 6 kabelů | D9: m | E9: 42 | G9: =E9*F9 -> 0 | H9: 0.03974 | I9: =E9*H9 -> 1.66908 | J9: 0 | K9: =E9*J9 -> 0 | O9: 2 | AA9: 1 | AB9: 1 | AC9: 1 | AZ9: 1 | BA9: =IF(AZ9=1,G9,0) -> 0 | BB9: =IF(AZ9=2,G9,0) -> 0 | BC9: =IF(AZ9=3,G9,0) -> 0 | BD9: =IF(AZ9=4,G9,0) -> 0 | BE9: =IF(AZ9=5,G9,0) -> 0 | CA9: 1 | CB9: 1
A10: 3 | B10: 121100002RAA | C10: Sejmutí ornice a uložení na deponii zpětný přesun, rozprostření v tl. 20 cm, osetí | D10: m3 | E10: 43.44 | G10: =E10*F10 -> 0 | H10: 0 | I10: =E10*H10 -> 0 | J10: 0 | K10: =E10*J10 -> 0 | O10: 2 | AA10: 1 | AB10: 1 | AC10: 1 | AZ10: 1 | BA10: =IF(AZ10=1,G10,0) -> 0 | BB10: =IF(AZ10=2,G10,0) -> 0 | BC10: =IF(AZ10=3,G10,0) -> 0 | BD10: =IF(AZ10=4,G10,0) -> 0 | BE10: =IF(AZ10=5,G10,0) -> 0 | CA10: 1 | CB10: 1
C11: Vodovod TLT DN80 : | E11: 0 | M11: Vodovod TLT DN80 :
C12: "VL" :22,00*3,00*0,20 | E12: 13.2 | M12: "VL" :22,00*3,00*0,20
C13: Vodovod TLT DN80 - VP PE D 32x3,0 mm:151,20*0,5*2,00*0,20 | E13: 30.24 | M13: Vodovod TLT DN80 - VP PE D 32x3,0 mm:151,20*0,5*2,00*0,20
A14: 4 | B14: 130001101RRX | C14: Příplatek za ztížené hloubení v blízkosti vedení | D14: m3 | E14: 117.8896 | G14: =E14*F14 -> 0 | H14: 0 | I14: =E14*H14 -> 0 | J14: 0 | K14: =E14*J14 -> 0 | O14: 2 | AA14: 1 | AB14: 1 | AC14: 1 | AZ14: 1 | BA14: =IF(AZ14=1,G14,0) -> 0 | BB14: =IF(AZ14=2,G14,0) -> 0 | BC14: =IF(AZ14=3,G14,0) -> 0 | BD14: =IF(AZ14=4,G14,0) -> 0 | BE14: =IF(AZ14=5,G14,0) -> 0 | CA14: 1 | CB14: 1
C15: Včetně případných nutných dokopávem a ručního výkopu podél sousedících inženýrských sítí | L15: Včetně případných nutných dokopávem a ručního výkopu podél sousedících inženýrských sítí | O15: 3
C16: Začátek provozního součtu | E16: 0 | M16: Začátek provozního součtu
C17: Vodovod TLT DN80 : | E17: 0 | M17: Vodovod TLT DN80 :
C18: Průměrná hloubka výkopů 1,50 m: | E18: 0 | M18: Průměrná hloubka výkopů 1,50 m:
C19: "VL" :28,50*0,80*1,50 | E19: 34.2 | M19: "VL" :28,50*0,80*1,50
C20: "VL1":(290,00+1,50+8,50)*0,80*1,50 | E20: 360 | M20: "VL1":(290,00+1,50+8,50)*0,80*1,50
C21: "VL1A" - Vyvedení mimo komunikaci:6,00*0,80*1,50 | E21: 7.2 | M21: "VL1A" - Vyvedení mimo komunikaci:6,00*0,80*1,50
C22: "VL1B":24,00*0,80*1,50 | E22: 28.8 | M22: "VL1B":24,00*0,80*1,50
C23: "VL2" :(126,50+1,50)*0,80*1,50 | E23: 153.6 | M23: "VL2" :(126,50+1,50)*0,80*1,50
C24: "VL2A" :35,00*0,800*1,50 | E24: 42 | M24: "VL2A" :35,00*0,800*1,50
C25: Vodovod TLT DN80 - VP PE D 32x3,0 mm:151,20*0,70*1,50 | E25: 158.76 | M25: Vodovod TLT DN80 - VP PE D 32x3,0 mm:151,20*0,70*1,50
C26: Odpočet objemu konstrukcí komunikace, chodníků a ZP:-(499,50*0,80+151,20*0,5*0,70)*0,40 | E26: -181.008 | M26: Odpočet objemu konstrukcí komunikace, chodníků a ZP:-(499,50*0,80+151,20*0,5*0,70)*0,40
C27: Odpočet ornice:-(22,00*0,80+151,20*0,5*0,70)*0,20 | E27: -14.104 | M27: Odpočet ornice:-(22,00*0,80+151,20*0,5*0,70)*0,20
C28: Konec provozního součtu | E28: 589.448 | M28: Konec provozního součtu
C29: V hornině tř. 3 - 4 - 20%:589,4480*0,2 | E29: 117.8896 | M29: V hornině tř. 3 - 4 - 20%:589,4480*0,2
A30: 5 | B30: 130901123RT3 | C30: Bourání konstrukcí ze železobetonu ve vykopávkách bagrem s kladivem | D30: m3 | E30: 12.384 | G30: =E30*F30 -> 0 | H30: 0 | I30: =E30*H30 -> 0 | J30: 0 | K30: =E30*J30 -> 0 | O30: 2 | AA30: 1 | AB30: 1 | AC30: 1 | AZ30: 1 | BA30: =IF(AZ30=1,G30,0) -> 0 | BB30: =IF(AZ30=2,G30,0) -> 0 | BC30: =IF(AZ30=3,G30,0) -> 0 | BD30: =IF(AZ30=4,G30,0) -> 0 | BE30: =IF(AZ30=5,G30,0) -> 0 | CA30: 1 | CB30: 1
C31: Položka obsahuje odstranění materiálu obklopujícího betonové a železobetonové konstrukce v míře nutné pro vyzvednutí, rozpojení konstrukcí, uchopení a vyzvednutí konstrukce z výkopu a uložení na dopravní prostředek včetně odvozu na skládku zhotovitele a poplatek za skládku. | L31: Položka obsahuje odstranění materiálu obklopujícího betonové a železobetonové konstrukce v míře nutné pro vyzvednutí, rozpojení konstrukcí, uchopení a vyzvednutí konstrukce z výkopu a uložení na dopravní prostředek včetně odvozu na skládku zhotovitele a poplatek za skládku. | O31: 3
C32: Vybourání stávajících AŠ (3 kusy):4,1280*3 | E32: 12.384 | M32: Vybourání stávajících AŠ (3 kusy):4,1280*3
A33: 6 | B33: 132201212R00 | C33: Hloubení rýh š.do 200 cm hor.3 do 1000m3,STROJNĚ | D33: m3 | E33: 294.724 | G33: =E33*F33 -> 0 | H33: 0 | I33: =E33*H33 -> 0 | J33: 0 | K33: =E33*J33 -> 0 | O33: 2 | AA33: 1 | AB33: 1 | AC33: 1 | AZ33: 1 | BA33: =IF(AZ33=1,G33,0) -> 0 | BB33: =IF(AZ33=2,G33,0) -> 0 | BC33: =IF(AZ33=3,G33,0) -> 0 | BD33: =IF(AZ33=4,G33,0) -> 0 | BE33: =IF(AZ33=5,G33,0) -> 0 | CA33: 1 | CB33: 1
C34: Položka obsahuje hloubení rýh traktorbagrem, naložení výkopku na dopravní prostředek pro svislé, nebo vodorovné přemístění, popř. přemístění výkopku do 3 m (po povrchu území), případné zajištění rypadel polštáři, udržování pracoviště a ochranu výkopiště proti stékání srážkové vody z okolního terénu i s jejím odvodněním, nebo odvedením, přesekání a odstranění kořenů ve výkopišti, odstranění napadávek, urovnání dna výkopu. | L34: Položka obsahuje hloubení rýh traktorbagrem, naložení výkopku na dopravní prostředek pro svislé, nebo vodorovné přemístění, popř. přemístění výkopku do 3 m (po povrchu území), případné zajištění rypadel polštáři, udržování pracoviště a ochranu výkopiště proti stékání srážkové vody z okolního terénu i s jejím odvodněním, nebo odvedením, přesekání a odstranění kořenů ve výkopišti, odstranění napadávek, urovnání dna výkopu. | O34: 3
C35: Začátek provozního součtu | E35: 0 | M35: Začátek provozního součtu
C36: Vodovod TLT DN80 : | E36: 0 | M36: Vodovod TLT DN80 :
C37: Průměrná hloubka výkopů 1,50 m: | E37: 0 | M37: Průměrná hloubka výkopů 1,50 m:
C38: "VL" :28,50*0,80*1,50 | E38: 34.2 | M38: "VL" :28,50*0,80*1,50
C39: "VL1":(290,00+1,50+8,50)*0,80*1,50 | E39: 360 | M39: "VL1":(290,00+1,50+8,50)*0,80*1,50
C40: "VL1A" - Vyvedení mimo komunikaci:6,00*0,80*1,50 | E40: 7.2 | M40: "VL1A" - Vyvedení mimo komunikaci:6,00*0,80*1,50
C41: "VL1B":24,00*0,80*1,50 | E41: 28.8 | M41: "VL1B":24,00*0,80*1,50
C42: "VL2" :(126,50+1,50)*0,80*1,50 | E42: 153.6 | M42: "VL2" :(126,50+1,50)*0,80*1,50
C43: "VL2A" :35,00*0,800*1,50 | E43: 42 | M43: "VL2A" :35,00*0,800*1,50
C44: Vodovod TLT DN80 - VP PE D 32x3,0 mm:151,20*0,70*1,50 | E44: 158.76 | M44: Vodovod TLT DN80 - VP PE D 32x3,0 mm:151,20*0,70*1,50
C45: Odpočet objemu konstrukcí komunikace, chodníků a ZP:-(499,50*0,80+151,20*0,5*0,70)*0,40 | E45: -181.008 | M45: Odpočet objemu konstrukcí komunikace, chodníků a ZP:-(499,50*0,80+151,20*0,5*0,70)*0,40
C46: Odpočet ornice:-(22,00*0,80+151,20*0,5*0,70)*0,20 | E46: -14.104 | M46: Odpočet ornice:-(22,00*0,80+151,20*0,5*0,70)*0,20
C47: Konec provozního součtu | E47: 589.448 | M47: Konec provozního součtu
C48: V hornině tř. 3 - 50%:589,4480*0,5 | E48: 294.724 | M48: V hornině tř. 3 - 50%:589,4480*0,5
A49: 7 | B49: 132201219R00 | C49: Přípl.za lepivost,hloubení rýh 200cm,hor.3,STROJNĚ | D49: m3 | E49: 147.362 | G49: =E49*F49 -> 0 | H49: 0 | I49: =E49*H49 -> 0 | J49: 0 | K49: =E49*J49 -> 0 | O49: 2 | AA49: 1 | AB49: 1 | AC49: 1 | AZ49: 1 | BA49: =IF(AZ49=1,G49,0) -> 0 | BB49: =IF(AZ49=2,G49,0) -> 0 | BC49: =IF(AZ49=3,G49,0) -> 0 | BD49: =IF(AZ49=4,G49,0) -> 0 | BE49: =IF(AZ49=5,G49,0) -> 0 | CA49: 1 | CB49: 1
C50: Začátek provozního součtu | E50: 0 | M50: Začátek provozního součtu
C51: Vodovod TLT DN80 : | E51: 0 | M51: Vodovod TLT DN80 :
C52: Průměrná hloubka výkopů 1,50 m: | E52: 0 | M52: Průměrná hloubka výkopů 1,50 m:
C53: "VL" :28,50*0,80*1,50 | E53: 34.2 | M53: "VL" :28,50*0,80*1,50
C54: "VL1":(290,00+1,50+8,50)*0,80*1,50 | E54: 360 | M54: "VL1":(290,00+1,50+8,50)*0,80*1,50
C55: "VL1A" - Vyvedení mimo komunikaci:6,00*0,80*1,50 | E55: 7.2 | M55: "VL1A" - Vyvedení mimo komunikaci:6,00*0,80*1,50
C56: "VL1B":24,00*0,80*1,50 | E56: 28.8 | M56: "VL1B":24,00*0,80*1,50
C57: "VL2" :(126,50+1,50)*0,80*1,50 | E57: 153.6 | M57: "VL2" :(126,50+1,50)*0,80*1,50
C58: "VL2A" :35,00*0,800*1,50 | E58: 42 | M58: "VL2A" :35,00*0,800*1,50
C59: Vodovod TLT DN80 - VP PE D 32x3,0 mm:151,20*0,70*1,50 | E59: 158.76 | M59: Vodovod TLT DN80 - VP PE D 32x3,0 mm:151,20*0,70*1,50
C60: Odpočet objemu konstrukcí komunikace, chodníků a ZP:-(499,50*0,80+151,20*0,5*0,70)*0,40 | E60: -181.008 | M60: Odpočet objemu konstrukcí komunikace, chodníků a ZP:-(499,50*0,80+151,20*0,5*0,70)*0,40
C61: Odpočet ornice:-(22,00*0,80+151,20*0,5*0,70)*0,20 | E61: -14.104 | M61: Odpočet ornice:-(22,00*0,80+151,20*0,5*0,70)*0,20
C62: Konec provozního součtu | E62: 589.448 | M62: Konec provozního součtu
C63: V hornině tř. 3 - 50%:589,4480*0,5*0,5 | E63: 147.362 | M63: V hornině tř. 3 - 50%:589,4480*0,5*0,5
A64: 8 | B64: 132301212R00 | C64: Hloubení rýh š.do 200 cm hor.4 do 1000 m3, STROJNĚ | D64: m3 | E64: 294.724 | G64: =E64*F64 -> 0 | H64: 0 | I64: =E64*H64 -> 0 | J64: 0 | K64: =E64*J64 -> 0 | O64: 2 | AA64: 1 | AB64: 1 | AC64: 1 | AZ64: 1 | BA64: =IF(AZ64=1,G64,0) -> 0 | BB64: =IF(AZ64=2,G64,0) -> 0 | BC64: =IF(AZ64=3,G64,0) -> 0 | BD64: =IF(AZ64=4,G64,0) -> 0 | BE64: =IF(AZ64=5,G64,0) -> 0 | CA64: 1 | CB64: 1
C65: Položka obsahuje hloubení rýh traktorbagrem, naložení výkopku na dopravní prostředek pro svislé, nebo vodorovné přemístění, popř. přemístění výkopku do 3 m (po povrchu území), případné zajištění rypadel polštáři, udržování pracoviště a ochranu výkopiště proti stékání srážkové vody z okolního terénu i s jejím odvodněním, nebo odvedením, přesekání a odstranění kořenů ve výkopišti, odstranění napadávek, urovnání dna výkopu. | L65: Položka obsahuje hloubení rýh traktorbagrem, naložení výkopku na dopravní prostředek pro svislé, nebo vodorovné přemístění, popř. přemístění výkopku do 3 m (po povrchu území), případné zajištění rypadel polštáři, udržování pracoviště a ochranu výkopiště proti stékání srážkové vody z okolního terénu i s jejím odvodněním, nebo odvedením, přesekání a odstranění kořenů ve výkopišti, odstranění napadávek, urovnání dna výkopu. | O65: 3
C66: Začátek provozního součtu | E66: 0 | M66: Začátek provozního součtu
C67: Vodovod TLT DN80 : | E67: 0 | M67: Vodovod TLT DN80 :
C68: Průměrná hloubka výkopů 1,50 m: | E68: 0 | M68: Průměrná hloubka výkopů 1,50 m:
C69: "VL" :28,50*0,80*1,50 | E69: 34.2 | M69: "VL" :28,50*0,80*1,50
C70: "VL1":(290,00+1,50+8,50)*0,80*1,50 | E70: 360 | M70: "VL1":(290,00+1,50+8,50)*0,80*1,50
C71: "VL1A" - Vyvedení mimo komunikaci:6,00*0,80*1,50 | E71: 7.2 | M71: "VL1A" - Vyvedení mimo komunikaci:6,00*0,80*1,50
C72: "VL1B":24,00*0,80*1,50 | E72: 28.8 | M72: "VL1B":24,00*0,80*1,50
C73: "VL2" :(126,50+1,50)*0,80*1,50 | E73: 153.6 | M73: "VL2" :(126,50+1,50)*0,80*1,50
C74: "VL2A" :35,00*0,800*1,50 | E74: 42 | M74: "VL2A" :35,00*0,800*1,50
C75: Vodovod TLT DN80 - VP PE D 32x3,0 mm:151,20*0,70*1,50 | E75: 158.76 | M75: Vodovod TLT DN80 - VP PE D 32x3,0 mm:151,20*0,70*1,50
C76: Odpočet objemu konstrukcí komunikace, chodníků a ZP:-(499,50*0,80+151,20*0,5*0,70)*0,40 | E76: -181.008 | M76: Odpočet objemu konstrukcí komunikace, chodníků a ZP:-(499,50*0,80+151,20*0,5*0,70)*0,40
C77: Odpočet ornice:-(22,00*0,80+151,20*0,5*0,70)*0,20 | E77: -14.104 | M77: Odpočet ornice:-(22,00*0,80+151,20*0,5*0,70)*0,20
C78: Konec provozního součtu | E78: 589.448 | M78: Konec provozního součtu
C79: V hornině tř. 4 - 50%:589,4480*0,5 | E79: 294.724 | M79: V hornině tř. 4 - 50%:589,4480*0,5
A80: 9 | B80: 132301219R00 | C80: Přípl.za lepivost,hloubení rýh 200cm,hor.4,STROJNĚ | D80: m3 | E80: 147.362 | G80: =E80*F80 -> 0 | H80: 0 | I80: =E80*H80 -> 0 | J80: 0 | K80: =E80*J80 -> 0 | O80: 2 | AA80: 1 | AB80: 1 | AC80: 1 | AZ80: 1 | BA80: =IF(AZ80=1,G80,0) -> 0 | BB80: =IF(AZ80=2,G80,0) -> 0 | BC80: =IF(AZ80=3,G80,0) -> 0 | BD80: =IF(AZ80=4,G80,0) -> 0 | BE80: =IF(AZ80=5,G80,0) -> 0 | CA80: 1 | CB80: 1
C81: Začátek provozního součtu | E81: 0 | M81: Začátek provozního součtu
C82: Vodovod TLT DN80 : | E82: 0 | M82: Vodovod TLT DN80 :
C83: Průměrná hloubka výkopů 1,50 m: | E83: 0 | M83: Průměrná hloubka výkopů 1,50 m:
C84: "VL" :28,50*0,80*1,50 | E84: 34.2 | M84: "VL" :28,50*0,80*1,50
C85: "VL1":(290,00+1,50+8,50)*0,80*1,50 | E85: 360 | M85: "VL1":(290,00+1,50+8,50)*0,80*1,50
C86: "VL1A" - Vyvedení mimo komunikaci:6,00*0,80*1,50 | E86: 7.2 | M86: "VL1A" - Vyvedení mimo komunikaci:6,00*0,80*1,50
C87: "VL1B":24,00*0,80*1,50 | E87: 28.8 | M87: "VL1B":24,00*0,80*1,50
C88: "VL2" :(126,50+1,50)*0,80*1,50 | E88: 153.6 | M88: "VL2" :(126,50+1,50)*0,80*1,50
C89: "VL2A" :35,00*0,800*1,50 | E89: 42 | M89: "VL2A" :35,00*0,800*1,50
C90: Vodovod TLT DN80 - VP PE D 32x3,0 mm:151,20*0,70*1,50 | E90: 158.76 | M90: Vodovod TLT DN80 - VP PE D 32x3,0 mm:151,20*0,70*1,50
C91: Odpočet objemu konstrukcí komunikace, chodníků a ZP:-(499,50*0,80+151,20*0,5*0,70)*0,40 | E91: -181.008 | M91: Odpočet objemu konstrukcí komunikace, chodníků a ZP:-(499,50*0,80+151,20*0,5*0,70)*0,40
C92: Odpočet ornice:-(22,00*0,80+151,20*0,5*0,70)*0,20 | E92: -14.104 | M92: Odpočet ornice:-(22,00*0,80+151,20*0,5*0,70)*0,20
C93: Konec provozního součtu | E93: 589.448 | M93: Konec provozního součtu
C94: V hornině tř. 4 - 50%:589,4480*0,5*0,5 | E94: 147.362 | M94: V hornině tř. 4 - 50%:589,4480*0,5*0,5
A95: 10 | B95: 151101101R00 | C95: Pažení a rozepření stěn rýh - příložné - hl.do 2 m | D95: m2 | E95: 2018.1 | G95: =E95*F95 -> 0 | H95: 0.00099 | I95: =E95*H95 -> 1.997919 | J95: 0 | K95: =E95*J95 -> 0 | O95: 2 | AA95: 1 | AB95: 1 | AC95: 1 | AZ95: 1 | BA95: =IF(AZ95=1,G95,0) -> 0 | BB95: =IF(AZ95=2,G95,0) -> 0 | BC95: =IF(AZ95=3,G95,0) -> 0 | BD95: =IF(AZ95=4,G95,0) -> 0 | BE95: =IF(AZ95=5,G95,0) -> 0 | CA95: 1 | CB95: 1
C96: Vodovod TLT DN80 : | E96: 0 | M96: Vodovod TLT DN80 :
C97: Průměrná hloubka výkopů 1,50 m: | E97: 0 | M97: Průměrná hloubka výkopů 1,50 m:
C98: "VL" :28,50*1,50*2 | E98: 85.5 | M98: "VL" :28,50*1,50*2
C99: "VL1":(290,00+1,50+8,50)*1,50*2 | E99: 900 | M99: "VL1":(290,00+1,50+8,50)*1,50*2
C100: "VL1A" - Vyvedení mimo komunikaci:6,00*1,50*2 | E100: 18 | M100: "VL1A" - Vyvedení mimo komunikaci:6,00*1,50*2
C101: "VL1B":24,00*1,50*2 | E101: 72 | M101: "VL1B":24,00*1,50*2
C102: "VL2" :(126,50+1,50)*1,50*2 | E102: 384 | M102: "VL2" :(126,50+1,50)*1,50*2
C103: "VL2A" :35,00*1,50*2 | E103: 105 | M103: "VL2A" :35,00*1,50*2
C104: Vodovod TLT DN80 - VP PE D 32x3,0 mm:151,20*1,50*2 | E104: 453.6 | M104: Vodovod TLT DN80 - VP PE D 32x3,0 mm:151,20*1,50*2
A105: 11 | B105: 151101111R00 | C105: Odstranění pažení stěn rýh - příložné - hl. do 2 m | D105: m2 | E105: 2018.1 | G105: =E105*F105 -> 0 | H105: 0 | I105: =E105*H105 -> 0 | J105: 0 | K105: =E105*J105 -> 0 | O105: 2 | AA105: 1 | AB105: 1 | AC105: 1 | AZ105: 1 | BA105: =IF(AZ105=1,G105,0) -> 0 | BB105: =IF(AZ105=2,G105,0) -> 0 | BC105: =IF(AZ105=3,G105,0) -> 0 | BD105: =IF(AZ105=4,G105,0) -> 0 | BE105: =IF(AZ105=5,G105,0) -> 0 | CA105: 1 | CB105: 1
C106: Vodovod TLT DN80 : | E106: 0 | M106: Vodovod TLT DN80 :
C107: Průměrná hloubka výkopů 1,50 m: | E107: 0 | M107: Průměrná hloubka výkopů 1,50 m:
C108: "VL" :28,50*1,50*2 | E108: 85.5 | M108: "VL" :28,50*1,50*2
C109: "VL1":(290,00+1,50+8,50)*1,50*2 | E109: 900 | M109: "VL1":(290,00+1,50+8,50)*1,50*2
C110: "VL1A" - Vyvedení mimo komunikaci:6,00*1,50*2 | E110: 18 | M110: "VL1A" - Vyvedení mimo komunikaci:6,00*1,50*2
C111: "VL1B":24,00*1,50*2 | E111: 72 | M111: "VL1B":24,00*1,50*2
C112: "VL2" :(126,50+1,50)*1,50*2 | E112: 384 | M112: "VL2" :(126,50+1,50)*1,50*2
C113: "VL2A" :35,00*1,50*2 | E113: 105 | M113: "VL2A" :35,00*1,50*2
C114: Vodovod TLT DN80 - VP PE D 32x3,0 mm:151,20*1,50*2 | E114: 453.6 | M114: Vodovod TLT DN80 - VP PE D 32x3,0 mm:151,20*1,50*2
A115: 12 | B115: 162701105RSZ | C115: Vodorovné přemístění výkopku z hor.1-4 na skládku zhotovitele | D115: m3 | E115: 529.0814 | G115: =E115*F115 -> 0 | H115: 0 | I115: =E115*H115 -> 0 | J115: 0 | K115: =E115*J115 -> 0 | O115: 2 | AA115: 1 | AB115: 1 | AC115: 1 | AZ115: 1 | BA115: =IF(AZ115=1,G115,0) -> 0 | BB115: =IF(AZ115=2,G115,0) -> 0 | BC115: =IF(AZ115=3,G115,0) -> 0 | BD115: =IF(AZ115=4,G115,0) -> 0 | BE115: =IF(AZ115=5,G115,0) -> 0 | CA115: 1 | CB115: 1
C116: Výkopy: | E116: 0 | M116: Výkopy:
C117: Začátek provozního součtu | E117: 0 | M117: Začátek provozního součtu
C118: Vodovod TLT DN80 : | E118: 0 | M118: Vodovod TLT DN80 :
C119: Průměrná hloubka výkopů 1,50 m: | E119: 0 | M119: Průměrná hloubka výkopů 1,50 m:
C120: "VL" :28,50*0,80*1,50 | E120: 34.2 | M120: "VL" :28,50*0,80*1,50
C121: "VL1":(290,00+1,50+8,50)*0,80*1,50 | E121: 360 | M121: "VL1":(290,00+1,50+8,50)*0,80*1,50
C122: "VL1A" - Vyvedení mimo komunikaci:6,00*0,80*1,50 | E122: 7.2 | M122: "VL1A" - Vyvedení mimo komunikaci:6,00*0,80*1,50
C123: "VL1B":24,00*0,80*1,50 | E123: 28.8 | M123: "VL1B":24,00*0,80*1,50
C124: "VL2" :(126,50+1,50)*0,80*1,50 | E124: 153.6 | M124: "VL2" :(126,50+1,50)*0,80*1,50
C125: "VL2A" :35,00*0,800*1,50 | E125: 42 | M125: "VL2A" :35,00*0,800*1,50
C126: Vodovod TLT DN80 - VP PE D 32x3,0 mm:151,20*0,70*1,50 | E126: 158.76 | M126: Vodovod TLT DN80 - VP PE D 32x3,0 mm:151,20*0,70*1,50
C127: Odpočet objemu konstrukcí komunikace, chodníků a ZP:-(499,50*0,80+151,20*0,5*0,70)*0,40 | E127: -181.008 | M127: Odpočet objemu konstrukcí komunikace, chodníků a ZP:-(499,50*0,80+151,20*0,5*0,70)*0,40
C128: Odpočet ornice:-(22,00*0,80+151,20*0,5*0,70)*0,20 | E128: -14.104 | M128: Odpočet ornice:-(22,00*0,80+151,20*0,5*0,70)*0,20
C129: Konec provozního součtu | E129: 589.448 | M129: Konec provozního součtu
C130: V hornině tř. 3 - 4:589,4480 | E130: 589.448 | M130: V hornině tř. 3 - 4:589,4480
C131: Odpočet zásypů zeminou: | E131: 0 | M131: Odpočet zásypů zeminou:
C132: Zásyp zeminou:-60,3666 | E132: -60.3666 | M132: Zásyp zeminou:-60,3666
A133: 13 | B133: 174101101R00 | C133: Zásyp jam, rýh, šachet se zhutněním | D133: m3 | E133: 343.4692 | G133: =E133*F133 -> 0 | H133: 0 | I133: =E133*H133 -> 0 | J133: 0 | K133: =E133*J133 -> 0 | O133: 2 | AA133: 1 | AB133: 1 | AC133: 1 | AZ133: 1 | BA133: =IF(AZ133=1,G133,0) -> 0 | BB133: =IF(AZ133=2,G133,0) -> 0 | BC133: =IF(AZ133=3,G133,0) -> 0 | BD133: =IF(AZ133=4,G133,0) -> 0 | BE133: =IF(AZ133=5,G133,0) -> 0 | CA133: 1 | CB133: 1
C134: Položka obsahuje strojní přemístění materiálu pro zásyp ze vzdálenosti do 10 m od okraje zásypu. | L134: Položka obsahuje strojní přemístění materiálu pro zásyp ze vzdálenosti do 10 m od okraje zásypu. | O134: 3
C135: Zásyp zeminou:60,3666 | E135: 60.3666 | M135: Zásyp zeminou:60,3666
C136: Začátek provozního součtu | E136: 0 | M136: Začátek provozního součtu
C137: Vodovod TLT DN80 : | E137: 0 | M137: Vodovod TLT DN80 :
C138: "VL" :22,00*0,80*1,50 | E138: 26.4 | M138: "VL" :22,00*0,80*1,50
C139: Vodovod TLT DN80 - VP PE D 32x3,0 mm:151,20*0,5*0,70*1,50 | E139: 79.38 | M139: Vodovod TLT DN80 - VP PE D 32x3,0 mm:151,20*0,5*0,70*1,50
C140: Odpočet ornice:-(22,00*0,80+151,20*0,5*0,70)*0,20 | E140: -14.104 | M140: Odpočet ornice:-(22,00*0,80+151,20*0,5*0,70)*0,20
C141: Odpočet lože, potrubí a obsypů - vodovod:-22,00*0,80*(0,10+0,08+0,30) | E141: -8.448 | M141: Odpočet lože, potrubí a obsypů - vodovod:-22,00*0,80*(0,10+0,08+0,30)
C142: Odpočet lože, potrubí a obsypů - VP:-151,20*0,5*0,70*(0,10+0,032+0,30) | E142: -22.8614 | M142: Odpočet lože, potrubí a obsypů - VP:-151,20*0,5*0,70*(0,10+0,032+0,30)
C143: Konec provozního součtu | E143: 60.3666 | M143: Konec provozního součtu
C144: Zásyp štěrkodrtí fr. 0-63 mm:283,1026 | E144: 283.1026 | M144: Zásyp štěrkodrtí fr. 0-63 mm:283,1026
C145: Začátek provozního součtu | E145: 0 | M145: Začátek provozního součtu
C146: Vodovod TLT DN80 : | E146: 0 | M146: Vodovod TLT DN80 :
C147: Průměrná hloubka výkopů 1,50 m: | E147: 0 | M147: Průměrná hloubka výkopů 1,50 m:
C148: "VL" :6,50*0,80*1,50 | E148: 7.8 | M148: "VL" :6,50*0,80*1,50
C149: "VL1":(290,00+1,50+8,50)*0,80*1,50 | E149: 360 | M149: "VL1":(290,00+1,50+8,50)*0,80*1,50
C150: "VL1A" - Vyvedení mimo komunikaci:6,00*0,80*1,50 | E150: 7.2 | M150: "VL1A" - Vyvedení mimo komunikaci:6,00*0,80*1,50
C151: "VL1B":24,00*0,80*1,50 | E151: 28.8 | M151: "VL1B":24,00*0,80*1,50
C152: "VL2" :(126,50+1,50)*0,80*1,50 | E152: 153.6 | M152: "VL2" :(126,50+1,50)*0,80*1,50
C153: "VL2A" :35,00*0,80*1,50 | E153: 42 | M153: "VL2A" :35,00*0,80*1,50
C154: Vodovod TLT DN80 - VP PE D 32x3,0 mm:151,20*0,5*0,70*1,50 | E154: 79.38 | M154: Vodovod TLT DN80 - VP PE D 32x3,0 mm:151,20*0,5*0,70*1,50
C155: Odpočet objemu konstrukcí komunikace, chodníků a ZP:-(499,50*0,80+151,20*0,5*0,70)*0,40 | E155: -181.008 | M155: Odpočet objemu konstrukcí komunikace, chodníků a ZP:-(499,50*0,80+151,20*0,5*0,70)*0,40
C156: Odpočet lože, potrubí a obsypů - vodovod:-499,50*0,80*(0,10+0,08+0,30) | E156: -191.808 | M156: Odpočet lože, potrubí a obsypů - vodovod:-499,50*0,80*(0,10+0,08+0,30)
C157: Odpočet lože, potrubí a obsypů - VP:-151,20*0,5*0,70*(0,10+0,032+0,30) | E157: -22.8614 | M157: Odpočet lože, potrubí a obsypů - VP:-151,20*0,5*0,70*(0,10+0,032+0,30)
C158: Konec provozního součtu | E158: 283.1026 | M158: Konec provozního součtu
A159: 14 | B159: 175101101R00 | C159: Obsyp potrubí bez prohození sypaniny | D159: m3 | E159: 190.9319 | G159: =E159*F159 -> 0 | H159: 0 | I159: =E159*H159 -> 0 | J159: 0 | K159: =E159*J159 -> 0 | O159: 2 | AA159: 1 | AB159: 1 | AC159: 1 | AZ159: 1 | BA159: =IF(AZ159=1,G159,0) -> 0 | BB159: =IF(AZ159=2,G159,0) -> 0 | BC159: =IF(AZ159=3,G159,0) -> 0 | BD159: =IF(AZ159=4,G159,0) -> 0 | BE159: =IF(AZ159=5,G159,0) -> 0 | CA159: 1 | CB159: 1
C160: Vodovod TLT DN80 : | E160: 0 | M160: Vodovod TLT DN80 :
C161: "VL" :28,50*(0,80*(0,08+0,30)-0,04^2*Pi) | E161: 8.5207 | M161: "VL" :28,50*(0,80*(0,08+0,30)-0,04^2*Pi)
C162: "VL1":(290,00+1,50+8,50)*(0,80*(0,08+0,30)-0,04^2*Pi) | E162: 89.692 | M162: "VL1":(290,00+1,50+8,50)*(0,80*(0,08+0,30)-0,04^2*Pi)
C163: "VL1A" - Vyvedení mimo komunikaci:6,00*(0,80*(0,08+0,30)-0,04^2*Pi) | E163: 1.7938 | M163: "VL1A" - Vyvedení mimo komunikaci:6,00*(0,80*(0,08+0,30)-0,04^2*Pi)
C164: "VL1B":24,00*(0,80*(0,08+0,30)-0,04^2*Pi) | E164: 7.1754 | M164: "VL1B":24,00*(0,80*(0,08+0,30)-0,04^2*Pi)
C165: "VL2" :(126,50+1,50)*(0,80*(0,08+0,30)-0,04^2*Pi) | E165: 38.2686 | M165: "VL2" :(126,50+1,50)*(0,80*(0,08+0,30)-0,04^2*Pi)
C166: "VL2A" :35,00*(0,80*(0,08+0,30)-0,04^2*Pi) | E166: 10.4641 | M166: "VL2A" :35,00*(0,80*(0,08+0,30)-0,04^2*Pi)
C167: Vodovod TLT DN80 - VP PE D 32x3,0 mm: | E167: 0 | M167: Vodovod TLT DN80 - VP PE D 32x3,0 mm:
C168: "VL" :10,00*(0,70*(0,032+0,30)-0,016^2*Pi) | E168: 2.316 | M168: "VL" :10,00*(0,70*(0,032+0,30)-0,016^2*Pi)
C169: "VL1":80,20*(0,70*(0,032+0,30)-0,016^2*Pi) | E169: 18.574 | M169: "VL1":80,20*(0,70*(0,032+0,30)-0,016^2*Pi)
C170: "VL1A" :0 | E170: 0 | M170: "VL1A" :0
C171: "VL1B":7,00*(0,70*(0,032+0,30)-0,016^2*Pi) | E171: 1.6212 | M171: "VL1B":7,00*(0,70*(0,032+0,30)-0,016^2*Pi)
C172: "VL2" :36,00*(0,70*(0,032+0,30)-0,016^2*Pi) | E172: 8.3374 | M172: "VL2" :36,00*(0,70*(0,032+0,30)-0,016^2*Pi)
C173: "VL2A":18,00*(0,70*(0,032+0,30)-0,016^2*Pi) | E173: 4.1687 | M173: "VL2A":18,00*(0,70*(0,032+0,30)-0,016^2*Pi)
A174: 15 | B174: 199000002R00 | C174: Poplatek za skládku horniny 1- 4 č. dle katal. odpadů 17 05 04 | D174: m3 | E174: 529.0814 | G174: =E174*F174 -> 0 | H174: 0 | I174: =E174*H174 -> 0 | J174: 0 | K174: =E174*J174 -> 0 | O174: 2 | AA174: 1 | AB174: 1 | AC174: 1 | AZ174: 1 | BA174: =IF(AZ174=1,G174,0) -> 0 | BB174: =IF(AZ174=2,G174,0) -> 0 | BC174: =IF(AZ174=3,G174,0) -> 0 | BD174: =IF(AZ174=4,G174,0) -> 0 | BE174: =IF(AZ174=5,G174,0) -> 0 | CA174: 1 | CB174: 1
C175: Výkopy: | E175: 0 | M175: Výkopy:
C176: Začátek provozního součtu | E176: 0 | M176: Začátek provozního součtu
C177: Vodovod TLT DN80 : | E177: 0 | M177: Vodovod TLT DN80 :
C178: Průměrná hloubka výkopů 1,50 m: | E178: 0 | M178: Průměrná hloubka výkopů 1,50 m:
C179: "VL" :28,50*0,80*1,50 | E179: 34.2 | M179: "VL" :28,50*0,80*1,50
C180: "VL1":(290,00+1,50+8,50)*0,80*1,50 | E180: 360 | M180: "VL1":(290,00+1,50+8,50)*0,80*1,50
C181: "VL1A" - Vyvedení mimo komunikaci:6,00*0,80*1,50 | E181: 7.2 | M181: "VL1A" - Vyvedení mimo komunikaci:6,00*0,80*1,50
C182: "VL1B":24,00*0,80*1,50 | E182: 28.8 | M182: "VL1B":24,00*0,80*1,50
C183: "VL2" :(126,50+1,50)*0,80*1,50 | E183: 153.6 | M183: "VL2" :(126,50+1,50)*0,80*1,50
C184: "VL2A" :35,00*0,800*1,50 | E184: 42 | M184: "VL2A" :35,00*0,800*1,50
C185: Vodovod TLT DN80 - VP PE D 32x3,0 mm:151,20*0,70*1,50 | E185: 158.76 | M185: Vodovod TLT DN80 - VP PE D 32x3,0 mm:151,20*0,70*1,50
C186: Odpočet objemu konstrukcí komunikace, chodníků a ZP:-(499,50*0,80+151,20*0,5*0,70)*0,40 | E186: -181.008 | M186: Odpočet objemu konstrukcí komunikace, chodníků a ZP:-(499,50*0,80+151,20*0,5*0,70)*0,40
C187: Odpočet ornice:-(22,00*0,80+151,20*0,5*0,70)*0,20 | E187: -14.104 | M187: Odpočet ornice:-(22,00*0,80+151,20*0,5*0,70)*0,20
C188: Konec provozního součtu | E188: 589.448 | M188: Konec provozního součtu
C189: V hornině tř. 3 - 4:589,4480 | E189: 589.448 | M189: V hornině tř. 3 - 4:589,4480
C190: Odpočet zásypů zeminou: | E190: 0 | M190: Odpočet zásypů zeminou:
C191: Zásyp zeminou:-60,3666 | E191: -60.3666 | M191: Zásyp zeminou:-60,3666
A192: 16 | B192: 969011131RRX | C192: Vybourání vodovod., plynového vedení DN do 125 mm | D192: m | E192: 400 | G192: =E192*F192 -> 0 | H192: 0.00038 | I192: =E192*H192 -> 0.152 | J192: -0.037 | K192: =E192*J192 -> -14.8 | O192: 2 | AA192: 1 | AB192: 1 | AC192: 1 | AZ192: 1 | BA192: =IF(AZ192=1,G192,0) -> 0 | BB192: =IF(AZ192=2,G192,0) -> 0 | BC192: =IF(AZ192=3,G192,0) -> 0 | BD192: =IF(AZ192=4,G192,0) -> 0 | BE192: =IF(AZ192=5,G192,0) -> 0 | CA192: 1 | CB192: 1
C193: Položka obsahuje odstranění materiálu obklopujícího potrubí v míře nutné pro vyzvednutí, rozpojení trub, uchopení a vyzvednutí trub z výkopu včetně všech znaků a armatur a uložení na dopravní prostředek včetně odvozu na skládku zhotovitele a poplatek za skládku. | L193: Položka obsahuje odstranění materiálu obklopujícího potrubí v míře nutné pro vyzvednutí, rozpojení trub, uchopení a vyzvednutí trub z výkopu včetně všech znaků a armatur a uložení na dopravní prostředek včetně odvozu na skládku zhotovitele a poplatek za skládku. | O193: 3
C194: Vybourání části stávajícího vodovodního potrubí včetně znaků (odhad):400,00 | E194: 400 | M194: Vybourání části stávajícího vodovodního potrubí včetně znaků (odhad):400,00
A195: 17 | B195: 976085211R00 | C195: Vybourání kanal.rámů a poklopů plochy do 0,3 m2 | D195: kus | E195: 43 | G195: =E195*F195 -> 0 | H195: 0 | I195: =E195*H195 -> 0 | J195: -0.024 | K195: =E195*J195 -> -1.032 | O195: 2 | AA195: 1 | AB195: 0 | AC195: 0 | AZ195: 1 | BA195: =IF(AZ195=1,G195,0) -> 0 | BB195: =IF(AZ195=2,G195,0) -> 0 | BC195: =IF(AZ195=3,G195,0) -> 0 | BD195: =IF(AZ195=4,G195,0) -> 0 | BE195: =IF(AZ195=5,G195,0) -> 0 | CA195: 1 | CB195: 0
C196: Vybourání stávajících AŠ (3 kusy) - Poklopy:3 | E196: 3 | M196: Vybourání stávajících AŠ (3 kusy) - Poklopy:3
C197: Vybourání stávajících znaků vodovod :40,00 | E197: 40 | M197: Vybourání stávajících znaků vodovod :40,00
A198: 18 | B198: 58337308R | C198: Štěrkopísek frakce 0-2 tř.B | D198: t | E198: 376.7086 | G198: =E198*F198 -> 0 | H198: 1 | I198: =E198*H198 -> 376.7086 | K198: =E198*J198 -> 0 | O198: 2 | AA198: 3 | AB198: 1 | AC198: 58337308R | AZ198: 1 | BA198: =IF(AZ198=1,G198,0) -> 0 | BB198: =IF(AZ198=2,G198,0) -> 0 | BC198: =IF(AZ198=3,G198,0) -> 0 | BD198: =IF(AZ198=4,G198,0) -> 0 | BE198: =IF(AZ198=5,G198,0) -> 0 | CA198: 3 | CB198: 1
C199: Začátek provozního součtu | E199: 0 | M199: Začátek provozního součtu
C200: Vodovod TLT DN80 : | E200: 0 | M200: Vodovod TLT DN80 :
C201: "VL" :28,50*(0,80*(0,08+0,30)-0,04^2*Pi) | E201: 8.5207 | M201: "VL" :28,50*(0,80*(0,08+0,30)-0,04^2*Pi)
C202: "VL1":(290,00+1,50+8,50)*(0,80*(0,08+0,30)-0,04^2*Pi) | E202: 89.692 | M202: "VL1":(290,00+1,50+8,50)*(0,80*(0,08+0,30)-0,04^2*Pi)
... 466 more rows

Sheet 301.2 3332301.2 KL
A1: POLOŽKOVÝ ROZPOČET
A2: Rozpočet | C2: 3332/301.2 | D2: Vodovod - 2.část | F2: JKSO | G2: 827.11.A1
A4: Objekt | F4: SKP
A5: 301.2 | C5: Vodovod - 2.část | F5: Měrná jednotka | G5: m
A6: Stavba | F6: Počet jednotek | G6: 0
A7: 3332 | C7: Obnova vodovodu a kanalizace v Obci Loučky | F7: Náklady na m.j. | G7: =IF(G6=0,,ROUND((F30+F32)/G6,1)) -> 0
A8: Projektant | C8: LK PROJEKT s.r.o. | F8: Typ rozpočtu
A9: Zpracovatel projektu
A10: Objednatel | C10: Vodohospodářské sdružení Turnov
A11: Dodavatel | C11: . | F11: Zakázkové číslo
A12: Rozpočtoval | F12: Počet listů
A13: ROZPOČTOVÉ NÁKLADY
A14: Základní rozpočtové náklady
B15: HSV celkem | C15: ='301.2 3332301.2 Rek'!E14 -> 0
A16: Z | B16: PSV celkem | C16: ='301.2 3332301.2 Rek'!F14 -> 0
A17: R | B17: M práce celkem | C17: ='301.2 3332301.2 Rek'!H14 -> 0
A18: N | B18: M dodávky celkem | C18: ='301.2 3332301.2 Rek'!G14 -> 0
A19: ZRN celkem | C19: =SUM(C15:C18) -> 0
A21: HZS | C21: ='301.2 3332301.2 Rek'!I14 -> 0
A22: ZRN+HZS | C22: =C19+C21 -> 0
A23: ZRN+ost.náklady+HZS | C23: =C22+G23 -> 0
A24: Vypracoval | D24: Za zhotovitele | F24: Za objednatele
A25: Jméno : | D25: Jméno : | F25: Jméno :
A26: Datum : | D26: Datum : | F26: Datum :
A28: Podpis : | D28: Podpis: | F28: Podpis:
A30: Základ pro DPH | C30: 21 | D30: % | F30: =C23-F32 -> 0
A31: DPH | C31: =C30 -> 21 | D31: % | F31: =ROUND(PRODUCT(F30,C31/100),0) -> 0
A32: Základ pro DPH | C32: 0 | D32: % | F32: 0
A33: DPH | C33: =C32 -> 0 | D33: % | F33: =ROUND(PRODUCT(F32,C33/100),0) -> 0
A34: CENA ZA OBJEKT CELKEM | F34: =ROUND(SUM(F30:F33),0) -> 0
A36: Poznámka :

Sheet 301.2 3332301.2 Rek
A1: Stavba : | C1: 3332 Obnova vodovodu a kanalizace v Obci Loučky | G1: Rozpočet : | H1: 3332/301.2
A2: Objekt : | C2: 301.2 Vodovod - 2.část | G2: Vodovod - 2.část
A4: REKAPITULACE STAVEBNÍCH DÍLŮ
B6: Stavební díl | E6: HSV | F6: PSV | G6: Dodávka | H6: Montáž | I6: HZS
A7: ='301.2 3332301.2 Pol'!B7 -> 1 | B7: ='301.2 3332301.2 Pol'!C7 -> Zemní práce | E7: ='301.2 3332301.2 Pol'!BA158 -> 0 | F7: ='301.2 3332301.2 Pol'!BB158 -> 0 | G7: ='301.2 3332301.2 Pol'!BC158 -> 0 | H7: ='301.2 3332301.2 Pol'!BD158 -> 0 | I7: ='301.2 3332301.2 Pol'!BE158 -> 0
A8: ='301.2 3332301.2 Pol'!B159 -> 45 | B8: ='301.2 3332301.2 Pol'!C159 -> Podkladní a vedlejší konstrukce | E8: ='301.2 3332301.2 Pol'!BA168 -> 0 | F8: ='301.2 3332301.2 Pol'!BB168 -> 0 | G8: ='301.2 3332301.2 Pol'!BC168 -> 0 | H8: ='301.2 3332301.2 Pol'!BD168 -> 0 | I8: ='301.2 3332301.2 Pol'!BE168 -> 0
A9: ='301.2 3332301.2 Pol'!B169 -> 5 | B9: ='301.2 3332301.2 Pol'!C169 -> Komunikace | E9: ='301.2 3332301.2 Pol'!BA178 -> 0 | F9: ='301.2 3332301.2 Pol'!BB178 -> 0 | G9: ='301.2 3332301.2 Pol'!BC178 -> 0 | H9: ='301.2 3332301.2 Pol'!BD178 -> 0 | I9: ='301.2 3332301.2 Pol'!BE178 -> 0
A10: ='301.2 3332301.2 Pol'!B179 -> 8 | B10: ='301.2 3332301.2 Pol'!C179 -> Trubní vedení | E10: ='301.2 3332301.2 Pol'!BA309 -> 0 | F10: ='301.2 3332301.2 Pol'!BB309 -> 0 | G10: ='301.2 3332301.2 Pol'!BC309 -> 0 | H10: ='301.2 3332301.2 Pol'!BD309 -> 0 | I10: ='301.2 3332301.2 Pol'!BE309 -> 0
A11: ='301.2 3332301.2 Pol'!B310 -> 89 | B11: ='301.2 3332301.2 Pol'!C310 -> Ostatní konstrukce na trubním vedení | E11: ='301.2 3332301.2 Pol'!BA331 -> 0 | F11: ='301.2 3332301.2 Pol'!BB331 -> 0 | G11: ='301.2 3332301.2 Pol'!BC331 -> 0 | H11: ='301.2 3332301.2 Pol'!BD331 -> 0 | I11: ='301.2 3332301.2 Pol'!BE331 -> 0
A12: ='301.2 3332301.2 Pol'!B332 -> 93 | B12: ='301.2 3332301.2 Pol'!C332 -> Dokončovací práce inženýrských staveb | E12: ='301.2 3332301.2 Pol'!BA390 -> 0 | F12: ='301.2 3332301.2 Pol'!BB390 -> 0 | G12: ='301.2 3332301.2 Pol'!BC390 -> 0 | H12: ='301.2 3332301.2 Pol'!BD390 -> 0 | I12: ='301.2 3332301.2 Pol'!BE390 -> 0
A13: ='301.2 3332301.2 Pol'!B391 -> 99 | B13: ='301.2 3332301.2 Pol'!C391 -> Staveništní přesun hmot | E13: ='301.2 3332301.2 Pol'!BA393 -> 0 | F13: ='301.2 3332301.2 Pol'!BB393 -> 0 | G13: ='301.2 3332301.2 Pol'!BC393 -> 0 | H13: ='301.2 3332301.2 Pol'!BD393 -> 0 | I13: ='301.2 3332301.2 Pol'!BE393 -> 0
B14: CELKEM OBJEKT | E14: =SUM(E7:E13) -> 0 | F14: =SUM(F7:F13) -> 0 | G14: =SUM(G7:G13) -> 0 | H14: =SUM(H7:H13) -> 0 | I14: =SUM(I7:I13) -> 0

Sheet 301.2 3332301.2 Pol
A1: Položkový rozpočet
A3: Stavba : | C3: 3332 Obnova vodovodu a kanalizace v Obci Loučky | E3: Rozpočet: | F3: ='301.2 3332301.2 Rek'!H1 -> 3332/301.2
A4: Objekt : | C4: 301.2 Vodovod - 2.část | E4: ='301.2 3332301.2 Rek'!G2 -> Vodovod - 2.část
A6: P.č. | B6: Číslo položky | C6: Název položky | D6: MJ | E6: množství | F6: cena / MJ | G6: celkem (Kč) | H6: Jednotková hmotnost | I6: Celková hmotnost | J6: Jednotková dem.hmot. | K6: Celková dem.hmot.
A7: Díl: | B7: 1 | C7: Zemní práce | O7: 1
A8: 1 | B8: 113107625R00 | C8: Odstranění podkladu nad 50 m2,kam.drcené tl.25 cm | D8: m2 | E8: 117.15 | G8: =E8*F8 -> 0 | H8: 0 | I8: =E8*H8 -> 0 | J8: -0.55 | K8: =E8*J8 -> -64.4325 | O8: 2 | AA8: 1 | AB8: 1 | AC8: 1 | AZ8: 1 | BA8: =IF(AZ8=1,G8,0) -> 0 | BB8: =IF(AZ8=2,G8,0) -> 0 | BC8: =IF(AZ8=3,G8,0) -> 0 | BD8: =IF(AZ8=4,G8,0) -> 0 | BE8: =IF(AZ8=5,G8,0) -> 0 | CA8: 1 | CB8: 1
C9: Vodovod:128,50*0,80 | E9: 102.8 | M9: Vodovod:128,50*0,80
C10: VP:41,00*0,5*0,70 | E10: 14.35 | M10: VP:41,00*0,5*0,70
A11: 2 | B11: 113108415R00 | C11: Odstranění asfaltové vrstvy pl.nad 50 m2, tl.15 cm | D11: m2 | E11: 117.15 | G11: =E11*F11 -> 0 | H11: 0 | I11: =E11*H11 -> 0 | J11: -0.33 | K11: =E11*J11 -> -38.6595 | O11: 2 | AA11: 1 | AB11: 1 | AC11: 1 | AZ11: 1 | BA11: =IF(AZ11=1,G11,0) -> 0 | BB11: =IF(AZ11=2,G11,0) -> 0 | BC11: =IF(AZ11=3,G11,0) -> 0 | BD11: =IF(AZ11=4,G11,0) -> 0 | BE11: =IF(AZ11=5,G11,0) -> 0 | CA11: 1 | CB11: 1
C12: Položka není určena pro odstranění podkladu nebo krytu frézováním. | L12: Položka není určena pro odstranění podkladu nebo krytu frézováním. | O12: 3
C13: Vodovod:128,50*0,80 | E13: 102.8 | M13: Vodovod:128,50*0,80
C14: VP:41,00*0,5*0,70 | E14: 14.35 | M14: VP:41,00*0,5*0,70
A15: 3 | B15: 119001401R00 | C15: Dočasné zajištění ocelového potrubí do DN 200 mm | D15: m | E15: 10 | G15: =E15*F15 -> 0 | H15: 0.00869 | I15: =E15*H15 -> 0.0869 | J15: 0 | K15: =E15*J15 -> 0 | O15: 2 | AA15: 1 | AB15: 1 | AC15: 1 | AZ15: 1 | BA15: =IF(AZ15=1,G15,0) -> 0 | BB15: =IF(AZ15=2,G15,0) -> 0 | BC15: =IF(AZ15=3,G15,0) -> 0 | BD15: =IF(AZ15=4,G15,0) -> 0 | BE15: =IF(AZ15=5,G15,0) -> 0 | CA15: 1 | CB15: 1
A16: 4 | B16: 119001422R00 | C16: Dočasné zajištění kabelů - v počtu 3 - 6 kabelů | D16: m | E16: 4 | G16: =E16*F16 -> 0 | H16: 0.03974 | I16: =E16*H16 -> 0.15896 | J16: 0 | K16: =E16*J16 -> 0 | O16: 2 | AA16: 1 | AB16: 1 | AC16: 1 | AZ16: 1 | BA16: =IF(AZ16=1,G16,0) -> 0 | BB16: =IF(AZ16=2,G16,0) -> 0 | BC16: =IF(AZ16=3,G16,0) -> 0 | BD16: =IF(AZ16=4,G16,0) -> 0 | BE16: =IF(AZ16=5,G16,0) -> 0 | CA16: 1 | CB16: 1
A17: 5 | B17: 121100002RAA | C17: Sejmutí ornice a uložení na deponii zpětný přesun, rozprostření v tl. 20 cm, osetí | D17: m3 | E17: 8.2 | G17: =E17*F17 -> 0 | H17: 0 | I17: =E17*H17 -> 0 | J17: 0 | K17: =E17*J17 -> 0 | O17: 2 | AA17: 1 | AB17: 1 | AC17: 1 | AZ17: 1 | BA17: =IF(AZ17=1,G17,0) -> 0 | BB17: =IF(AZ17=2,G17,0) -> 0 | BC17: =IF(AZ17=3,G17,0) -> 0 | BD17: =IF(AZ17=4,G17,0) -> 0 | BE17: =IF(AZ17=5,G17,0) -> 0 | CA17: 1 | CB17: 1
C18: Vodovod TLT DN80 : | E18: 0 | M18: Vodovod TLT DN80 :
C19: Vodovod TLT DN80 - VP PE D 32x3,0 mm:41,00*0,5*2,00*0,20 | E19: 8.2 | M19: Vodovod TLT DN80 - VP PE D 32x3,0 mm:41,00*0,5*2,00*0,20
A20: 6 | B20: 130001101RRX | C20: Příplatek za ztížené hloubení v blízkosti vedení | D20: m3 | E20: 29.504 | G20: =E20*F20 -> 0 | H20: 0 | I20: =E20*H20 -> 0 | J20: 0 | K20: =E20*J20 -> 0 | O20: 2 | AA20: 1 | AB20: 1 | AC20: 1 | AZ20: 1 | BA20: =IF(AZ20=1,G20,0) -> 0 | BB20: =IF(AZ20=2,G20,0) -> 0 | BC20: =IF(AZ20=3,G20,0) -> 0 | BD20: =IF(AZ20=4,G20,0) -> 0 | BE20: =IF(AZ20=5,G20,0) -> 0 | CA20: 1 | CB20: 1
C21: Včetně případných nutných dokopávem a ručního výkopu podél sousedících inženýrských sítí | L21: Včetně případných nutných dokopávem a ručního výkopu podél sousedících inženýrských sítí | O21: 3
C22: Začátek provozního součtu | E22: 0 | M22: Začátek provozního součtu
C23: Vodovod TLT DN80 : | E23: 0 | M23: Vodovod TLT DN80 :
C24: Průměrná hloubka výkopů 1,50 m: | E24: 0 | M24: Průměrná hloubka výkopů 1,50 m:
C25: "VL1A" - Vyvedení mimo komunikaci:128,50*0,80*1,50 | E25: 154.2 | M25: "VL1A" - Vyvedení mimo komunikaci:128,50*0,80*1,50
C26: Vodovod TLT DN80 - VP PE D 32x3,0 mm:41,00*0,70*1,50 | E26: 43.05 | M26: Vodovod TLT DN80 - VP PE D 32x3,0 mm:41,00*0,70*1,50
C27: Odpočet objemu konstrukcí komunikace, chodníků a ZP:-(128,50*0,80+41,00*0,5*0,70)*0,40 | E27: -46.86 | M27: Odpočet objemu konstrukcí komunikace, chodníků a ZP:-(128,50*0,80+41,00*0,5*0,70)*0,40
C28: Odpočet ornice:-(41,00*0,5*0,70)*0,20 | E28: -2.87 | M28: Odpočet ornice:-(41,00*0,5*0,70)*0,20
C29: Konec provozního součtu | E29: 147.52 | M29: Konec provozního součtu
C30: V hornině tř. 3 - 4 - 20%:147,5200*0,2 | E30: 29.504 | M30: V hornině tř. 3 - 4 - 20%:147,5200*0,2
A31: 7 | B31: 132201212R00 | C31: Hloubení rýh š.do 200 cm hor.3 do 1000m3,STROJNĚ | D31: m3 | E31: 73.76 | G31: =E31*F31 -> 0 | H31: 0 | I31: =E31*H31 -> 0 | J31: 0 | K31: =E31*J31 -> 0 | O31: 2 | AA31: 1 | AB31: 1 | AC31: 1 | AZ31: 1 | BA31: =IF(AZ31=1,G31,0) -> 0 | BB31: =IF(AZ31=2,G31,0) -> 0 | BC31: =IF(AZ31=3,G31,0) -> 0 | BD31: =IF(AZ31=4,G31,0) -> 0 | BE31: =IF(AZ31=5,G31,0) -> 0 | CA31: 1 | CB31: 1
C32: Položka obsahuje hloubení rýh traktorbagrem, naložení výkopku na dopravní prostředek pro svislé, nebo vodorovné přemístění, popř. přemístění výkopku do 3 m (po povrchu území), případné zajištění rypadel polštáři, udržování pracoviště a ochranu výkopiště proti stékání srážkové vody z okolního terénu i s jejím odvodněním, nebo odvedením, přesekání a odstranění kořenů ve výkopišti, odstranění napadávek, urovnání dna výkopu. | L32: Položka obsahuje hloubení rýh traktorbagrem, naložení výkopku na dopravní prostředek pro svislé, nebo vodorovné přemístění, popř. přemístění výkopku do 3 m (po povrchu území), případné zajištění rypadel polštáři, udržování pracoviště a ochranu výkopiště proti stékání srážkové vody z okolního terénu i s jejím odvodněním, nebo odvedením, přesekání a odstranění kořenů ve výkopišti, odstranění napadávek, urovnání dna výkopu. | O32: 3
C33: Začátek provozního součtu | E33: 0 | M33: Začátek provozního součtu
C34: Vodovod TLT DN80 : | E34: 0 | M34: Vodovod TLT DN80 :
C35: Průměrná hloubka výkopů 1,50 m: | E35: 0 | M35: Průměrná hloubka výkopů 1,50 m:
C36: "VL1A" - Vyvedení mimo komunikaci:128,50*0,80*1,50 | E36: 154.2 | M36: "VL1A" - Vyvedení mimo komunikaci:128,50*0,80*1,50
C37: Vodovod TLT DN80 - VP PE D 32x3,0 mm:41,00*0,70*1,50 | E37: 43.05 | M37: Vodovod TLT DN80 - VP PE D 32x3,0 mm:41,00*0,70*1,50
C38: Odpočet objemu konstrukcí komunikace, chodníků a ZP:-(128,50*0,80+41,00*0,5*0,70)*0,40 | E38: -46.86 | M38: Odpočet objemu konstrukcí komunikace, chodníků a ZP:-(128,50*0,80+41,00*0,5*0,70)*0,40
C39: Odpočet ornice:-(41,00*0,5*0,70)*0,20 | E39: -2.87 | M39: Odpočet ornice:-(41,00*0,5*0,70)*0,20
C40: Konec provozního součtu | E40: 147.52 | M40: Konec provozního součtu
C41: V hornině tř. 3 - 50%:147,5200*0,5 | E41: 73.76 | M41: V hornině tř. 3 - 50%:147,5200*0,5
A42: 8 | B42: 132201219R00 | C42: Přípl.za lepivost,hloubení rýh 200cm,hor.3,STROJNĚ | D42: m3 | E42: 36.88 | G42: =E42*F42 -> 0 | H42: 0 | I42: =E42*H42 -> 0 | J42: 0 | K42: =E42*J42 -> 0 | O42: 2 | AA42: 1 | AB42: 1 | AC42: 1 | AZ42: 1 | BA42: =IF(AZ42=1,G42,0) -> 0 | BB42: =IF(AZ42=2,G42,0) -> 0 | BC42: =IF(AZ42=3,G42,0) -> 0 | BD42: =IF(AZ42=4,G42,0) -> 0 | BE42: =IF(AZ42=5,G42,0) -> 0 | CA42: 1 | CB42: 1
C43: Začátek provozního součtu | E43: 0 | M43: Začátek provozního součtu
C44: Vodovod TLT DN80 : | E44: 0 | M44: Vodovod TLT DN80 :
C45: Průměrná hloubka výkopů 1,50 m: | E45: 0 | M45: Průměrná hloubka výkopů 1,50 m:
C46: "VL1A" - Vyvedení mimo komunikaci:128,50*0,80*1,50 | E46: 154.2 | M46: "VL1A" - Vyvedení mimo komunikaci:128,50*0,80*1,50
C47: Vodovod TLT DN80 - VP PE D 32x3,0 mm:41,00*0,70*1,50 | E47: 43.05 | M47: Vodovod TLT DN80 - VP PE D 32x3,0 mm:41,00*0,70*1,50
C48: Odpočet objemu konstrukcí komunikace, chodníků a ZP:-(128,50*0,80+41,00*0,5*0,70)*0,40 | E48: -46.86 | M48: Odpočet objemu konstrukcí komunikace, chodníků a ZP:-(128,50*0,80+41,00*0,5*0,70)*0,40
C49: Odpočet ornice:-(41,00*0,5*0,70)*0,20 | E49: -2.87 | M49: Odpočet ornice:-(41,00*0,5*0,70)*0,20
C50: Konec provozního součtu | E50: 147.52 | M50: Konec provozního součtu
C51: V hornině tř. 3 - 50%:147,5200*0,5*0,5 | E51: 36.88 | M51: V hornině tř. 3 - 50%:147,5200*0,5*0,5
A52: 9 | B52: 132301212R00 | C52: Hloubení rýh š.do 200 cm hor.4 do 1000 m3, STROJNĚ | D52: m3 | E52: 73.76 | G52: =E52*F52 -> 0 | H52: 0 | I52: =E52*H52 -> 0 | J52: 0 | K52: =E52*J52 -> 0 | O52: 2 | AA52: 1 | AB52: 1 | AC52: 1 | AZ52: 1 | BA52: =IF(AZ52=1,G52,0) -> 0 | BB52: =IF(AZ52=2,G52,0) -> 0 | BC52: =IF(AZ52=3,G52,0) -> 0 | BD52: =IF(AZ52=4,G52,0) -> 0 | BE52: =IF(AZ52=5,G52,0) -> 0 | CA52: 1 | CB52: 1
C53: Položka obsahuje hloubení rýh traktorbagrem, naložení výkopku na dopravní prostředek pro svislé, nebo vodorovné přemístění, popř. přemístění výkopku do 3 m (po povrchu území), případné zajištění rypadel polštáři, udržování pracoviště a ochranu výkopiště proti stékání srážkové vody z okolního terénu i s jejím odvodněním, nebo odvedením, přesekání a odstranění kořenů ve výkopišti, odstranění napadávek, urovnání dna výkopu. | L53: Položka obsahuje hloubení rýh traktorbagrem, naložení výkopku na dopravní prostředek pro svislé, nebo vodorovné přemístění, popř. přemístění výkopku do 3 m (po povrchu území), případné zajištění rypadel polštáři, udržování pracoviště a ochranu výkopiště proti stékání srážkové vody z okolního terénu i s jejím odvodněním, nebo odvedením, přesekání a odstranění kořenů ve výkopišti, odstranění napadávek, urovnání dna výkopu. | O53: 3
C54: Začátek provozního součtu | E54: 0 | M54: Začátek provozního součtu
C55: Vodovod TLT DN80 : | E55: 0 | M55: Vodovod TLT DN80 :
C56: Průměrná hloubka výkopů 1,50 m: | E56: 0 | M56: Průměrná hloubka výkopů 1,50 m:
C57: "VL1A" - Vyvedení mimo komunikaci:128,50*0,80*1,50 | E57: 154.2 | M57: "VL1A" - Vyvedení mimo komunikaci:128,50*0,80*1,50
C58: Vodovod TLT DN80 - VP PE D 32x3,0 mm:41,00*0,70*1,50 | E58: 43.05 | M58: Vodovod TLT DN80 - VP PE D 32x3,0 mm:41,00*0,70*1,50
C59: Odpočet objemu konstrukcí komunikace, chodníků a ZP:-(128,50*0,80+41,00*0,5*0,70)*0,40 | E59: -46.86 | M59: Odpočet objemu konstrukcí komunikace, chodníků a ZP:-(128,50*0,80+41,00*0,5*0,70)*0,40
C60: Odpočet ornice:-(41,00*0,5*0,70)*0,20 | E60: -2.87 | M60: Odpočet ornice:-(41,00*0,5*0,70)*0,20
C61: Konec provozního součtu | E61: 147.52 | M61: Konec provozního součtu
C62: V hornině tř. 4 - 50%:147,5200*0,5 | E62: 73.76 | M62: V hornině tř. 4 - 50%:147,5200*0,5
A63: 10 | B63: 132301219R00 | C63: Přípl.za lepivost,hloubení rýh 200cm,hor.4,STROJNĚ | D63: m3 | E63: 36.88 | G63: =E63*F63 -> 0 | H63: 0 | I63: =E63*H63 -> 0 | J63: 0 | K63: =E63*J63 -> 0 | O63: 2 | AA63: 1 | AB63: 1 | AC63: 1 | AZ63: 1 | BA63: =IF(AZ63=1,G63,0) -> 0 | BB63: =IF(AZ63=2,G63,0) -> 0 | BC63: =IF(AZ63=3,G63,0) -> 0 | BD63: =IF(AZ63=4,G63,0) -> 0 | BE63: =IF(AZ63=5,G63,0) -> 0 | CA63: 1 | CB63: 1
C64: Začátek provozního součtu | E64: 0 | M64: Začátek provozního součtu
C65: Vodovod TLT DN80 : | E65: 0 | M65: Vodovod TLT DN80 :
C66: Průměrná hloubka výkopů 1,50 m: | E66: 0 | M66: Průměrná hloubka výkopů 1,50 m:
C67: "VL1A" - Vyvedení mimo komunikaci:128,50*0,80*1,50 | E67: 154.2 | M67: "VL1A" - Vyvedení mimo komunikaci:128,50*0,80*1,50
C68: Vodovod TLT DN80 - VP PE D 32x3,0 mm:41,00*0,70*1,50 | E68: 43.05 | M68: Vodovod TLT DN80 - VP PE D 32x3,0 mm:41,00*0,70*1,50
C69: Odpočet objemu konstrukcí komunikace, chodníků a ZP:-(128,50*0,80+41,00*0,5*0,70)*0,40 | E69: -46.86 | M69: Odpočet objemu konstrukcí komunikace, chodníků a ZP:-(128,50*0,80+41,00*0,5*0,70)*0,40
C70: Odpočet ornice:-(41,00*0,5*0,70)*0,20 | E70: -2.87 | M70: Odpočet ornice:-(41,00*0,5*0,70)*0,20
C71: Konec provozního součtu | E71: 147.52 | M71: Konec provozního součtu
C72: V hornině tř. 4 - 50%:147,5200*0,5*0,5 | E72: 36.88 | M72: V hornině tř. 4 - 50%:147,5200*0,5*0,5
A73: 11 | B73: 151101101R00 | C73: Pažení a rozepření stěn rýh - příložné - hl.do 2 m | D73: m2 | E73: 508.5 | G73: =E73*F73 -> 0 | H73: 0.00099 | I73: =E73*H73 -> 0.503415 | J73: 0 | K73: =E73*J73 -> 0 | O73: 2 | AA73: 1 | AB73: 1 | AC73: 1 | AZ73: 1 | BA73: =IF(AZ73=1,G73,0) -> 0 | BB73: =IF(AZ73=2,G73,0) -> 0 | BC73: =IF(AZ73=3,G73,0) -> 0 | BD73: =IF(AZ73=4,G73,0) -> 0 | BE73: =IF(AZ73=5,G73,0) -> 0 | CA73: 1 | CB73: 1
C74: Vodovod TLT DN80 : | E74: 0 | M74: Vodovod TLT DN80 :
C75: Průměrná hloubka výkopů 1,50 m: | E75: 0 | M75: Průměrná hloubka výkopů 1,50 m:
C76: "VL1A":128,50*1,50*2 | E76: 385.5 | M76: "VL1A":128,50*1,50*2
C77: Vodovod TLT DN80 - VP PE D 32x3,0 mm:41,00*1,50*2 | E77: 123 | M77: Vodovod TLT DN80 - VP PE D 32x3,0 mm:41,00*1,50*2
A78: 12 | B78: 151101111R00 | C78: Odstranění pažení stěn rýh - příložné - hl. do 2 m | D78: m2 | E78: 508.5 | G78: =E78*F78 -> 0 | H78: 0 | I78: =E78*H78 -> 0 | J78: 0 | K78: =E78*J78 -> 0 | O78: 2 | AA78: 1 | AB78: 1 | AC78: 1 | AZ78: 1 | BA78: =IF(AZ78=1,G78,0) -> 0 | BB78: =IF(AZ78=2,G78,0) -> 0 | BC78: =IF(AZ78=3,G78,0) -> 0 | BD78: =IF(AZ78=4,G78,0) -> 0 | BE78: =IF(AZ78=5,G78,0) -> 0 | CA78: 1 | CB78: 1
C79: Vodovod TLT DN80 : | E79: 0 | M79: Vodovod TLT DN80 :
C80: Průměrná hloubka výkopů 1,50 m: | E80: 0 | M80: Průměrná hloubka výkopů 1,50 m:
C81: "VL1A":128,50*1,50*2 | E81: 385.5 | M81: "VL1A":128,50*1,50*2
C82: Vodovod TLT DN80 - VP PE D 32x3,0 mm:41,00*1,50*2 | E82: 123 | M82: Vodovod TLT DN80 - VP PE D 32x3,0 mm:41,00*1,50*2
A83: 13 | B83: 162701105RSZ | C83: Vodorovné přemístění výkopku z hor.1-4 na skládku zhotovitele | D83: m3 | E83: 135.0642 | G83: =E83*F83 -> 0 | H83: 0 | I83: =E83*H83 -> 0 | J83: 0 | K83: =E83*J83 -> 0 | O83: 2 | AA83: 1 | AB83: 1 | AC83: 1 | AZ83: 1 | BA83: =IF(AZ83=1,G83,0) -> 0 | BB83: =IF(AZ83=2,G83,0) -> 0 | BC83: =IF(AZ83=3,G83,0) -> 0 | BD83: =IF(AZ83=4,G83,0) -> 0 | BE83: =IF(AZ83=5,G83,0) -> 0 | CA83: 1 | CB83: 1
C84: Výkopy: | E84: 0 | M84: Výkopy:
C85: Začátek provozního součtu | E85: 0 | M85: Začátek provozního součtu
C86: Vodovod TLT DN80 : | E86: 0 | M86: Vodovod TLT DN80 :
C87: Průměrná hloubka výkopů 1,50 m: | E87: 0 | M87: Průměrná hloubka výkopů 1,50 m:
C88: "VL1A" - Vyvedení mimo komunikaci:128,50*0,80*1,50 | E88: 154.2 | M88: "VL1A" - Vyvedení mimo komunikaci:128,50*0,80*1,50
C89: Vodovod TLT DN80 - VP PE D 32x3,0 mm:41,00*0,70*1,50 | E89: 43.05 | M89: Vodovod TLT DN80 - VP PE D 32x3,0 mm:41,00*0,70*1,50
C90: Odpočet objemu konstrukcí komunikace, chodníků a ZP:-(128,50*0,80+41,00*0,5*0,70)*0,40 | E90: -46.86 | M90: Odpočet objemu konstrukcí komunikace, chodníků a ZP:-(128,50*0,80+41,00*0,5*0,70)*0,40
C91: Odpočet ornice:-(41,00*0,5*0,70)*0,20 | E91: -2.87 | M91: Odpočet ornice:-(41,00*0,5*0,70)*0,20
C92: Konec provozního součtu | E92: 147.52 | M92: Konec provozního součtu
C93: V hornině tř. 3 - 4:147,5200 | E93: 147.52 | M93: V hornině tř. 3 - 4:147,5200
C94: Odpočet zásypů zeminou: | E94: 0 | M94: Odpočet zásypů zeminou:
C95: Zásyp zeminou:-12,4558 | E95: -12.4558 | M95: Zásyp zeminou:-12,4558
A96: 14 | B96: 174101101R00 | C96: Zásyp jam, rýh, šachet se zhutněním | D96: m3 | E96: 85.7776 | G96: =E96*F96 -> 0 | H96: 0 | I96: =E96*H96 -> 0 | J96: 0 | K96: =E96*J96 -> 0 | O96: 2 | AA96: 1 | AB96: 1 | AC96: 1 | AZ96: 1 | BA96: =IF(AZ96=1,G96,0) -> 0 | BB96: =IF(AZ96=2,G96,0) -> 0 | BC96: =IF(AZ96=3,G96,0) -> 0 | BD96: =IF(AZ96=4,G96,0) -> 0 | BE96: =IF(AZ96=5,G96,0) -> 0 | CA96: 1 | CB96: 1
C97: Položka obsahuje strojní přemístění materiálu pro zásyp ze vzdálenosti do 10 m od okraje zásypu. | L97: Položka obsahuje strojní přemístění materiálu pro zásyp ze vzdálenosti do 10 m od okraje zásypu. | O97: 3
C98: Zásyp zeminou:12,4558 | E98: 12.4558 | M98: Zásyp zeminou:12,4558
C99: Začátek provozního součtu | E99: 0 | M99: Začátek provozního součtu
C100: Vodovod TLT DN80 - VP PE D 32x3,0 mm:41,00*0,5*0,70*1,50 | E100: 21.525 | M100: Vodovod TLT DN80 - VP PE D 32x3,0 mm:41,00*0,5*0,70*1,50
C101: Odpočet ornice:-41,00*0,5*0,70*0,20 | E101: -2.87 | M101: Odpočet ornice:-41,00*0,5*0,70*0,20
C102: Odpočet lože, potrubí a obsypů - VP:-41,00*0,5*0,70*(0,10+0,032+0,30) | E102: -6.1992 | M102: Odpočet lože, potrubí a obsypů - VP:-41,00*0,5*0,70*(0,10+0,032+0,30)
C103: Konec provozního součtu | E103: 12.4558 | M103: Konec provozního součtu
C104: Zásyp štěrkodrtí fr. 0-63 mm:73,3218 | E104: 73.3218 | M104: Zásyp štěrkodrtí fr. 0-63 mm:73,3218
C105: Začátek provozního součtu | E105: 0 | M105: Začátek provozního součtu
C106: Vodovod TLT DN80 : | E106: 0 | M106: Vodovod TLT DN80 :
C107: Průměrná hloubka výkopů 1,50 m: | E107: 0 | M107: Průměrná hloubka výkopů 1,50 m:
C108: "VL1A":128,50*0,80*1,50 | E108: 154.2 | M108: "VL1A":128,50*0,80*1,50
C109: Vodovod TLT DN80 - VP PE D 32x3,0 mm:41,00*0,5*0,70*1,50 | E109: 21.525 | M109: Vodovod TLT DN80 - VP PE D 32x3,0 mm:41,00*0,5*0,70*1,50
C110: Odpočet objemu konstrukcí komunikace, chodníků a ZP:-(128,500*0,80+41,00*0,5*0,70)*0,40 | E110: -46.86 | M110: Odpočet objemu konstrukcí komunikace, chodníků a ZP:-(128,500*0,80+41,00*0,5*0,70)*0,40
C111: Odpočet lože, potrubí a obsypů - vodovod:-128,50*0,80*(0,10+0,08+0,30) | E111: -49.344 | M111: Odpočet lože, potrubí a obsypů - vodovod:-128,50*0,80*(0,10+0,08+0,30)
C112: Odpočet lože, potrubí a obsypů - VP:-41,00*0,5*0,70*(0,10+0,032+0,30) | E112: -6.1992 | M112: Odpočet lože, potrubí a obsypů - VP:-41,00*0,5*0,70*(0,10+0,032+0,30)
C113: Konec provozního součtu | E113: 73.3218 | M113: Konec provozního součtu
A114: 15 | B114: 175101101R00 | C114: Obsyp potrubí bez prohození sypaniny | D114: m3 | E114: 47.9135 | G114: =E114*F114 -> 0 | H114: 0 | I114: =E114*H114 -> 0 | J114: 0 | K114: =E114*J114 -> 0 | O114: 2 | AA114: 1 | AB114: 1 | AC114: 1 | AZ114: 1 | BA114: =IF(AZ114=1,G114,0) -> 0 | BB114: =IF(AZ114=2,G114,0) -> 0 | BC114: =IF(AZ114=3,G114,0) -> 0 | BD114: =IF(AZ114=4,G114,0) -> 0 | BE114: =IF(AZ114=5,G114,0) -> 0 | CA114: 1 | CB114: 1
C115: Vodovod TLT DN80 : | E115: 0 | M115: Vodovod TLT DN80 :
C116: "VL1A" - Vyvedení mimo komunikaci:128,50*(0,80*(0,08+0,30)-0,04^2*Pi) | E116: 38.4181 | M116: "VL1A" - Vyvedení mimo komunikaci:128,50*(0,80*(0,08+0,30)-0,04^2*Pi)
C117: Vodovod TLT DN80 - VP PE D 32x3,0 mm: | E117: 0 | M117: Vodovod TLT DN80 - VP PE D 32x3,0 mm:
C118: "VL1A" :41,00*(0,70*(0,032+0,30)-0,016^2*Pi) | E118: 9.4954 | M118: "VL1A" :41,00*(0,70*(0,032+0,30)-0,016^2*Pi)
A119: 16 | B119: 199000002R00 | C119: Poplatek za skládku horniny 1- 4 č. dle katal. odpadů 17 05 04 | D119: m3 | E119: 135.0642 | G119: =E119*F119 -> 0 | H119: 0 | I119: =E119*H119 -> 0 | J119: 0 | K119: =E119*J119 -> 0 | O119: 2 | AA119: 1 | AB119: 1 | AC119: 1 | AZ119: 1 | BA119: =IF(AZ119=1,G119,0) -> 0 | BB119: =IF(AZ119=2,G119,0) -> 0 | BC119: =IF(AZ119=3,G119,0) -> 0 | BD119: =IF(AZ119=4,G119,0) -> 0 | BE119: =IF(AZ119=5,G119,0) -> 0 | CA119: 1 | CB119: 1
C120: Výkopy: | E120: 0 | M120: Výkopy:
C121: Začátek provozního součtu | E121: 0 | M121: Začátek provozního součtu
C122: Vodovod TLT DN80 : | E122: 0 | M122: Vodovod TLT DN80 :
C123: Průměrná hloubka výkopů 1,50 m: | E123: 0 | M123: Průměrná hloubka výkopů 1,50 m:
C124: "VL1A" - Vyvedení mimo komunikaci:128,50*0,80*1,50 | E124: 154.2 | M124: "VL1A" - Vyvedení mimo komunikaci:128,50*0,80*1,50
C125: Vodovod TLT DN80 - VP PE D 32x3,0 mm:41,00*0,70*1,50 | E125: 43.05 | M125: Vodovod TLT DN80 - VP PE D 32x3,0 mm:41,00*0,70*1,50
C126: Odpočet objemu konstrukcí komunikace, chodníků a ZP:-(128,50*0,80+41,00*0,5*0,70)*0,40 | E126: -46.86 | M126: Odpočet objemu konstrukcí komunikace, chodníků a ZP:-(128,50*0,80+41,00*0,5*0,70)*0,40
C127: Odpočet ornice:-(41,00*0,5*0,70)*0,20 | E127: -2.87 | M127: Odpočet ornice:-(41,00*0,5*0,70)*0,20
C128: Konec provozního součtu | E128: 147.52 | M128: Konec provozního součtu
C129: V hornině tř. 3 - 4:147,5200 | E129: 147.52 | M129: V hornině tř. 3 - 4:147,5200
C130: Odpočet zásypů zeminou: | E130: 0 | M130: Odpočet zásypů zeminou:
C131: Zásyp zeminou:-12,4558 | E131: -12.4558 | M131: Zásyp zeminou:-12,4558
A132: 17 | B132: 919735113R00 | C132: Řezání stávajícího živičného krytu tl. 10 - 15 cm | D132: m | E132: 298.8 | G132: =E132*F132 -> 0 | H132: 0 | I132: =E132*H132 -> 0 | J132: 0 | K132: =E132*J132 -> 0 | O132: 2 | AA132: 1 | AB132: 1 | AC132: 1 | AZ132: 1 | BA132: =IF(AZ132=1,G132,0) -> 0 | BB132: =IF(AZ132=2,G132,0) -> 0 | BC132: =IF(AZ132=3,G132,0) -> 0 | BD132: =IF(AZ132=4,G132,0) -> 0 | BE132: =IF(AZ132=5,G132,0) -> 0 | CA132: 1 | CB132: 1
C133: Vodovod:128,50*2+0,80 | E133: 257.8 | M133: Vodovod:128,50*2+0,80
C134: VP:41,00*0,5*2 | E134: 41 | M134: VP:41,00*0,5*2
A135: 18 | B135: 979082113RSZ | C135: Vodorovná doprava suti po suchu na skládku zhotovitele | D135: t | E135: 103.092 | G135: =E135*F135 -> 0 | H135: 0 | I135: =E135*H135 -> 0 | J135: 0 | K135: =E135*J135 -> 0 | O135: 2 | AA135: 1 | AB135: 1 | AC135: 1 | AZ135: 1 | BA135: =IF(AZ135=1,G135,0) -> 0 | BB135: =IF(AZ135=2,G135,0) -> 0 | BC135: =IF(AZ135=3,G135,0) -> 0 | BD135: =IF(AZ135=4,G135,0) -> 0 | BE135: =IF(AZ135=5,G135,0) -> 0 | CA135: 1 | CB135: 1
A136: 19 | B136: 979089001R00 | C136: Poplatek za skládku stavební suti štěrky z komunikací, skupina odpadu 010408 | D136: t | E136: 64.4325 | G136: =E136*F136 -> 0 | H136: 0 | I136: =E136*H136 -> 0 | J136: 0 | K136: =E136*J136 -> 0 | O136: 2 | AA136: 1 | AB136: 1 | AC136: 1 | AZ136: 1 | BA136: =IF(AZ136=1,G136,0) -> 0 | BB136: =IF(AZ136=2,G136,0) -> 0 | BC136: =IF(AZ136=3,G136,0) -> 0 | BD136: =IF(AZ136=4,G136,0) -> 0 | BE136: =IF(AZ136=5,G136,0) -> 0 | CA136: 1 | CB136: 1
A137: 20 | B137: 979999995R00 | C137: Poplatek za reciklaci asfaltu, kusovost do 1600cm2 skupina 170302 | D137: t | E137: 38.6595 | G137: =E137*F137 -> 0 | H137: 0 | I137: =E137*H137 -> 0 | J137: 0 | K137: =E137*J137 -> 0 | O137: 2 | AA137: 1 | AB137: 1 | AC137: 1 | AZ137: 1 | BA137: =IF(AZ137=1,G137,0) -> 0 | BB137: =IF(AZ137=2,G137,0) -> 0 | BC137: =IF(AZ137=3,G137,0) -> 0 | BD137: =IF(AZ137=4,G137,0) -> 0 | BE137: =IF(AZ137=5,G137,0) -> 0 | CA137: 1 | CB137: 1
C138: Položka je určena pro suť o velikosti kusu do 30x30 cm nebo frézovaný asfalt(technologický materiál určený k recyklaci). | L138: Položka je určena pro suť o velikosti kusu do 30x30 cm nebo frézovaný asfalt(technologický materiál určený k recyklaci). | O138: 3
A139: 21 | B139: 58337308R | C139: Štěrkopísek frakce 0-2 tř.B | D139: t | E139: 94.5333 | G139: =E139*F139 -> 0 | H139: 1 | I139: =E139*H139 -> 94.5333 | K139: =E139*J139 -> 0 | O139: 2 | AA139: 3 | AB139: 1 | AC139: 58337308R | AZ139: 1 | BA139: =IF(AZ139=1,G139,0) -> 0 | BB139: =IF(AZ139=2,G139,0) -> 0 | BC139: =IF(AZ139=3,G139,0) -> 0 | BD139: =IF(AZ139=4,G139,0) -> 0 | BE139: =IF(AZ139=5,G139,0) -> 0 | CA139: 3 | CB139: 1
C140: Začátek provozního součtu | E140: 0 | M140: Začátek provozního součtu
C141: Vodovod TLT DN80 : | E141: 0 | M141: Vodovod TLT DN80 :
C142: "VL1A" - Vyvedení mimo komunikaci:128,50*(0,80*(0,08+0,30)-0,04^2*Pi) | E142: 38.4181 | M142: "VL1A" - Vyvedení mimo komunikaci:128,50*(0,80*(0,08+0,30)-0,04^2*Pi)
C143: Vodovod TLT DN80 - VP PE D 32x3,0 mm: | E143: 0 | M143: Vodovod TLT DN80 - VP PE D 32x3,0 mm:
C144: "VL1A" :41,00*(0,70*(0,032+0,30)-0,016^2*Pi) | E144: 9.4954 | M144: "VL1A" :41,00*(0,70*(0,032+0,30)-0,016^2*Pi)
C145: Konec provozního součtu | E145: 47.9135 | M145: Konec provozního součtu
C146: 47,9135*1,973 | E146: 94.5333 | M146: 47,9135*1,973
A147: 22 | B147: 58344197R | C147: Štěrkodrtě frakce 0-63 A | D147: t | E147: 137.3317 | G147: =E147*F147 -> 0 | H147: 1 | I147: =E147*H147 -> 137.3317 | K147: =E147*J147 -> 0 | O147: 2 | AA147: 3 | AB147: 1 | AC147: 58344197R | AZ147: 1 | BA147: =IF(AZ147=1,G147,0) -> 0 | BB147: =IF(AZ147=2,G147,0) -> 0 | BC147: =IF(AZ147=3,G147,0) -> 0 | BD147: =IF(AZ147=4,G147,0) -> 0 | BE147: =IF(AZ147=5,G147,0) -> 0 | CA147: 3 | CB147: 1
C148: Zásyp štěrkodrtí fr. 0-63 mm:73,3218*1,873 | E148: 137.3317 | M148: Zásyp štěrkodrtí fr. 0-63 mm:73,3218*1,873
C149: Začátek provozního součtu | E149: 0 | M149: Začátek provozního součtu
C150: Vodovod TLT DN80 : | E150: 0 | M150: Vodovod TLT DN80 :
C151: Průměrná hloubka výkopů 1,50 m: | E151: 0 | M151: Průměrná hloubka výkopů 1,50 m:
C152: "VL1A":128,50*0,80*1,50 | E152: 154.2 | M152: "VL1A":128,50*0,80*1,50
C153: Vodovod TLT DN80 - VP PE D 32x3,0 mm:41,00*0,5*0,70*1,50 | E153: 21.525 | M153: Vodovod TLT DN80 - VP PE D 32x3,0 mm:41,00*0,5*0,70*1,50
C154: Odpočet objemu konstrukcí komunikace, chodníků a ZP:-(128,500*0,80+41,00*0,5*0,70)*0,40 | E154: -46.86 | M154: Odpočet objemu konstrukcí komunikace, chodníků a ZP:-(128,500*0,80+41,00*0,5*0,70)*0,40
C155: Odpočet lože, potrubí a obsypů - vodovod:-128,50*0,80*(0,10+0,08+0,30) | E155: -49.344 | M155: Odpočet lože, potrubí a obsypů - vodovod:-128,50*0,80*(0,10+0,08+0,30)
C156: Odpočet lože, potrubí a obsypů - VP:-41,00*0,5*0,70*(0,10+0,032+0,30) | E156: -6.1992 | M156: Odpočet lože, potrubí a obsypů - VP:-41,00*0,5*0,70*(0,10+0,032+0,30)
C157: Konec provozního součtu | E157: 73.3218 | M157: Konec provozního součtu
B158: Celkem za | C158: 1 Zemní práce | G158: =SUM(G7:G157) -> 0 | I158: =SUM(I7:I157) -> 232.614275 | K158: =SUM(K7:K157) -> -103.092 | O158: 4 | BA158: =SUM(BA7:BA157) -> 0 | BB158: =SUM(BB7:BB157) -> 0 | BC158: =SUM(BC7:BC157) -> 0 | BD158: =SUM(BD7:BD157) -> 0 | BE158: =SUM(BE7:BE157) -> 0
A159: Díl: | B159: 45 | C159: Podkladní a vedlejší konstrukce | O159: 1
A160: 23 | B160: 451572111R00 | C160: Lože pod potrubí z kameniva těženého 0 - 4 mm | D160: m3 | E160: 13.15 | G160: =E160*F160 -> 0 | H160: 1.873 | I160: =E160*H160 -> 24.62995 | J160: 0 | K160: =E160*J160 -> 0 | O160: 2 | AA160: 1 | AB160: 1 | AC160: 1 | AZ160: 1 | BA160: =IF(AZ160=1,G160,0) -> 0 | BB160: =IF(AZ160=2,G160,0) -> 0 | BC160: =IF(AZ160=3,G160,0) -> 0 | BD160: =IF(AZ160=4,G160,0) -> 0 | BE160: =IF(AZ160=5,G160,0) -> 0 | CA160: 1 | CB160: 1
C161: Vodovod TLT DN80 : | E161: 0 | M161: Vodovod TLT DN80 :
C162: "VL1A":128,50*0,80*0,10 | E162: 10.28 | M162: "VL1A":128,50*0,80*0,10
C163: Vodovod TLT DN80 - VP PE D 32x3,0 mm: | E163: 0 | M163: Vodovod TLT DN80 - VP PE D 32x3,0 mm:
C164: "VL1A" :41,00*0,70*0,10 | E164: 2.87 | M164: "VL1A" :41,00*0,70*0,10
A165: 24 | B165: 452313141R00 | C165: Bloky pro potrubí z betonu C 16/20 vč. bednění | D165: m3 | E165: 0.45 | G165: =E165*F165 -> 0 | H165: 2.5 | I165: =E165*H165 -> 1.125 | J165: 0 | K165: =E165*J165 -> 0 | O165: 2 | AA165: 1 | AB165: 1 | AC165: 1 | AZ165: 1 | BA165: =IF(AZ165=1,G165,0) -> 0 | BB165: =IF(AZ165=2,G165,0) -> 0 | BC165: =IF(AZ165=3,G165,0) -> 0 | BD165: =IF(AZ165=4,G165,0) -> 0 | BE165: =IF(AZ165=5,G165,0) -> 0 | CA165: 1 | CB165: 1
C166: Vodovod TLT DN80 : | E166: 0 | M166: Vodovod TLT DN80 :
C167: Betonové bloky:0,45 | E167: 0.45 | M167: Betonové bloky:0,45
B168: Celkem za | C168: 45 Podkladní a vedlejší konstrukce | G168: =SUM(G159:G167) -> 0 | I168: =SUM(I159:I167) -> 25.75495 | K168: =SUM(K159:K167) -> 0 | O168: 4 | BA168: =SUM(BA159:BA167) -> 0 | BB168: =SUM(BB159:BB167) -> 0 | BC168: =SUM(BC159:BC167) -> 0 | BD168: =SUM(BD159:BD167) -> 0 | BE168: =SUM(BE159:BE167) -> 0
A169: Díl: | B169: 5 | C169: Komunikace | O169: 1
A170: 25 | B170: 566903111R00 | C170: Vyspravení podkladu po překopech kam.hrubě drceným | D170: t | E170: 54.8555 | G170: =E170*F170 -> 0 | H170: 1.1 | I170: =E170*H170 -> 60.34105 | J170: 0 | K170: =E170*J170 -> 0 | O170: 2 | AA170: 1 | AB170: 1 | AC170: 1 | AZ170: 1 | BA170: =IF(AZ170=1,G170,0) -> 0 | BB170: =IF(AZ170=2,G170,0) -> 0 | BC170: =IF(AZ170=3,G170,0) -> 0 | BD170: =IF(AZ170=4,G170,0) -> 0 | BE170: =IF(AZ170=5,G170,0) -> 0 | CA170: 1 | CB170: 1
C171: Dosypání rýhy ŠD komunikace pod asfaltové vrstvy: | E171: 0 | M171: Provizorní dosypání rýhy ŠD během realizaci stavby do původní nivelety komunikace a chodníků:
C172: Vodovod:128,50*0,80*0,25*1,873 | E172: 48.1361 | M172: Vodovod:128,50*0,80*0,25*1,873
C173: VP:41,00*0,50*0,70*0,25*1,873 | E173: 6.7194 | M173: VP:41,00*0,50*0,70*0,25*1,873
A174: 26 | B174: 566904111R00 | C174: Vyspravení podkladu po překopech kam.obal.asfaltem | D174: t | E174: 43.9313 | G174: =E174*F174 -> 0 | H174: 1 | I174: =E174*H174 -> 43.9313 | J174: 0 | K174: =E174*J174 -> 0 | O174: 2 | AA174: 1 | AB174: 1 | AC174: 1 | AZ174: 1 | BA174: =IF(AZ174=1,G174,0) -> 0 | BB174: =IF(AZ174=2,G174,0) -> 0 | BC174: =IF(AZ174=3,G174,0) -> 0 | BD174: =IF(AZ174=4,G174,0) -> 0 | BE174: =IF(AZ174=5,G174,0) -> 0 | CA174: 1 | CB174: 1
C175: Zaasfaltování rýhy do původní nivelety komunikace: | E175: 0 | M175: Provizorní dosypání rýhy ŠD během realizaci stavby do původní nivelety komunikace a chodníků:
C176: Vodovod:128,50*0,80*0,15*2,5 | E176: 38.55 | M176: Vodovod:128,50*0,80*0,15*2,5
C177: VP:41,00*0,50*0,70*0,15*2,50 | E177: 5.3812 | M177: VP:41,00*0,50*0,70*0,15*2,50
B178: Celkem za | C178: 5 Komunikace | G178: =SUM(G169:G177) -> 0 | I178: =SUM(I169:I177) -> 104.27235 | K178: =SUM(K169:K177) -> 0 | O178: 4 | BA178: =SUM(BA169:BA177) -> 0 | BB178: =SUM(BB169:BB177) -> 0 | BC178: =SUM(BC169:BC177) -> 0 | BD178: =SUM(BD169:BD177) -> 0 | BE178: =SUM(BE169:BE177) -> 0
A179: Díl: | B179: 8 | C179: Trubní vedení | O179: 1
A180: 27 | B180: 851601101R00 | C180: Montáž potrubí tlakového tvárná litina DN 80 | D180: m | E180: 128.5 | G180: =E180*F180 -> 0 | H180: 0 | I180: =E180*H180 -> 0 | J180: 0 | K180: =E180*J180 -> 0 | O180: 2 | AA180: 1 | AB180: 1 | AC180: 1 | AZ180: 1 | BA180: =IF(AZ180=1,G180,0) -> 0 | BB180: =IF(AZ180=2,G180,0) -> 0 | BC180: =IF(AZ180=3,G180,0) -> 0 | BD180: =IF(AZ180=4,G180,0) -> 0 | BE180: =IF(AZ180=5,G180,0) -> 0 | CA180: 1 | CB180: 1
C181: Položka je určena pro montáž potrubí hrdlového s pružnými spoji, ve výkopu. Pro blokované spoje se cena zvýší o 15 - 20 %. V položce nejsou zakalkulovány náklady na dodávku trub; trouby a spojovací materiál se oceňuje ve specifikaci | L181: Položka je určena pro montáž potrubí hrdlového s pružnými spoji, ve výkopu. Pro blokované spoje se cena zvýší o 15 - 20 %. V položce nejsou zakalkulovány náklady na dodávku trub; trouby a spojovací materiál se oceňuje ve specifikaci | O181: 3
C182: Vodovod TLT DN80 : | E182: 0 | M182: Vodovod TLT DN80 :
C183: "VL1A" :128,50 | E183: 128.5 | M183: "VL1A" :128,50
A184: 28 | B184: 857242121R00 | C184: Montáž tvarovek litin. jednoos.přír. výkop DN 80 včetně nerezových spoj. prvků a obandážování spoje | D184: kus | E184: 3 | G184: =E184*F184 -> 0 | H184: 0.00022 | I184: =E184*H184 -> 0.00066 | J184: 0 | K184: =E184*J184 -> 0 | O184: 2 | AA184: 1 | AB184: 1 | AC184: 1 | AZ184: 1 | BA184: =IF(AZ184=1,G184,0) -> 0 | BB184: =IF(AZ184=2,G184,0) -> 0 | BC184: =IF(AZ184=3,G184,0) -> 0 | BD184: =IF(AZ184=4,G184,0) -> 0 | BE184: =IF(AZ184=5,G184,0) -> 0 | CA184: 1 | CB184: 1
C185: Položka je určena pro montáž litinových tvarovek na potrubí litinovém tlakovém přírubovém jednoosých v otevřeném výkopu, v otevřeném kanálu nebo v šachtě. | L185: Položka je určena pro montáž litinových tvarovek na potrubí litinovém tlakovém přírubovém jednoosých v otevřeném výkopu, v otevřeném kanálu nebo v šachtě. | O185: 3
C186: Vodovod TLT DN80 : | E186: 0 | M186: Vodovod TLT DN80 :
C187: EU DN80:2 | E187: 2 | M187: EU DN80:2
C188: PPL DN80:1 | E188: 1 | M188: PPL DN80:1
A189: 29 | B189: 857601101R00 | C189: Montáž tvarovek jednoosých, tvárná litina DN 80 | D189: kus | E189: 2 | G189: =E189*F189 -> 0 | H189: 0 | I189: =E189*H189 -> 0 | J189: 0 | K189: =E189*J189 -> 0 | O189: 2 | AA189: 1 | AB189: 1 | AC189: 1 | AZ189: 1 | BA189: =IF(AZ189=1,G189,0) -> 0 | BB189: =IF(AZ189=2,G189,0) -> 0 | BC189: =IF(AZ189=3,G189,0) -> 0 | BD189: =IF(AZ189=4,G189,0) -> 0 | BE189: =IF(AZ189=5,G189,0) -> 0 | CA189: 1 | CB189: 1
C190: Položka je určena pro montáž tvarovek jednoosých s pružnými spoji ve výkopu. | L190: Položka je určena pro montáž tvarovek jednoosých s pružnými spoji ve výkopu. | O190: 3
C191: Vodovod TLT DN80 : | E191: 0 | M191: Vodovod TLT DN80 :
C192: MMK 22° DN80:1 | E192: 1 | M192: MMK 22° DN80:1
C193: MMK 30° DN80:1 | E193: 1 | M193: MMK 30° DN80:1
A194: 30 | B194: 871161121R00 | C194: Montáž trubek polyetylenových ve výkopu d 32 mm | D194: m | E194: 41 | G194: =E194*F194 -> 0 | H194: 0 | I194: =E194*H194 -> 0 | J194: 0 | K194: =E194*J194 -> 0 | O194: 2 | AA194: 1 | AB194: 1 | AC194: 1 | AZ194: 1 | BA194: =IF(AZ194=1,G194,0) -> 0 | BB194: =IF(AZ194=2,G194,0) -> 0 | BC194: =IF(AZ194=3,G194,0) -> 0 | BD194: =IF(AZ194=4,G194,0) -> 0 | BE194: =IF(AZ194=5,G194,0) -> 0 | CA194: 1 | CB194: 1
C195: V položce je uvažováno použití svitku. | L195: V položce je uvažováno použití svitku. | O195: 3
C196: Vodovod TLT DN80 - VP PE D 32x3,0 mm: | E196: 0 | M196: Vodovod TLT DN80 - VP PE D 32x3,0 mm:
C197: "VL1A" :41,00 | E197: 41 | M197: "VL1A" :41,00
A198: 31 | B198: 891163111R00 | C198: Montáž ventilů hlavních pro přípojky DN 25 | D198: kus | E198: 9 | G198: =E198*F198 -> 0 | H198: 2e-05 | I198: =E198*H198 -> 0.00018 | J198: 0 | K198: =E198*J198 -> 0 | O198: 2 | AA198: 1 | AB198: 1 | AC198: 1 | AZ198: 1 | BA198: =IF(AZ198=1,G198,0) -> 0 | BB198: =IF(AZ198=2,G198,0) -> 0 | BC198: =IF(AZ198=3,G198,0) -> 0 | BD198: =IF(AZ198=4,G198,0) -> 0 | BE198: =IF(AZ198=5,G198,0) -> 0 | CA198: 1 | CB198: 1
C199: Vodovod TLT DN80 : | E199: 0 | M199: Vodovod TLT DN80 :
C200: "VL1A" :9 | E200: 9 | M200: "VL1A" :9
A201: 32 | B201: 891183439RX0 | C201: Přepojení potrubí PE na přípojkách D 32 včetně dodávky přepojovací tvarovky | D201: kus | E201: 9 | G201: =E201*F201 -> 0 | H201: 0.00046 | I201: =E201*H201 -> 0.00414 | J201: 0 | K201: =E201*J201 -> 0 | O201: 2 | AA201: 1 | AB201: 1 | AC201: 1 | AZ201: 1 | BA201: =IF(AZ201=1,G201,0) -> 0 | BB201: =IF(AZ201=2,G201,0) -> 0 | BC201: =IF(AZ201=3,G201,0) -> 0 | BD201: =IF(AZ201=4,G201,0) -> 0 | BE201: =IF(AZ201=5,G201,0) -> 0 | CA201: 1 | CB201: 1
C202: Položka obsahuje přerušení stávajícího potrubí, montáž a dodávku příslušné tvarovky pro propojení stávajícího potrubí (PE, ocel a pod.) s novým potrubím (PE D 32x3,0 mm) přípojky D 32 | L202: Položka obsahuje přerušení stávajícího potrubí, montáž a dodávku příslušné tvarovky pro propojení stávajícího potrubí (PE, ocel a pod.) s novým potrubím (PE D 32x3,0 mm) přípojky D 32 | O202: 3
... 191 more rows

Sheet 302.1 3332302.1 KL
A1: POLOŽKOVÝ ROZPOČET
A2: Rozpočet | C2: 3332/302.1 | D2: Dešťová kanalizace - 1.část | F2: JKSO | G2: 827.21.A4
A4: Objekt | F4: SKP
A5: 302.1 | C5: Dešťová kanalizace - 1.část | F5: Měrná jednotka | G5: m
A6: Stavba | F6: Počet jednotek | G6: 0
A7: 3332 | C7: Obnova vodovodu a kanalizace v Obci Loučky | F7: Náklady na m.j. | G7: =IF(G6=0,,ROUND((F30+F32)/G6,1)) -> 0
A8: Projektant | C8: LK PROJEKT s.r.o. | F8: Typ rozpočtu
A9: Zpracovatel projektu
A10: Objednatel | C10: Vodohospodářské sdružení Turnov
A11: Dodavatel | C11: . | F11: Zakázkové číslo
A12: Rozpočtoval | F12: Počet listů
A13: ROZPOČTOVÉ NÁKLADY
A14: Základní rozpočtové náklady
B15: HSV celkem | C15: ='302.1 3332302.1 Rek'!E14 -> 0
A16: Z | B16: PSV celkem | C16: ='302.1 3332302.1 Rek'!F14 -> 0
A17: R | B17: M práce celkem | C17: ='302.1 3332302.1 Rek'!H14 -> 0
A18: N | B18: M dodávky celkem | C18: ='302.1 3332302.1 Rek'!G14 -> 0
A19: ZRN celkem | C19: =SUM(C15:C18) -> 0
A21: HZS | C21: ='302.1 3332302.1 Rek'!I14 -> 0
A22: ZRN+HZS | C22: =C19+C21 -> 0
A23: ZRN+ost.náklady+HZS | C23: =C22+G23 -> 0
A24: Vypracoval | D24: Za zhotovitele | F24: Za objednatele
A25: Jméno : | D25: Jméno : | F25: Jméno :
A26: Datum : | D26: Datum : | F26: Datum :
A28: Podpis : | D28: Podpis: | F28: Podpis:
A30: Základ pro DPH | C30: 21 | D30: % | F30: =C23-F32 -> 0
A31: DPH | C31: =C30 -> 21 | D31: % | F31: =ROUND(PRODUCT(F30,C31/100),0) -> 0
A32: Základ pro DPH | C32: 0 | D32: % | F32: 0
A33: DPH | C33: =C32 -> 0 | D33: % | F33: =ROUND(PRODUCT(F32,C33/100),0) -> 0
A34: CENA ZA OBJEKT CELKEM | F34: =ROUND(SUM(F30:F33),0) -> 0
A36: Poznámka :

Sheet 302.1 3332302.1 Rek
A1: Stavba : | C1: 3332 Obnova vodovodu a kanalizace v Obci Loučky | G1: Rozpočet : | H1: 3332/302.1
A2: Objekt : | C2: 302.1 Dešťová kanalizace - 1.část | G2: Dešťová kanalizace - 1.část
A4: REKAPITULACE STAVEBNÍCH DÍLŮ
B6: Stavební díl | E6: HSV | F6: PSV | G6: Dodávka | H6: Montáž | I6: HZS
A7: ='302.1 3332302.1 Pol'!B7 -> 1 | B7: ='302.1 3332302.1 Pol'!C7 -> Zemní práce | E7: ='302.1 3332302.1 Pol'!BA431 -> 0 | F7: ='302.1 3332302.1 Pol'!BB431 -> 0 | G7: ='302.1 3332302.1 Pol'!BC431 -> 0 | H7: ='302.1 3332302.1 Pol'!BD431 -> 0 | I7: ='302.1 3332302.1 Pol'!BE431 -> 0
A8: ='302.1 3332302.1 Pol'!B432 -> 2 | B8: ='302.1 3332302.1 Pol'!C432 -> Základy a zvláštní zakládání | E8: ='302.1 3332302.1 Pol'!BA466 -> 0 | F8: ='302.1 3332302.1 Pol'!BB466 -> 0 | G8: ='302.1 3332302.1 Pol'!BC466 -> 0 | H8: ='302.1 3332302.1 Pol'!BD466 -> 0 | I8: ='302.1 3332302.1 Pol'!BE466 -> 0
A9: ='302.1 3332302.1 Pol'!B467 -> 45 | B9: ='302.1 3332302.1 Pol'!C467 -> Podkladní a vedlejší konstrukce | E9: ='302.1 3332302.1 Pol'!BA521 -> 0 | F9: ='302.1 3332302.1 Pol'!BB521 -> 0 | G9: ='302.1 3332302.1 Pol'!BC521 -> 0 | H9: ='302.1 3332302.1 Pol'!BD521 -> 0 | I9: ='302.1 3332302.1 Pol'!BE521 -> 0
A10: ='302.1 3332302.1 Pol'!B522 -> 5 | B10: ='302.1 3332302.1 Pol'!C522 -> Komunikace | E10: ='302.1 3332302.1 Pol'!BA538 -> 0 | F10: ='302.1 3332302.1 Pol'!BB538 -> 0 | G10: ='302.1 3332302.1 Pol'!BC538 -> 0 | H10: ='302.1 3332302.1 Pol'!BD538 -> 0 | I10: ='302.1 3332302.1 Pol'!BE538 -> 0
A11: ='302.1 3332302.1 Pol'!B539 -> 8 | B11: ='302.1 3332302.1 Pol'!C539 -> Trubní vedení | E11: ='302.1 3332302.1 Pol'!BA1009 -> 0 | F11: ='302.1 3332302.1 Pol'!BB1009 -> 0 | G11: ='302.1 3332302.1 Pol'!BC1009 -> 0 | H11: ='302.1 3332302.1 Pol'!BD1009 -> 0 | I11: ='302.1 3332302.1 Pol'!BE1009 -> 0
A12: ='302.1 3332302.1 Pol'!B1010 -> 93 | B12: ='302.1 3332302.1 Pol'!C1010 -> Dokončovací práce inženýrských staveb | E12: ='302.1 3332302.1 Pol'!BA1038 -> 0 | F12: ='302.1 3332302.1 Pol'!BB1038 -> 0 | G12: ='302.1 3332302.1 Pol'!BC1038 -> 0 | H12: ='302.1 3332302.1 Pol'!BD1038 -> 0 | I12: ='302.1 3332302.1 Pol'!BE1038 -> 0
A13: ='302.1 3332302.1 Pol'!B1039 -> 99 | B13: ='302.1 3332302.1 Pol'!C1039 -> Staveništní přesun hmot | E13: ='302.1 3332302.1 Pol'!BA1041 -> 0 | F13: ='302.1 3332302.1 Pol'!BB1041 -> 0 | G13: ='302.1 3332302.1 Pol'!BC1041 -> 0 | H13: ='302.1 3332302.1 Pol'!BD1041 -> 0 | I13: ='302.1 3332302.1 Pol'!BE1041 -> 0
B14: CELKEM OBJEKT | E14: =SUM(E7:E13) -> 0 | F14: =SUM(F7:F13) -> 0 | G14: =SUM(G7:G13) -> 0 | H14: =SUM(H7:H13) -> 0 | I14: =SUM(I7:I13) -> 0

Sheet 302.1 3332302.1 Pol
A1: Položkový rozpočet
A3: Stavba : | C3: 3332 Obnova vodovodu a kanalizace v Obci Loučky | E3: Rozpočet: | F3: ='302.1 3332302.1 Rek'!H1 -> 3332/302.1
A4: Objekt : | C4: 302.1 Dešťová kanalizace - 1.část | E4: ='302.1 3332302.1 Rek'!G2 -> Dešťová kanalizace - 1.část
A6: P.č. | B6: Číslo položky | C6: Název položky | D6: MJ | E6: množství | F6: cena / MJ | G6: celkem (Kč) | H6: Jednotková hmotnost | I6: Celková hmotnost | J6: Jednotková dem.hmot. | K6: Celková dem.hmot.
A7: Díl: | B7: 1 | C7: Zemní práce | O7: 1
A8: 1 | B8: 114211101R00 | C8: Odstranění betonových trub do DN 150 mm, ve výkopu | D8: m | E8: 35 | G8: =E8*F8 -> 0 | H8: 0 | I8: =E8*H8 -> 0 | J8: -0.04 | K8: =E8*J8 -> -1.4 | O8: 2 | AA8: 1 | AB8: 1 | AC8: 1 | AZ8: 1 | BA8: =IF(AZ8=1,G8,0) -> 0 | BB8: =IF(AZ8=2,G8,0) -> 0 | BC8: =IF(AZ8=3,G8,0) -> 0 | BD8: =IF(AZ8=4,G8,0) -> 0 | BE8: =IF(AZ8=5,G8,0) -> 0 | CA8: 1 | CB8: 1
C9: Položka obsahuje odstranění materiálu obklopujícího potrubí v míře nutné pro vyzvednutí, rozpojení trub, uchopení a vyzvednutí trub z výkopu a uložení na dopravní prostředek včetně odvozu na skládku zhotovitele a poplatek za skládku. | L9: Položka obsahuje odstranění materiálu obklopujícího potrubí v míře nutné pro vyzvednutí, rozpojení trub, uchopení a vyzvednutí trub z výkopu a uložení na dopravní prostředek včetně odvozu na skládku zhotovitele a poplatek za skládku. | O9: 3
A10: 2 | B10: 114211103R00 | C10: Odstranění betonových trub do DN 300 mm, ve výkopu | D10: m | E10: 75 | G10: =E10*F10 -> 0 | H10: 0 | I10: =E10*H10 -> 0 | J10: -0.1015 | K10: =E10*J10 -> -7.6125 | O10: 2 | AA10: 1 | AB10: 1 | AC10: 1 | AZ10: 1 | BA10: =IF(AZ10=1,G10,0) -> 0 | BB10: =IF(AZ10=2,G10,0) -> 0 | BC10: =IF(AZ10=3,G10,0) -> 0 | BD10: =IF(AZ10=4,G10,0) -> 0 | BE10: =IF(AZ10=5,G10,0) -> 0 | CA10: 1 | CB10: 1
C11: Položka obsahuje odstranění materiálu obklopujícího potrubí v míře nutné pro vyzvednutí, rozpojení trub, uchopení a vyzvednutí trub z výkopu a uložení na dopravní prostředek včetně odvozu na skládku zhotovitele a poplatek za skládku. | L11: Položka obsahuje odstranění materiálu obklopujícího potrubí v míře nutné pro vyzvednutí, rozpojení trub, uchopení a vyzvednutí trub z výkopu a uložení na dopravní prostředek včetně odvozu na skládku zhotovitele a poplatek za skládku. | O11: 3
A12: 3 | B12: 114211105R00 | C12: Odstranění betonových trub do DN 500 mm, ve výkopu | D12: m | E12: 48 | G12: =E12*F12 -> 0 | H12: 0 | I12: =E12*H12 -> 0 | J12: -0.408 | K12: =E12*J12 -> -19.584 | O12: 2 | AA12: 1 | AB12: 1 | AC12: 1 | AZ12: 1 | BA12: =IF(AZ12=1,G12,0) -> 0 | BB12: =IF(AZ12=2,G12,0) -> 0 | BC12: =IF(AZ12=3,G12,0) -> 0 | BD12: =IF(AZ12=4,G12,0) -> 0 | BE12: =IF(AZ12=5,G12,0) -> 0 | CA12: 1 | CB12: 1
C13: Položka obsahuje odstranění materiálu obklopujícího potrubí v míře nutné pro vyzvednutí, rozpojení trub, uchopení a vyzvednutí trub z výkopu a uložení na dopravní prostředek včetně odvozu na skládku zhotovitele a poplatek za skládku. | L13: Položka obsahuje odstranění materiálu obklopujícího potrubí v míře nutné pro vyzvednutí, rozpojení trub, uchopení a vyzvednutí trub z výkopu a uložení na dopravní prostředek včetně odvozu na skládku zhotovitele a poplatek za skládku. | O13: 3
A14: 4 | B14: 119001401R00 | C14: Dočasné zajištění ocelového potrubí do DN 200 mm | D14: m | E14: 66.8 | G14: =E14*F14 -> 0 | H14: 0.00869 | I14: =E14*H14 -> 0.580492 | J14: 0 | K14: =E14*J14 -> 0 | O14: 2 | AA14: 1 | AB14: 1 | AC14: 1 | AZ14: 1 | BA14: =IF(AZ14=1,G14,0) -> 0 | BB14: =IF(AZ14=2,G14,0) -> 0 | BC14: =IF(AZ14=3,G14,0) -> 0 | BD14: =IF(AZ14=4,G14,0) -> 0 | BE14: =IF(AZ14=5,G14,0) -> 0 | CA14: 1 | CB14: 1
A15: 5 | B15: 119001402R00 | C15: Dočasné zajištění ocelového potrubí DN 200-500 mm | D15: m | E15: 6.3 | G15: =E15*F15 -> 0 | H15: 0.01271 | I15: =E15*H15 -> 0.080073 | J15: 0 | K15: =E15*J15 -> 0 | O15: 2 | AA15: 1 | AB15: 1 | AC15: 1 | AZ15: 1 | BA15: =IF(AZ15=1,G15,0) -> 0 | BB15: =IF(AZ15=2,G15,0) -> 0 | BC15: =IF(AZ15=3,G15,0) -> 0 | BD15: =IF(AZ15=4,G15,0) -> 0 | BE15: =IF(AZ15=5,G15,0) -> 0 | CA15: 1 | CB15: 1
A16: 6 | B16: 119001422R00 | C16: Dočasné zajištění kabelů - v počtu 3 - 6 kabelů | D16: m | E16: 45.65 | G16: =E16*F16 -> 0 | H16: 0.03974 | I16: =E16*H16 -> 1.814131 | J16: 0 | K16: =E16*J16 -> 0 | O16: 2 | AA16: 1 | AB16: 1 | AC16: 1 | AZ16: 1 | BA16: =IF(AZ16=1,G16,0) -> 0 | BB16: =IF(AZ16=2,G16,0) -> 0 | BC16: =IF(AZ16=3,G16,0) -> 0 | BD16: =IF(AZ16=4,G16,0) -> 0 | BE16: =IF(AZ16=5,G16,0) -> 0 | CA16: 1 | CB16: 1
A17: 7 | B17: 121100002RAA | C17: Sejmutí ornice a uložení na deponii zpětný přesun, rozprostření v tl. 20 cm, osetí | D17: m3 | E17: 68.6 | G17: =E17*F17 -> 0 | H17: 0 | I17: =E17*H17 -> 0 | J17: 0 | K17: =E17*J17 -> 0 | O17: 2 | AA17: 1 | AB17: 1 | AC17: 1 | AZ17: 1 | BA17: =IF(AZ17=1,G17,0) -> 0 | BB17: =IF(AZ17=2,G17,0) -> 0 | BC17: =IF(AZ17=3,G17,0) -> 0 | BD17: =IF(AZ17=4,G17,0) -> 0 | BE17: =IF(AZ17=5,G17,0) -> 0 | CA17: 1 | CB17: 1
C18: Dešťová kanalizace: | E18: 0 | M18: Dešťová kanalizace:
C19: DK1:60,00*3,00*0,20 | E19: 36 | M19: DK1:60,00*3,00*0,20
C20: DK1A:15,00*3,00*0,20 | E20: 9 | M20: DK1A:15,00*3,00*0,20
C21: DK2:(54,00-30,00)*3,00*0,20 | E21: 14.4 | M21: DK2:(54,00-30,00)*3,00*0,20
C22: Přípojky DK (Průměrná hloubka 2,00 m): | E22: 0 | M22: Přípojky DK (Průměrná hloubka 2,00 m):
C23: Odpočet ornice:23,00*2,00*0,20 | E23: 9.2 | M23: Odpočet ornice:23,00*2,00*0,20
A24: 8 | B24: 130001101RRX | C24: Příplatek za ztížené hloubení v blízkosti vedení | D24: m3 | E24: 230.0863 | G24: =E24*F24 -> 0 | H24: 0 | I24: =E24*H24 -> 0 | J24: 0 | K24: =E24*J24 -> 0 | O24: 2 | AA24: 1 | AB24: 1 | AC24: 1 | AZ24: 1 | BA24: =IF(AZ24=1,G24,0) -> 0 | BB24: =IF(AZ24=2,G24,0) -> 0 | BC24: =IF(AZ24=3,G24,0) -> 0 | BD24: =IF(AZ24=4,G24,0) -> 0 | BE24: =IF(AZ24=5,G24,0) -> 0 | CA24: 1 | CB24: 1
C25: Včetně případných nutných dokopávem a ručního výkopu podél sousedících inženýrských sítí | L25: Včetně případných nutných dokopávem a ručního výkopu podél sousedících inženýrských sítí | O25: 3
C26: V hornině tř. 3 až 5 - 16%:1438,0392*0,16 | E26: 230.0863 | M26: V hornině tř. 3 až 5 - 16%:1438,0392*0,16
A27: 9 | B27: 130901123RT3 | C27: Bourání konstrukcí ze železobetonu ve vykopávkách bagrem s kladivem | D27: m3 | E27: 33.6129 | G27: =E27*F27 -> 0 | H27: 0 | I27: =E27*H27 -> 0 | J27: 0 | K27: =E27*J27 -> 0 | O27: 2 | AA27: 1 | AB27: 1 | AC27: 1 | AZ27: 1 | BA27: =IF(AZ27=1,G27,0) -> 0 | BB27: =IF(AZ27=2,G27,0) -> 0 | BC27: =IF(AZ27=3,G27,0) -> 0 | BD27: =IF(AZ27=4,G27,0) -> 0 | BE27: =IF(AZ27=5,G27,0) -> 0 | CA27: 1 | CB27: 1
C28: Položka obsahuje odstranění materiálu obklopujícího betonové a železobetonové konstrukce v míře nutné pro vyzvednutí, rozpojení konstrukcí, uchopení a vyzvednutí konstrukce z výkopu a uložení na dopravní prostředek včetně odvozu na skládku zhotovitele a poplatek za skládku. | L28: Položka obsahuje odstranění materiálu obklopujícího betonové a železobetonové konstrukce v míře nutné pro vyzvednutí, rozpojení konstrukcí, uchopení a vyzvednutí konstrukce z výkopu a uložení na dopravní prostředek včetně odvozu na skládku zhotovitele a poplatek za skládku. | O28: 3
C29: Stávající RŠ nebo jejich část:30,1832 | E29: 30.1832 | M29: Stávající RŠ nebo jejich část:30,1832
C30: Stávající UV:3,4297 | E30: 3.4297 | M30: Stávající UV:3,4297
A31: 10 | B31: 132201212R00 | C31: Hloubení rýh š.do 200 cm hor.3 do 1000m3,STROJNĚ | D31: m3 | E31: 647.1176 | G31: =E31*F31 -> 0 | H31: 0 | I31: =E31*H31 -> 0 | J31: 0 | K31: =E31*J31 -> 0 | O31: 2 | AA31: 1 | AB31: 1 | AC31: 1 | AZ31: 1 | BA31: =IF(AZ31=1,G31,0) -> 0 | BB31: =IF(AZ31=2,G31,0) -> 0 | BC31: =IF(AZ31=3,G31,0) -> 0 | BD31: =IF(AZ31=4,G31,0) -> 0 | BE31: =IF(AZ31=5,G31,0) -> 0 | CA31: 1 | CB31: 1
C32: Položka obsahuje hloubení rýh traktorbagrem, naložení výkopku na dopravní prostředek pro svislé, nebo vodorovné přemístění, popř. přemístění výkopku do 3 m (po povrchu území), případné zajištění rypadel polštáři, udržování pracoviště a ochranu výkopiště proti stékání srážkové vody z okolního terénu i s jejím odvodněním, nebo odvedením, přesekání a odstranění kořenů ve výkopišti, odstranění napadávek, urovnání dna výkopu. | L32: Položka obsahuje hloubení rýh traktorbagrem, naložení výkopku na dopravní prostředek pro svislé, nebo vodorovné přemístění, popř. přemístění výkopku do 3 m (po povrchu území), případné zajištění rypadel polštáři, udržování pracoviště a ochranu výkopiště proti stékání srážkové vody z okolního terénu i s jejím odvodněním, nebo odvedením, přesekání a odstranění kořenů ve výkopišti, odstranění napadávek, urovnání dna výkopu. | O32: 3
C33: Začátek provozního součtu | E33: 0 | M33: Začátek provozního součtu
C34: Dešťová kanalizace: | E34: 0 | M34: Dešťová kanalizace:
C35: DK1 KT DN300 a DN400:14,00*1,20*(1,03+1,50)/2 | E35: 21.252 | M35: DK1 KT DN300 a DN400:14,00*1,20*(1,03+1,50)/2
C36: (26,30-14,00)*1,20*(1,50+1,45)/2 | E36: 21.771 | M36: (26,30-14,00)*1,20*(1,50+1,45)/2
C37: (43,80-26,30)*1,20*(1,45+1,76)/2 | E37: 33.705 | M37: (43,80-26,30)*1,20*(1,45+1,76)/2
C38: (62,40-43,80)*1,20*(1,45+2,10)/2 | E38: 39.618 | M38: (62,40-43,80)*1,20*(1,45+2,10)/2
C39: (101,70-62,40)*1,20*(2,10+2,00)/2 | E39: 96.678 | M39: (101,70-62,40)*1,20*(2,10+2,00)/2
C40: (344,00-101,70)*1,20*2,00 | E40: 581.52 | M40: (344,00-101,70)*1,20*2,00
C41: Prohloubení pro RŠ:1,60*1,60*0,20*13 | E41: 6.656 | M41: Prohloubení pro RŠ:1,60*1,60*0,20*13
C42: Rozšíření pro RŠ:1,60*(1,60-1,20)*25,61 | E42: 16.3904 | M42: Rozšíření pro RŠ:1,60*(1,60-1,20)*25,61
C43: DK1A KT DN300 a PVC DN300:15,30*1,20*(1,45+2,44)/2 | E43: 35.7102 | M43: DK1A KT DN300 a PVC DN300:15,30*1,20*(1,45+2,44)/2
C44: (22,00-15,30)*1,20*(2,44+2,00)/2 | E44: 17.8488 | M44: (22,00-15,30)*1,20*(2,44+2,00)/2
C45: (59,70-22,00)*1,00*2,00 | E45: 75.4 | M45: (59,70-22,00)*1,00*2,00
C46: Prohloubení pro RŠ:1,60*1,60*0,20*3 | E46: 1.536 | M46: Prohloubení pro RŠ:1,60*1,60*0,20*3
C47: Rozšíření pro RŠ:1,60*(1,60-1,20)*2,00+1,60*(1,60-1,00)*4,00 | E47: 5.12 | M47: Rozšíření pro RŠ:1,60*(1,60-1,20)*2,00+1,60*(1,60-1,00)*4,00
C48: DK1B KT DN400:5,00*1,20*2,10 | E48: 12.6 | M48: DK1B KT DN400:5,00*1,20*2,10
C49: Prohloubení pro RŠ:1,60*1,60*0,20*1 | E49: 0.512 | M49: Prohloubení pro RŠ:1,60*1,60*0,20*1
C50: Rozšíření pro RŠ:1,60*(1,60-1,20)*2,10 | E50: 1.344 | M50: Rozšíření pro RŠ:1,60*(1,60-1,20)*2,10
C51: DK1C KT DN300:4,50*1,20*(2,00+1,98)/2 | E51: 10.746 | M51: DK1C KT DN300:4,50*1,20*(2,00+1,98)/2
C52: Prohloubení pro RŠ:1,60*1,60*0,20*1 | E52: 0.512 | M52: Prohloubení pro RŠ:1,60*1,60*0,20*1
C53: Rozšíření pro RŠ:1,60*(1,60-1,20)*1,98 | E53: 1.2672 | M53: Rozšíření pro RŠ:1,60*(1,60-1,20)*1,98
C54: DK1D KT DN300:18,50*1,20*2,00 | E54: 44.4 | M54: DK1D KT DN300:18,50*1,20*2,00
C55: Prohloubení pro RŠ:1,60*1,60*0,20*2 | E55: 1.024 | M55: Prohloubení pro RŠ:1,60*1,60*0,20*2
C56: Rozšíření pro RŠ:1,60*(1,60-1,20)*4,00 | E56: 2.56 | M56: Rozšíření pro RŠ:1,60*(1,60-1,20)*4,00
C57: DK2 KT DN300:(53,70-30,00)*1,20*(1,70+2,35)/2 | E57: 57.591 | M57: DK2 KT DN300:(53,70-30,00)*1,20*(1,70+2,35)/2
C58: (63,50-53,70)*1,20*(2,35+2,15)/2 | E58: 26.46 | M58: (63,50-53,70)*1,20*(2,35+2,15)/2
C59: (77,70-63,50)*1,20*(2,15+2,00)/2 | E59: 35.358 | M59: (77,70-63,50)*1,20*(2,15+2,00)/2
C60: Prohloubení pro RŠ:1,60*1,60*0,20*5 | E60: 2.56 | M60: Prohloubení pro RŠ:1,60*1,60*0,20*5
C61: Rozšíření pro RŠ:2,00*2,00*3,50+1,60*(1,60-1,20)*6,49 | E61: 18.1536 | M61: Rozšíření pro RŠ:2,00*2,00*3,50+1,60*(1,60-1,20)*6,49
C62: DK2A KT DN300:11,20*1,20*(2,35+2,00)/2 | E62: 29.232 | M62: DK2A KT DN300:11,20*1,20*(2,35+2,00)/2
C63: (91,50-11,20)*1,20*2,00 | E63: 192.72 | M63: (91,50-11,20)*1,20*2,00
C64: Prohloubení pro RŠ:1,60*1,60*0,20*3 | E64: 1.536 | M64: Prohloubení pro RŠ:1,60*1,60*0,20*3
C65: Rozšíření pro RŠ:1,60*(1,60-1,20)*6,00 | E65: 3.84 | M65: Rozšíření pro RŠ:1,60*(1,60-1,20)*6,00
C66: DK2B KT DN300:5,00*1,20*(2,15+1,90)/2 | E66: 12.15 | M66: DK2B KT DN300:5,00*1,20*(2,15+1,90)/2
C67: Prohloubení pro RŠ:1,60*1,60*0,20*1 | E67: 0.512 | M67: Prohloubení pro RŠ:1,60*1,60*0,20*1
C68: Rozšíření pro RŠ:1,60*(1,60-1,20)*1,90 | E68: 1.216 | M68: Rozšíření pro RŠ:1,60*(1,60-1,20)*1,90
C69: Odpočet konstrukce komunikací a ZP: | E69: 0 | M69: Odpočet konstrukce komunikací a ZP:
C70: DK1:-((244,00-60,00)*1,20+1,60*(1,60-1,20)*10)*0,40 | E70: -90.88 | M70: DK1:-((244,00-60,00)*1,20+1,60*(1,60-1,20)*10)*0,40
C71: DK1A:-((22,00-15,00)*1,20+(59,70-22,00)*1,00+1,60*(1,60-1,00)*3)*0,40 | E71: -19.592 | M71: DK1A:-((22,00-15,00)*1,20+(59,70-22,00)*1,00+1,60*(1,60-1,00)*3)*0,40
C72: DK1B:-(5,00*1,20+1,60*(1,60-1,20)*1)*0,40 | E72: -2.656 | M72: DK1B:-(5,00*1,20+1,60*(1,60-1,20)*1)*0,40
C73: DK1C:-(4,50*1,20+1,60*(1,60-1,20)*1)*0,40 | E73: -2.416 | M73: DK1C:-(4,50*1,20+1,60*(1,60-1,20)*1)*0,40
C74: DK1D:-(18,50*1,20+1,60*(1,60-1,20)*2)*0,40 | E74: -9.392 | M74: DK1D:-(18,50*1,20+1,60*(1,60-1,20)*2)*0,40
C75: DK2:-((77,70-54,00)*1,20+1,60*(1,60-1,20)*2)*0,40 | E75: -11.888 | M75: DK2:-((77,70-54,00)*1,20+1,60*(1,60-1,20)*2)*0,40
C76: DK2A:-(91,50*1,20+1,60*(1,60-1,20)*3)*0,40 | E76: -44.688 | M76: DK2A:-(91,50*1,20+1,60*(1,60-1,20)*3)*0,40
C77: DK2B:-(5,00*1,20+1,60*(1,60-1,20)*1)*0,40 | E77: -2.656 | M77: DK2B:-(5,00*1,20+1,60*(1,60-1,20)*1)*0,40
C78: Odpočet ornice: | E78: 0 | M78: Odpočet ornice:
C79: DK1:-(60,00*1,20+1,60*(1,60-1,20)*4)*0,20 | E79: -14.912 | M79: DK1:-(60,00*1,20+1,60*(1,60-1,20)*4)*0,20
C80: DK1A:-15,00*1,20*0,20 | E80: -3.6 | M80: DK1A:-15,00*1,20*0,20
C81: DK2:-((54,00-30,00)*1,20+2,00*2,00*2)*0,20 | E81: -7.36 | M81: DK2:-((54,00-30,00)*1,20+2,00*2,00*2)*0,20
C82: Přípojky DK (Průměrná hloubka 2,00 m): | E82: 0 | M82: Přípojky DK (Průměrná hloubka 2,00 m):
C83: DK1 (11 kusů):(50,50+0,50*11)*0,80*2,00 | E83: 89.6 | M83: DK1 (11 kusů):(50,50+0,50*11)*0,80*2,00
C84: DK1A (3 kusy):(6,00+0,50*3)*0,80*2,00 | E84: 12 | M84: DK1A (3 kusy):(6,00+0,50*3)*0,80*2,00
C85: DK1D (1 kus):(1,50+0,50*1)*0,80*2,00 | E85: 3.2 | M85: DK1D (1 kus):(1,50+0,50*1)*0,80*2,00
C86: DK2 (6 kusů):(7,00+0,50*6)*0,80*2,00 | E86: 16 | M86: DK2 (6 kusů):(7,00+0,50*6)*0,80*2,00
C87: DK2A (2 kusy):(3,00+0,50*2)*0,80*2,00 | E87: 6.4 | M87: DK2A (2 kusy):(3,00+0,50*2)*0,80*2,00
C88: Odpočet konstrukce komunikací a ZP:-56,50*0,80*0,40 | E88: -18.08 | M88: Odpočet konstrukce komunikací a ZP:-56,50*0,80*0,40
C89: Odpočet ornice:-23,00*0,80*0,20 | E89: -3.68 | M89: Odpočet ornice:-23,00*0,80*0,20
C90: Přípojky k UV (Průměrná hloubka 1,75 m): | E90: 0 | M90: Přípojky k UV (Průměrná hloubka 1,75 m):
C91: DK1 (15 kusů):(71,50+0,80*15)*0,80*1,75 | E91: 116.9 | M91: DK1 (15 kusů):(71,50+0,80*15)*0,80*1,75
C92: DK1D (2 kusy):(2,00+0,80*2)*0,80*1,75 | E92: 5.04 | M92: DK1D (2 kusy):(2,00+0,80*2)*0,80*1,75
C93: DK2 (1 kus):(1,50+0,80*1)*0,80*1,75 | E93: 3.22 | M93: DK2 (1 kus):(1,50+0,80*1)*0,80*1,75
C94: DK2A (6 kusů):(17,50+0,80*6)*0,80*1,75 | E94: 31.22 | M94: DK2A (6 kusů):(17,50+0,80*6)*0,80*1,75
C95: DK2B (1 kus):(1,00+0,80*1)*0,80*1,75 | E95: 2.52 | M95: DK2B (1 kus):(1,00+0,80*1)*0,80*1,75
C96: Odpočet konstrukce komunikací a ZP:-113,50*0,80*0,40 | E96: -36.32 | M96: Odpočet konstrukce komunikací a ZP:-113,50*0,80*0,40
C97: Přípojky pro DS PVC DN150 (Průměrná hloubka 1,50 m): | E97: 0 | M97: Přípojky pro DS PVC DN150 (Průměrná hloubka 1,50 m):
C98: DK1 (2 kusy):12,00*0,80*1,50 | E98: 14.4 | M98: DK1 (2 kusy):12,00*0,80*1,50
C99: Odpočet konstrukce komunikací a ZP:-12,00*0,80*0,40 | E99: -3.84 | M99: Odpočet konstrukce komunikací a ZP:-12,00*0,80*0,40
C100: Konec provozního součtu | E100: 1438.0392 | M100: Konec provozního součtu
C101: V hornině tř. 3 - 45%:1438,0392*0,45 | E101: 647.1176 | M101: V hornině tř. 3 - 45%:1438,0392*0,45
A102: 11 | B102: 132201219R00 | C102: Přípl.za lepivost,hloubení rýh 200cm,hor.3,STROJNĚ | D102: m3 | E102: 323.5588 | G102: =E102*F102 -> 0 | H102: 0 | I102: =E102*H102 -> 0 | J102: 0 | K102: =E102*J102 -> 0 | O102: 2 | AA102: 1 | AB102: 1 | AC102: 1 | AZ102: 1 | BA102: =IF(AZ102=1,G102,0) -> 0 | BB102: =IF(AZ102=2,G102,0) -> 0 | BC102: =IF(AZ102=3,G102,0) -> 0 | BD102: =IF(AZ102=4,G102,0) -> 0 | BE102: =IF(AZ102=5,G102,0) -> 0 | CA102: 1 | CB102: 1
C103: V hornině tř. 3 - 45%:1438,0392*0,45*0,5 | E103: 323.5588 | M103: V hornině tř. 3 - 45%:1438,0392*0,45*0,5
A104: 12 | B104: 132301212R00 | C104: Hloubení rýh š.do 200 cm hor.4 do 1000 m3, STROJNĚ | D104: m3 | E104: 647.1176 | G104: =E104*F104 -> 0 | H104: 0 | I104: =E104*H104 -> 0 | J104: 0 | K104: =E104*J104 -> 0 | O104: 2 | AA104: 1 | AB104: 1 | AC104: 1 | AZ104: 1 | BA104: =IF(AZ104=1,G104,0) -> 0 | BB104: =IF(AZ104=2,G104,0) -> 0 | BC104: =IF(AZ104=3,G104,0) -> 0 | BD104: =IF(AZ104=4,G104,0) -> 0 | BE104: =IF(AZ104=5,G104,0) -> 0 | CA104: 1 | CB104: 1
C105: Položka obsahuje hloubení rýh traktorbagrem, naložení výkopku na dopravní prostředek pro svislé, nebo vodorovné přemístění, popř. přemístění výkopku do 3 m (po povrchu území), případné zajištění rypadel polštáři, udržování pracoviště a ochranu výkopiště proti stékání srážkové vody z okolního terénu i s jejím odvodněním, nebo odvedením, přesekání a odstranění kořenů ve výkopišti, odstranění napadávek, urovnání dna výkopu. | L105: Položka obsahuje hloubení rýh traktorbagrem, naložení výkopku na dopravní prostředek pro svislé, nebo vodorovné přemístění, popř. přemístění výkopku do 3 m (po povrchu území), případné zajištění rypadel polštáři, udržování pracoviště a ochranu výkopiště proti stékání srážkové vody z okolního terénu i s jejím odvodněním, nebo odvedením, přesekání a odstranění kořenů ve výkopišti, odstranění napadávek, urovnání dna výkopu. | O105: 3
C106: V hornině tř. 4 - 45%:1438,0392*0,45 | E106: 647.1176 | M106: V hornině tř. 4 - 45%:1438,0392*0,45
A107: 13 | B107: 132301219R00 | C107: Přípl.za lepivost,hloubení rýh 200cm,hor.4,STROJNĚ | D107: m3 | E107: 323.5588 | G107: =E107*F107 -> 0 | H107: 0 | I107: =E107*H107 -> 0 | J107: 0 | K107: =E107*J107 -> 0 | O107: 2 | AA107: 1 | AB107: 1 | AC107: 1 | AZ107: 1 | BA107: =IF(AZ107=1,G107,0) -> 0 | BB107: =IF(AZ107=2,G107,0) -> 0 | BC107: =IF(AZ107=3,G107,0) -> 0 | BD107: =IF(AZ107=4,G107,0) -> 0 | BE107: =IF(AZ107=5,G107,0) -> 0 | CA107: 1 | CB107: 1
C108: V hornině tř. 4 - 45%:1438,0392*0,45*0,5 | E108: 323.5588 | M108: V hornině tř. 4 - 45%:1438,0392*0,45*0,5
A109: 14 | B109: 132401211R00 | C109: Hloubení rýh šířky do 200 cm v hor.5, STROJNĚ | D109: m3 | E109: 143.8039 | G109: =E109*F109 -> 0 | H109: 0 | I109: =E109*H109 -> 0 | J109: 0 | K109: =E109*J109 -> 0 | O109: 2 | AA109: 1 | AB109: 1 | AC109: 1 | AZ109: 1 | BA109: =IF(AZ109=1,G109,0) -> 0 | BB109: =IF(AZ109=2,G109,0) -> 0 | BC109: =IF(AZ109=3,G109,0) -> 0 | BD109: =IF(AZ109=4,G109,0) -> 0 | BE109: =IF(AZ109=5,G109,0) -> 0 | CA109: 1 | CB109: 1
C110: Položka obsahuje hloubení jámy kolovým rypadlem s rozrývacím zubem, naložení výkopku na dopravní prostředek pro svislé, nebo vodorovné přemístění, popř. přemístění výkopku do 3 m (po povrchu území), případné zajištění rypadel polštáři, udržování pracoviště a ochranu výkopiště proti stékání srážkové vody z okolního terénu i s jejím odvodněním, nebo odvedením, přesekání a odstranění kořenů ve výkopišti, odstranění napadávek, urovnání dna výkopu. Položka se používá bez ohledu na těžené množství. | L110: Položka obsahuje hloubení jámy kolovým rypadlem s rozrývacím zubem, naložení výkopku na dopravní prostředek pro svislé, nebo vodorovné přemístění, popř. přemístění výkopku do 3 m (po povrchu území), případné zajištění rypadel polštáři, udržování pracoviště a ochranu výkopiště proti stékání srážkové vody z okolního terénu i s jejím odvodněním, nebo odvedením, přesekání a odstranění kořenů ve výkopišti, odstranění napadávek, urovnání dna výkopu. Položka se používá bez ohledu na těžené množství. | O110: 3
C111: V hornině tř. 5 - 10%:1438,0392*0,1 | E111: 143.8039 | M111: V hornině tř. 5 - 10%:1438,0392*0,1
A112: 15 | B112: 151101101R00 | C112: Pažení a rozepření stěn rýh - příložné - hl.do 2 m | D112: m2 | E112: 2943.506 | G112: =E112*F112 -> 0 | H112: 0.00099 | I112: =E112*H112 -> 2.91407094 | J112: 0 | K112: =E112*J112 -> 0 | O112: 2 | AA112: 1 | AB112: 1 | AC112: 1 | AZ112: 1 | BA112: =IF(AZ112=1,G112,0) -> 0 | BB112: =IF(AZ112=2,G112,0) -> 0 | BC112: =IF(AZ112=3,G112,0) -> 0 | BD112: =IF(AZ112=4,G112,0) -> 0 | BE112: =IF(AZ112=5,G112,0) -> 0 | CA112: 1 | CB112: 1
C113: Dešťová kanalizace: | E113: 0 | M113: Dešťová kanalizace:
C114: DK1 KT DN300 a DN400:(26,30-14,00)*(1,50+1,45)/2*2 | E114: 36.285 | M114: DK1 KT DN300 a DN400:(26,30-14,00)*(1,50+1,45)/2*2
C115: (43,80-26,30)*(1,45+1,76)/2*2 | E115: 56.175 | M115: (43,80-26,30)*(1,45+1,76)/2*2
C116: (62,40-43,80)*(1,45+2,10)/2*2 | E116: 66.03 | M116: (62,40-43,80)*(1,45+2,10)/2*2
C117: (101,70-62,40)*(2,10+2,00)/2*2 | E117: 161.13 | M117: (101,70-62,40)*(2,10+2,00)/2*2
C118: (344,00-101,70)*2,00*2 | E118: 969.2 | M118: (344,00-101,70)*2,00*2
C119: DK1A KT DN300 a PVC DN300:15,30*(1,45+2,44)/2*2 | E119: 59.517 | M119: DK1A KT DN300 a PVC DN300:15,30*(1,45+2,44)/2*2
C120: (22,00-15,30)*(2,44+2,00)/2*2 | E120: 29.748 | M120: (22,00-15,30)*(2,44+2,00)/2*2
C121: (59,70-22,00)*2,00*2 | E121: 150.8 | M121: (59,70-22,00)*2,00*2
C122: DK1B KT DN400:5,00*2,10*2 | E122: 21 | M122: DK1B KT DN400:5,00*2,10*2
C123: DK1C KT DN300:4,50*(2,00+1,98)/2*2 | E123: 17.91 | M123: DK1C KT DN300:4,50*(2,00+1,98)/2*2
C124: DK1D KT DN300:18,50*2,00*2 | E124: 74 | M124: DK1D KT DN300:18,50*2,00*2
C125: DK2 KT DN300:(53,70-30,00)*(1,70+2,35)/2*2 | E125: 95.985 | M125: DK2 KT DN300:(53,70-30,00)*(1,70+2,35)/2*2
C126: (63,50-53,70)*(2,35+2,15)/2*2 | E126: 44.1 | M126: (63,50-53,70)*(2,35+2,15)/2*2
C127: (77,70-63,50)*(2,15+2,00)/2*2 | E127: 58.93 | M127: (77,70-63,50)*(2,15+2,00)/2*2
C128: DK2A KT DN300:11,20*(2,35+2,00)/2*2 | E128: 48.72 | M128: DK2A KT DN300:11,20*(2,35+2,00)/2*2
C129: (91,50-11,20)*2,00*2 | E129: 321.2 | M129: (91,50-11,20)*2,00*2
C130: Prohloubení pro RŠ:1,60*1,60*0,20*3 | E130: 1.536 | M130: Prohloubení pro RŠ:1,60*1,60*0,20*3
C131: Rozšíření pro RŠ:1,60*(1,60-1,20)*6,00 | E131: 3.84 | M131: Rozšíření pro RŠ:1,60*(1,60-1,20)*6,00
C132: DK2B KT DN300:5,00*1,20*(2,15+1,90)/2 | E132: 12.15 | M132: DK2B KT DN300:5,00*1,20*(2,15+1,90)/2
C133: Přípojky DK (Průměrná hloubka 2,00 m): | E133: 0 | M133: Přípojky DK (Průměrná hloubka 2,00 m):
C134: DK1 (11 kusů):(50,50+0,50*11)*2,00*2 | E134: 224 | M134: DK1 (11 kusů):(50,50+0,50*11)*2,00*2
C135: DK1A (3 kusy):(6,00+0,50*3)*2,00*2 | E135: 30 | M135: DK1A (3 kusy):(6,00+0,50*3)*2,00*2
C136: DK1D (1 kus):(1,50+0,50*1)*2,00*2 | E136: 8 | M136: DK1D (1 kus):(1,50+0,50*1)*2,00*2
C137: DK2 (6 kusů):(7,00+0,50*6)*2,00*2 | E137: 40 | M137: DK2 (6 kusů):(7,00+0,50*6)*2,00*2
C138: DK2A (2 kusy):(3,00+0,50*2)*2,00*2 | E138: 16 | M138: DK2A (2 kusy):(3,00+0,50*2)*2,00*2
C139: Přípojky k UV (Průměrná hloubka 1,75 m): | E139: 0 | M139: Přípojky k UV (Průměrná hloubka 1,75 m):
C140: DK1 (15 kusů):(71,50+0,80*15)*1,75*2 | E140: 292.25 | M140: DK1 (15 kusů):(71,50+0,80*15)*1,75*2
C141: DK1D (2 kusy):(2,00+0,80*2)*1,75*2 | E141: 12.6 | M141: DK1D (2 kusy):(2,00+0,80*2)*1,75*2
C142: DK2 (1 kus):(1,50+0,80*1)*1,75*2 | E142: 8.05 | M142: DK2 (1 kus):(1,50+0,80*1)*1,75*2
C143: DK2A (6 kusů):(17,50+0,80*6)*1,75*2 | E143: 78.05 | M143: DK2A (6 kusů):(17,50+0,80*6)*1,75*2
C144: DK2B (1 kus):(1,00+0,80*1)*1,75*2 | E144: 6.3 | M144: DK2B (1 kus):(1,00+0,80*1)*1,75*2
A145: 16 | B145: 151101111R00 | C145: Odstranění pažení stěn rýh - příložné - hl. do 2 m | D145: m2 | E145: 2943.506 | G145: =E145*F145 -> 0 | H145: 0 | I145: =E145*H145 -> 0 | J145: 0 | K145: =E145*J145 -> 0 | O145: 2 | AA145: 1 | AB145: 1 | AC145: 1 | AZ145: 1 | BA145: =IF(AZ145=1,G145,0) -> 0 | BB145: =IF(AZ145=2,G145,0) -> 0 | BC145: =IF(AZ145=3,G145,0) -> 0 | BD145: =IF(AZ145=4,G145,0) -> 0 | BE145: =IF(AZ145=5,G145,0) -> 0 | CA145: 1 | CB145: 1
C146: Dešťová kanalizace: | E146: 0 | M146: Dešťová kanalizace:
C147: DK1 KT DN300 a DN400:(26,30-14,00)*(1,50+1,45)/2*2 | E147: 36.285 | M147: DK1 KT DN300 a DN400:(26,30-14,00)*(1,50+1,45)/2*2
C148: (43,80-26,30)*(1,45+1,76)/2*2 | E148: 56.175 | M148: (43,80-26,30)*(1,45+1,76)/2*2
C149: (62,40-43,80)*(1,45+2,10)/2*2 | E149: 66.03 | M149: (62,40-43,80)*(1,45+2,10)/2*2
C150: (101,70-62,40)*(2,10+2,00)/2*2 | E150: 161.13 | M150: (101,70-62,40)*(2,10+2,00)/2*2
C151: (344,00-101,70)*2,00*2 | E151: 969.2 | M151: (344,00-101,70)*2,00*2
C152: DK1A KT DN300 a PVC DN300:15,30*(1,45+2,44)/2*2 | E152: 59.517 | M152: DK1A KT DN300 a PVC DN300:15,30*(1,45+2,44)/2*2
C153: (22,00-15,30)*(2,44+2,00)/2*2 | E153: 29.748 | M153: (22,00-15,30)*(2,44+2,00)/2*2
C154: (59,70-22,00)*2,00*2 | E154: 150.8 | M154: (59,70-22,00)*2,00*2
C155: DK1B KT DN400:5,00*2,10*2 | E155: 21 | M155: DK1B KT DN400:5,00*2,10*2
C156: DK1C KT DN300:4,50*(2,00+1,98)/2*2 | E156: 17.91 | M156: DK1C KT DN300:4,50*(2,00+1,98)/2*2
C157: DK1D KT DN300:18,50*2,00*2 | E157: 74 | M157: DK1D KT DN300:18,50*2,00*2
C158: DK2 KT DN300:(53,70-30,00)*(1,70+2,35)/2*2 | E158: 95.985 | M158: DK2 KT DN300:(53,70-30,00)*(1,70+2,35)/2*2
C159: (63,50-53,70)*(2,35+2,15)/2*2 | E159: 44.1 | M159: (63,50-53,70)*(2,35+2,15)/2*2
C160: (77,70-63,50)*(2,15+2,00)/2*2 | E160: 58.93 | M160: (77,70-63,50)*(2,15+2,00)/2*2
C161: DK2A KT DN300:11,20*(2,35+2,00)/2*2 | E161: 48.72 | M161: DK2A KT DN300:11,20*(2,35+2,00)/2*2
C162: (91,50-11,20)*2,00*2 | E162: 321.2 | M162: (91,50-11,20)*2,00*2
C163: Prohloubení pro RŠ:1,60*1,60*0,20*3 | E163: 1.536 | M163: Prohloubení pro RŠ:1,60*1,60*0,20*3
C164: Rozšíření pro RŠ:1,60*(1,60-1,20)*6,00 | E164: 3.84 | M164: Rozšíření pro RŠ:1,60*(1,60-1,20)*6,00
C165: DK2B KT DN300:5,00*1,20*(2,15+1,90)/2 | E165: 12.15 | M165: DK2B KT DN300:5,00*1,20*(2,15+1,90)/2
C166: Přípojky DK (Průměrná hloubka 2,00 m): | E166: 0 | M166: Přípojky DK (Průměrná hloubka 2,00 m):
C167: DK1 (11 kusů):(50,50+0,50*11)*2,00*2 | E167: 224 | M167: DK1 (11 kusů):(50,50+0,50*11)*2,00*2
C168: DK1A (3 kusy):(6,00+0,50*3)*2,00*2 | E168: 30 | M168: DK1A (3 kusy):(6,00+0,50*3)*2,00*2
C169: DK1D (1 kus):(1,50+0,50*1)*2,00*2 | E169: 8 | M169: DK1D (1 kus):(1,50+0,50*1)*2,00*2
C170: DK2 (6 kusů):(7,00+0,50*6)*2,00*2 | E170: 40 | M170: DK2 (6 kusů):(7,00+0,50*6)*2,00*2
C171: DK2A (2 kusy):(3,00+0,50*2)*2,00*2 | E171: 16 | M171: DK2A (2 kusy):(3,00+0,50*2)*2,00*2
C172: Přípojky k UV (Průměrná hloubka 1,75 m): | E172: 0 | M172: Přípojky k UV (Průměrná hloubka 1,75 m):
C173: DK1 (15 kusů):(71,50+0,80*15)*1,75*2 | E173: 292.25 | M173: DK1 (15 kusů):(71,50+0,80*15)*1,75*2
C174: DK1D (2 kusy):(2,00+0,80*2)*1,75*2 | E174: 12.6 | M174: DK1D (2 kusy):(2,00+0,80*2)*1,75*2
C175: DK2 (1 kus):(1,50+0,80*1)*1,75*2 | E175: 8.05 | M175: DK2 (1 kus):(1,50+0,80*1)*1,75*2
C176: DK2A (6 kusů):(17,50+0,80*6)*1,75*2 | E176: 78.05 | M176: DK2A (6 kusů):(17,50+0,80*6)*1,75*2
C177: DK2B (1 kus):(1,00+0,80*1)*1,75*2 | E177: 6.3 | M177: DK2B (1 kus):(1,00+0,80*1)*1,75*2
A178: 17 | B178: 162701105RSZ | C178: Vodorovné přemístění výkopku z hor.1-7 na skládku zhotovitele | D178: m3 | E178: 1295.1845 | G178: =E178*F178 -> 0 | H178: 0 | I178: =E178*H178 -> 0 | J178: 0 | K178: =E178*J178 -> 0 | O178: 2 | AA178: 1 | AB178: 1 | AC178: 1 | AZ178: 1 | BA178: =IF(AZ178=1,G178,0) -> 0 | BB178: =IF(AZ178=2,G178,0) -> 0 | BC178: =IF(AZ178=3,G178,0) -> 0 | BD178: =IF(AZ178=4,G178,0) -> 0 | BE178: =IF(AZ178=5,G178,0) -> 0 | CA178: 1 | CB178: 1
C179: Výkopy: | E179: 0 | M179: Výkopy:
C180: V hornině tř. 3 až 5:1438,0392 | E180: 1438.0392 | M180: V hornině tř. 3 až 5:1438,0392
C181: Odpočet zásypů zeminou:-142,8547 | E181: -142.8547 | M181: Odpočet zásypů zeminou:-142,8547
A182: 18 | B182: 174101101R00 | C182: Zásyp jam, rýh, šachet se zhutněním | D182: m3 | E182: 879.0907 | G182: =E182*F182 -> 0 | H182: 0 | I182: =E182*H182 -> 0 | J182: 0 | K182: =E182*J182 -> 0 | O182: 2 | AA182: 1 | AB182: 1 | AC182: 1 | AZ182: 1 | BA182: =IF(AZ182=1,G182,0) -> 0 | BB182: =IF(AZ182=2,G182,0) -> 0 | BC182: =IF(AZ182=3,G182,0) -> 0 | BD182: =IF(AZ182=4,G182,0) -> 0 | BE182: =IF(AZ182=5,G182,0) -> 0 | CA182: 1 | CB182: 1
C183: Položka obsahuje strojní přemístění materiálu pro zásyp ze vzdálenosti do 10 m od okraje zásypu. | L183: Položka obsahuje strojní přemístění materiálu pro zásyp ze vzdálenosti do 10 m od okraje zásypu. | O183: 3
C184: Zásyp zeminou:142,8547 | E184: 142.8547 | M184: Zásyp zeminou:142,8547
C185: Začátek provozního součtu | E185: 0 | M185: Začátek provozního součtu
C186: Dešťová kanalizace: | E186: 0 | M186: Dešťová kanalizace:
C187: DK1 KT DN300 a DN400:14,00*1,20*(1,03+1,50)/2 | E187: 21.252 | M187: DK1 KT DN300 a DN400:14,00*1,20*(1,03+1,50)/2
C188: (26,30-14,00)*1,20*(1,50+1,45)/2 | E188: 21.771 | M188: (26,30-14,00)*1,20*(1,50+1,45)/2
C189: (43,80-26,30)*1,20*(1,45+1,76)/2 | E189: 33.705 | M189: (43,80-26,30)*1,20*(1,45+1,76)/2
C190: (60,00-43,80)*1,20*(1,45+2,10)/2 | E190: 34.506 | M190: (60,00-43,80)*1,20*(1,45+2,10)/2
C191: Prohloubení pro RŠ:1,60*1,60*0,20*5 | E191: 2.56 | M191: Prohloubení pro RŠ:1,60*1,60*0,20*5
C192: Rozšíření pro RŠ:1,60*(1,60-1,20)*5,51 | E192: 3.5264 | M192: Rozšíření pro RŠ:1,60*(1,60-1,20)*5,51
C193: Odpočet lože, potrubí a obsypů:-60,00*0,7032 | E193: -42.192 | M193: Odpočet lože, potrubí a obsypů:-60,00*0,7032
C194: Odpočet objemu RŠ:-5,9832 | E194: -5.9832 | M194: Odpočet objemu RŠ:-5,9832
C195: DK1A KT DN300 a PVC DN300:15,00*1,20*(1,45+2,44)/2 | E195: 35.01 | M195: DK1A KT DN300 a PVC DN300:15,00*1,20*(1,45+2,44)/2
C196: Odpočet lože, potrubí a obsypů:-15,00*0,6538 | E196: -9.807 | M196: Odpočet lože, potrubí a obsypů:-15,00*0,6538
C197: DK2 KT DN300:(54,00-30,00)*1,20*(1,70+2,35)/2 | E197: 58.32 | M197: DK2 KT DN300:(54,00-30,00)*1,20*(1,70+2,35)/2
C198: Prohloubení pro RŠ:1,60*1,60*0,20*3 | E198: 1.536 | M198: Prohloubení pro RŠ:1,60*1,60*0,20*3
C199: Rozšíření pro RŠ:2,00*2,00*3,50+1,60*(1,60-1,20)*2,35 | E199: 15.504 | M199: Rozšíření pro RŠ:2,00*2,00*3,50+1,60*(1,60-1,20)*2,35
C200: Odpočet lože, potrubí a obsypů:-(54,00-30,00)*0,7032 | E200: -16.8768 | M200: Odpočet lože, potrubí a obsypů:-(54,00-30,00)*0,7032
C201: Odpočet objemu RŠ:-6,9649 | E201: -6.9649 | M201: Odpočet objemu RŠ:-6,9649
C202: Odpočet ornice: | E202: 0 | M202: Odpočet ornice:
... 839 more rows

Sheet OaVNS
A1: Položkový rozpočet
A3: Stavba : | C3: 3332 Obnova vodovodu a kanalizace v Obci Loučky | E3: Rozpočet: | F3: OaVNS
A4: Objekt : | C4: OaVNS - Ostatní a vedlejší náklady stavby
A6: P.č. | B6: Číslo položky | C6: Název položky | D6: MJ | E6: množství | F6: cena / MJ | G6: celkem (Kč) | H6: Jednotková hmotnost | I6: Celková hmotnost | J6: Jednotková dem.hmot. | K6: Celková dem.hmot.
A7: Díl: | B7: 950 | C7: Ostatní náklady stavby
A8: 1 | B8: 950 99-0001.ONS | C8: Zajištění prostoru a vybudování zařízení staveniště včetně potřebných staveništních komunikací | D8: soubor | E8: 1 | G8: =SUM(E8*F8) -> 0 | H8: 0.00869 | I8: =E8*H8 -> 0.00869 | J8: 0 | K8: =E8*J8 -> 0 | BN8: 1 | BO8: 1
A9: 2 | B9: 950 99-0003.ONS | C9: Zajištění bezpečnosti při provádění stavby ve smyslu bezpečnosti práce i ochrany životního prostředí a zeleně | D9: soubor | E9: 1 | G9: =SUM(E9*F9) -> 0
A10: 3 | B10: 950 99-0005.ONS | C10: Vytýčení stavby a hranic pozemků při provádění stavby | D10: soubor | E10: 1 | G10: 0
A11: 4 | B11: 950 99-0006.ONS | C11: Zajištění včasného oznámení o zahájení prací majitelům pozemků a správců sítí dotčených stavbou | D11: soubor | E11: 1 | G11: 0
A12: 5 | B12: 950 99-0007.ONS | C12: Spolupráce s vlastníky pozemků při případném uvolnění pozemků pro stavbu (např. skládky osobního materiálu vlastníků) | D12: soubor | E12: 1 | G12: 0 | H12: 0.02478 | I12: =E12*H12 -> 0.02478 | J12: 0 | K12: =E12*J12 -> 0 | BN12: 1 | BO12: 1
A13: 6 | B13: 950 99-0008.ONS | C13: Zajištění vytýčení podzemních zařízení, a v případě jejich křížení či souběhu v otevřeném výkopu, jejich písemné předání zpět jejich správcům před zásypem | D13: soubor | E13: 1 | G13: 0
A14: 7 | B14: 950 99-0009.ONS | C14: Vypracování a projednání návrhu dočasných dopravních opatření (případně i po etapách dle zvoleného postupu prací zhotovitelem) | D14: soubor | E14: 1 | G14: 0
A15: 8 | B15: 950 99-0010.ONS | C15: Zajištění povolení zvláštního užívání komunikací v souladu s postupem výstavby,včetně správních poplatků a povolení k užívání dalších, stavbou dotčených pozemků (skládky materiálu, mezideponie atd.) | D15: soubor | E15: 1 | G15: 0
A16: 9 | B16: 950 99-0011.ONS | C16: Zřízení, údržba a likvidace dopravního opatření po dobu realizace stavby (případně i po etapách dle zvoleného postupu prací zhotovitelem) | D16: soubor | E16: 1 | G16: 0 | H16: 0 | I16: =E16*H16 -> 0 | J16: 0 | K16: =E16*J16 -> 0 | BN16: 1 | BO16: 1
A17: 10 | B17: 950 99-0013.ONS | C17: Zajištění činnosti odpovědného geodeta zhotovitele | D17: soubor | E17: 1 | G17: 0
A18: 11 | B18: 950 99-0014.ONS | C18: Zajištění činnosti odpovědného geologa zhotovitele | D18: soubor | E18: 1 | G18: 0
A19: 12 | B19: 950 99-0015.ONS | C19: Zajištění čistoty na staveništi a v jeho okolí, zajištění každodenního čištění komunikací dotčených provozem zhotovitele | D19: soubor | E19: 1 | G19: 0
A20: 13 | B20: 950 99-0016.ONS | C20: Fotodokumentace průběhu díla; zhotovitel zajistí a předá objednateli průběžnou fotodokumentaci realizace díla. Fotodokumentace bude dokladovat průběh díla a bude zejména dokumentovat části stavby a konstrukce před jejich zakrytím | D20: soubor | E20: 1 | G20: 0
A21: 14 | B21: 950 99-0017.ONS | C21: Péče o nepředané objekty nebo jejich části a konstrukce stavby, jejich ošetřování a nutný rozsah pojištění | D21: soubor | E21: 1 | G21: 0 | H21: 0 | I21: =E21*H21 -> 0 | J21: 0 | K21: =E21*J21 -> 0 | BN21: 1 | BO21: 1
A22: 15 | B22: 950 99-0018.ONS | C22: Zkoušky hutnění komunikací a rýh dle ČSN a EN | D22: soubor | E22: 1 | G22: 0
A23: 16 | B23: 950 99-0021.ONS | C23: Inženýrská a kompletační činnost zhotovitele včetně koordinace prací na VH sítí a komunikace s realizací investiční akce ČEZu. | D23: soubor | E23: 1 | G23: 0
A24: 17 | B24: 950 99-0022.ONS | C24: Zhotovení dokumentace skutečného provedení díla | D24: soubor | E24: 1 | G24: 0
A25: 18 | B25: 950 99-0023.ONS | C25: Geodetické zaměření stavby | D25: soubor | E25: 1 | G25: 0
A26: 19 | B26: 950 99-0024.ONS | C26: Pasportizace objektů a komunikací před zahájením stavby včetně předání fotokokumentace investorovi stavby v digitální a tištěné podobě. | D26: soubor | E26: 1 | G26: 0
A27: 20 | B27: 950 99-0025.ONS | C27: Monitoring objektů během realizace stavby. | D27: soubor | E27: 5 | G27: 0
A28: 21 | B28: 950 99-0026.ONS | C28: Provizorní zásobování vodou (cisterna) během realizace stavby nezávisle na provizorním vodovodu stavby. | D28: soubor | E28: 1 | G28: 0
A29: 22 | B29: 950 99-0028.ONS | C29: Ostatní činnosti nutné ke zdárnému provedení díla, které jsou vymezeny zejména v technické specifikaci stavby | D29: soubor | E29: 1 | G29: 0
B31: ONS Celkem | G31: =SUM(G8:G29) -> 0
